Transaction No.,Service Area Categorisation,Service Division Categorisation,Responsible Unit,Unit Code,Expenses Type,Expenses Sub Type,Expense Code,Narrative,Amount,Invoice Date,Capital /Revenue,Supplier Name
1,Central Services,SupS Chief Execs,Local Involvement Network,A01039,Third Party Payments          ,Private Contractors           ,EH10,Contract Payments,"8,595.00",15/05/2013,R,VOICEABILITY                  
2,Cultural Env Reg&Plan Services,Comm Safety (Crime Reduction),CCTV,A01200,Supplies & Services           ,Equip Furniture/Materials     ,DA01,Equipment - R & M,"1,220.00",04/06/2013,R,COMPUTER POWER PROTECTION     
3,Adult Social Care,Substance Abuse (Addictions),DAAT Commissioning,A01300,Third Party Payments          ,Private Contractors           ,EH02,Miscellaneous Hired Services,600,10/06/2013,R,GLENCOT LIMITED               
4,Adult Social Care,Substance Abuse (Addictions),DAAT Commissioning,A01300,Third Party Payments          ,Private Contractors           ,EH02,Miscellaneous Hired Services,900,24/06/2013,R,GLENCOT LIMITED               
5,Adult Social Care,Substance Abuse (Addictions),DAAT Commissioning,A01300,Third Party Payments          ,Private Contractors           ,EH02,Miscellaneous Hired Services,900,10/06/2013,R,GLENCOT LIMITED               
6,Adult Social Care,Substance Abuse (Addictions),DAAT Commissioning,A01300,Third Party Payments          ,Private Contractors           ,EH02,Miscellaneous Hired Services,900,17/06/2013,R,GLENCOT LIMITED               
7,Adult Social Care,Substance Abuse (Addictions),DAAT Commissioning,A01300,Third Party Payments          ,Private Contractors           ,EH02,Miscellaneous Hired Services,900,10/06/2013,R,GLENCOT LIMITED               
8,Central Services,SupS Chief Execs,NON-STATUTORY MARKETING & COMM,A02019,Supplies & Services           ,Services                      ,DF02,Misc Advertising/Publicity,537.5,29/05/2013,R,JCDECAUX UNITED KINGDOM       
9,Central Services,SupS Chief Execs,NON-STATUTORY MARKETING & COMM,A02019,Supplies & Services           ,Services                      ,DF02,Misc Advertising/Publicity,537.5,29/05/2013,R,JCDECAUX UNITED KINGDOM       
10,Central Services,SupS Chief Execs,NON-STATUTORY MARKETING & COMM,A02019,Supplies & Services           ,Services                      ,DF02,Misc Advertising/Publicity,537.5,25/03/2013,R,JCDECAUX UNITED KINGDOM       
11,Central Services,SupS Chief Execs,NON-STATUTORY MARKETING & COMM,A02019,Supplies & Services           ,Services                      ,DF02,Misc Advertising/Publicity,537.5,25/03/2013,R,JCDECAUX UNITED KINGDOM       
12,Central Services,SupS Chief Execs,NON-STATUTORY MARKETING & COMM,A02019,Supplies & Services           ,Services                      ,DF02,Misc Advertising/Publicity,537.5,22/02/2013,R,JCDECAUX UNITED KINGDOM       
13,Central Services,SupS Chief Execs,NON-STATUTORY MARKETING & COMM,A02019,Supplies & Services           ,Services                      ,DF02,Misc Advertising/Publicity,720,06/06/2013,R,SOUTHWARK NEWS                
14,Central Services,SupS Chief Execs,NON-STATUTORY MARKETING & COMM,A02019,Supplies & Services           ,Services                      ,DF02,Misc Advertising/Publicity,750,30/05/2013,R,SOUTHWARK NEWS                
15,Central Services,SupS Chief Execs,NON-STATUTORY MARKETING & COMM,A02019,Supplies & Services           ,Services                      ,DF02,Misc Advertising/Publicity,750,10/05/2013,R,SOUTHWARK NEWS                
16,Central Services,SupS Chief Execs,NON-STATUTORY MARKETING & COMM,A02019,Supplies & Services           ,Services                      ,DF02,Misc Advertising/Publicity,757,06/04/2013,R,NEWSQUEST (LONDON)LTD         
17,Central Services,SupS Chief Execs,NON-STATUTORY MARKETING & COMM,A02019,Supplies & Services           ,Services                      ,DF02,Misc Advertising/Publicity,"1,800.00",10/06/2013,R,WE ARE FAMILY MAGAZINE        
18,Central Services,SupS Chief Execs,NON-STATUTORY MARKETING & COMM,A02019,Supplies & Services           ,Services                      ,DF35,Graphic Design,"3,870.00",11/06/2013,R,THE BIG IDEA 
19,Central Services,SupS Chief Execs,Democratic Services,A02023,Supplies & Services           ,Expenses                      ,DH63,Members Expenses              ,595,24/06/2013,R,INFORMATION COMMISSIONER      
20,Central Services,SupS Chief Execs,Press and Public Relations.,A02026,Employees                     ,Direct Employee Expenses      ,AA17,Agency Staff & Casual Paymts,904,21/05/2013,R,HAYS RECRUITING EXPERTS       
21,Central Services,SupS Chief Execs,Press and Public Relations.,A02026,Supplies & Services           ,Prntng Stnry Gen Off Exp      ,DE20,Council Magazine,"2,685.00",06/06/2013,R,DOMINO 4 LIMITED              
22,CS -Oth Operating Inc & Expend,T/A Corporate Services,Prtng Jobs - Ext Agncy,A03041,Supplies & Services           ,Prntng Stnry Gen Off Exp      ,DE01,External Printing,650,25/06/2013,R,AMEY COMMUNITY LIMITED        
23,CS -Oth Operating Inc & Expend,T/A Corporate Services,Prtng Jobs - Ext Agncy,A03041,Supplies & Services           ,Prntng Stnry Gen Off Exp      ,DE01,External Printing,780,25/06/2013,R,AMEY COMMUNITY LIMITED        
24,CS -Oth Operating Inc & Expend,T/A Corporate Services,Prtng Jobs - Ext Agncy,A03041,Supplies & Services           ,Prntng Stnry Gen Off Exp      ,DE01,External Printing,"4,287.40",11/06/2013,R,ULTIMATE INVOICE FINANCE LTD  
25,CS -Oth Operating Inc & Expend,T/A Corporate Services,Prtng Jobs - Ext Agncy,A03041,Supplies & Services           ,Prntng Stnry Gen Off Exp      ,DE01,External Printing,"5,650.00",25/06/2013,R,AMEY COMMUNITY LIMITED        
26,CS -Oth Operating Inc & Expend,T/A Corporate Services,Prtng Jobs - Ext Agncy,A03041,Supplies & Services           ,Prntng Stnry Gen Off Exp      ,DE01,External Printing,"8,389.00",14/06/2013,R,CLIFFE ENTERPRISE             
27,CS -Oth Operating Inc & Expend,T/A Corporate Services,PrintUnit-HighVolPhtcopying,A03042,Third Party Payments          ,Private Contractors           ,EH02,Miscellaneous Hired Services,"3,000.00",19/05/2013,R,OCE FINANCE                   
28,CS -Oth Operating Inc & Expend,T/A Corporate Services,PrintUnit-HighVolPhtcopying,A03042,Third Party Payments          ,Private Contractors           ,EH02,Miscellaneous Hired Services,"3,900.00",19/05/2013,R,OCE FINANCE                   
29,CS -Oth Operating Inc & Expend,T/A Corporate Services,PrintUnit-HighVolPhtcopying,A03042,Third Party Payments          ,Private Contractors           ,EH02,Miscellaneous Hired Services,"4,752.47",03/06/2013,R,OCE (UK) LTD                  
30,Central Services,SupS Comm and Member Services,PROGRAMME OFFICE,A04068,Employees                     ,Direct Employee Expenses      ,AA17,Agency Staff & Casual Paymts,"12,300.00",31/05/2013,R,REDACTED
31,Central Services,SupS Best Value,Merton Link,A04070,Supplies & Services           ,Comms and Computing           ,DG15,Network Maintenance,559.12,03/06/2013,R,NORTHGATE INFORMATION SOLUTION
32,Central Services,Members allowances & expenses,PERFORMANCE REWARD GRANT,A04081,Supplies & Services           ,Grants and Subscriptions      ,DJ01,Grants,"115,000.00",10/06/2013,R,MERTON VOLUNTARY SERV COUNCIL 
33,Central Services,SupS Comm and Member Services,COMMERICIAL SERVICES,A04085,Employees                     ,Direct Employee Expenses      ,AA17,Agency Staff & Casual Paymts,"2,712.00",05/06/2013,R,HAYS RECRUITING EXPERTS       
34,Central Services,SupS Comm and Member Services,COMMERICIAL SERVICES,A04085,Employees                     ,Direct Employee Expenses      ,AA17,Agency Staff & Casual Paymts,"2,712.00",16/05/2013,R,HAYS RECRUITING EXPERTS       
35,Central Services,SupS Comm and Member Services,COMMERICIAL SERVICES,A04085,Employees                     ,Direct Employee Expenses      ,AA17,Agency Staff & Casual Paymts,"3,390.00",31/05/2013,R,HAYS RECRUITING EXPERTS       
36,Central Services,SupS Comm and Member Services,COMMERICIAL SERVICES,A04085,Employees                     ,Direct Employee Expenses      ,AA17,Agency Staff & Casual Paymts,"3,390.00",22/05/2013,R,HAYS RECRUITING EXPERTS       
37,Central Services,SupS Comm and Member Services,COMMERICIAL SERVICES,A04085,Employees                     ,Direct Employee Expenses      ,AA17,Agency Staff & Casual Paymts,"3,390.00",08/05/2013,R,HAYS RECRUITING EXPERTS       
38,Central Services,SupS Health & Safety,Learning and Development,B06146,Employees                     ,Indirect Employee Expenses    ,AB57,External Training Costs,575,10/06/2013,R,LONDON SCHOOL OF FIRST AID    
39,Central Services,SupS Health & Safety,Learning and Development,B06146,Employees                     ,Indirect Employee Expenses    ,AB57,External Training Costs,640,31/05/2013,R,LONDON BOROUGH OF CAMDEN      
40,Central Services,SupS Health & Safety,Learning and Development,B06146,Employees                     ,Indirect Employee Expenses    ,AB57,External Training Costs,660,19/06/2013,R,PLANET TRAINING               
41,Central Services,SupS Health & Safety,Learning and Development,B06146,Employees                     ,Indirect Employee Expenses    ,AB57,External Training Costs,700,17/06/2013,R,PM SOCIAL CARE LTD            
42,Central Services,SupS Health & Safety,Learning and Development,B06146,Supplies & Services           ,Expenses                      ,DH60,Members training AP creditors,717,29/05/2013,R,CENTRE FOR PUBLIC SCRUTINY    
43,CS -Oth Operating Inc & Expend,T/A Corporate Services,CHAS Scheme,B06150,Supplies & Services           ,Services                      ,DF88,Assessor Fees,515,29/04/2013,R,REDACTED
44,CS -Oth Operating Inc & Expend,T/A Corporate Services,CHAS Scheme,B06150,Supplies & Services           ,Services                      ,DF88,Assessor Fees,548,31/05/2013,R,REDACTED
47,CS -Oth Operating Inc & Expend,T/A Corporate Services,CHAS Scheme,B06150,Supplies & Services           ,Services                      ,DF88,Assessor Fees,635,15/05/2013,R,REDACTED
50,CS -Oth Operating Inc & Expend,T/A Corporate Services,CHAS Scheme,B06150,Supplies & Services           ,Services                      ,DF88,Assessor Fees,649,31/05/2013,R,REDACTED
51,CS -Oth Operating Inc & Expend,T/A Corporate Services,CHAS Scheme,B06150,Supplies & Services           ,Services                      ,DF88,Assessor Fees,675,30/05/2013,R,REDACTED
52,CS -Oth Operating Inc & Expend,T/A Corporate Services,CHAS Scheme,B06150,Supplies & Services           ,Services                      ,DF88,Assessor Fees,678.4,30/05/2013,R,REDACTED
53,CS -Oth Operating Inc & Expend,T/A Corporate Services,CHAS Scheme,B06150,Supplies & Services           ,Services                      ,DF88,Assessor Fees,690.05,31/05/2013,R,REDACTED
54,CS -Oth Operating Inc & Expend,T/A Corporate Services,CHAS Scheme,B06150,Supplies & Services           ,Services                      ,DF88,Assessor Fees,729,31/05/2013,R,REDACTED
55,CS -Oth Operating Inc & Expend,T/A Corporate Services,CHAS Scheme,B06150,Supplies & Services           ,Services                      ,DF88,Assessor Fees,729.95,31/05/2013,R,REDACTED
57,CS -Oth Operating Inc & Expend,T/A Corporate Services,CHAS Scheme,B06150,Supplies & Services           ,Services                      ,DF88,Assessor Fees,769,31/05/2013,R,REDACTED
58,CS -Oth Operating Inc & Expend,T/A Corporate Services,CHAS Scheme,B06150,Supplies & Services           ,Services                      ,DF88,Assessor Fees,776,31/05/2013,R,REDACTED
59,CS -Oth Operating Inc & Expend,T/A Corporate Services,CHAS Scheme,B06150,Supplies & Services           ,Services                      ,DF88,Assessor Fees,820.1,31/05/2013,R,REDACTED
62,CS -Oth Operating Inc & Expend,T/A Corporate Services,CHAS Scheme,B06150,Supplies & Services           ,Services                      ,DF88,Assessor Fees,863,31/05/2013,R,REDACTED
64,CS -Oth Operating Inc & Expend,T/A Corporate Services,CHAS Scheme,B06150,Supplies & Services           ,Services                      ,DF88,Assessor Fees,943,31/05/2013,R,REDACTED
65,CS -Oth Operating Inc & Expend,T/A Corporate Services,CHAS Scheme,B06150,Supplies & Services           ,Services                      ,DF88,Assessor Fees,974,31/05/2013,R,STALLARD KANE ASSOCIATES LTD  
67,CS -Oth Operating Inc & Expend,T/A Corporate Services,CHAS Scheme,B06150,Supplies & Services           ,Services                      ,DF88,Assessor Fees,"1,117.00",31/05/2013,R,REDACTED
68,CS -Oth Operating Inc & Expend,T/A Corporate Services,CHAS Scheme,B06150,Supplies & Services           ,Services                      ,DF88,Assessor Fees,"1,117.00",31/05/2013,R,REDACTED
69,CS -Oth Operating Inc & Expend,T/A Corporate Services,CHAS Scheme,B06150,Supplies & Services           ,Services                      ,DF88,Assessor Fees,"1,197.00",01/06/2013,R,REDACTED
70,CS -Oth Operating Inc & Expend,T/A Corporate Services,CHAS Scheme,B06150,Supplies & Services           ,Services                      ,DF88,Assessor Fees,"1,244.00",30/05/2013,R,REDACTED
72,CS -Oth Operating Inc & Expend,T/A Corporate Services,CHAS Scheme,B06150,Supplies & Services           ,Services                      ,DF88,Assessor Fees,"1,383.00",31/05/2013,R,REDACTED
76,CS -Oth Operating Inc & Expend,T/A Corporate Services,CHAS Scheme,B06150,Supplies & Services           ,Services                      ,DF88,Assessor Fees,"1,698.00",28/05/2013,R,WOODS CONSULTANCY SERVICES LTD
77,CS -Oth Operating Inc & Expend,T/A Corporate Services,CHAS Scheme,B06150,Supplies & Services           ,Services                      ,DF88,Assessor Fees,"1,785.00",31/05/2013,R,REDACTED
78,CS -Oth Operating Inc & Expend,T/A Corporate Services,CHAS Scheme,B06150,Supplies & Services           ,Services                      ,DF88,Assessor Fees,"1,792.00",31/05/2013,R,2ND NATURE SAFETY SOLUTIONS UK
79,CS -Oth Operating Inc & Expend,T/A Corporate Services,CHAS Scheme,B06150,Supplies & Services           ,Services                      ,DF88,Assessor Fees,"1,799.00",30/05/2013,R,REDACTED
83,CS -Oth Operating Inc & Expend,T/A Corporate Services,CHAS Scheme,B06150,Supplies & Services           ,Services                      ,DF88,Assessor Fees,"1,945.00",31/05/2013,R,REDACTED
86,CS -Oth Operating Inc & Expend,T/A Corporate Services,CHAS Scheme,B06150,Supplies & Services           ,Services                      ,DF88,Assessor Fees,"2,408.00",31/05/2013,R,REDACTED
87,CS -Oth Operating Inc & Expend,T/A Corporate Services,CHAS Scheme,B06150,Supplies & Services           ,Services                      ,DF88,Assessor Fees,"2,674.00",31/05/2013,R,SOUTH EAST HEALTH & SAFETY LTD
89,CS -Oth Operating Inc & Expend,T/A Corporate Services,CHAS Scheme,B06150,Supplies & Services           ,Services                      ,DF88,Assessor Fees,"3,316.00",31/05/2013,R,ALIMOR SAFETY LTD             
92,CS -Oth Operating Inc & Expend,T/A Corporate Services,CHAS Scheme,B06150,Supplies & Services           ,Services                      ,DF88,Assessor Fees,"4,795.00",01/06/2013,R,ARC ASSOCIATES (UK)           
93,,,Western Road                            ,CC020RA,Acquisition of Land and Existing Buildings,0,A1,Purchase,"760,000.00",06/06/2013,C,SHARRATT                      
94,,,CCTV (match funding)                    ,CE002EA,New Construction Conversion and Renovation,0,B1,Design and Supervision - Consultants Fee,"1,286.32",24/05/2013,C,GOODWILL ASSOCIATES LIMITED   
95,,,Disabled Facilities Grant DCLG          ,CE004RA,Other Capital Expenditure,0,E1,Grants,583.74,26/06/2013,C,R E SHELLEY                   
96,,,Disabled Facilities Grant DCLG          ,CE004RA,Other Capital Expenditure,0,E1,Grants,587.6,19/06/2013,C,SUTTON STAYING PUT            
97,,,Disabled Facilities Grant DCLG          ,CE004RA,Other Capital Expenditure,0,E1,Grants,799.44,19/06/2013,C,R E SHELLEY                   
98,,,Disabled Facilities Grant DCLG          ,CE004RA,Other Capital Expenditure,0,E1,Grants,"1,159.00",04/06/2013,C,CBS ADAPTATION                
99,,,Disabled Facilities Grant DCLG          ,CE004RA,Other Capital Expenditure,0,E1,Grants,"1,759.00",18/06/2013,C,STAYING FIRST                 
100,,,Disabled Facilities Grant DCLG          ,CE004RA,Other Capital Expenditure,0,E1,Grants,"1,770.66",04/06/2013,C,STAYING FIRST                 
101,,,Disabled Facilities Grant DCLG          ,CE004RA,Other Capital Expenditure,0,E1,Grants,"2,070.00",19/06/2013,C,ASCENDIT LIFTS LTD            
102,,,Disabled Facilities Grant DCLG          ,CE004RA,Other Capital Expenditure,0,E1,Grants,"2,222.66",27/06/2013,C,STAYING FIRST                 
103,,,Disabled Facilities Grant DCLG          ,CE004RA,Other Capital Expenditure,0,E1,Grants,"2,273.50",19/06/2013,C,CBS ADAPTATION                
104,,,Disabled Facilities Grant DCLG          ,CE004RA,Other Capital Expenditure,0,E1,Grants,"3,240.00",14/06/2013,C,TOTAL HYGIENE LIMITED         
105,,,Disabled Facilities Grant DCLG          ,CE004RA,Other Capital Expenditure,0,E1,Grants,"3,548.90",04/06/2013,C,CBS ADAPTATION                
106,,,Disabled Facilities Grant DCLG          ,CE004RA,Other Capital Expenditure,0,E1,Grants,"4,000.00",28/06/2013,C,WINSEAL WINDOWS               
107,,,Disabled Facilities Grant DCLG          ,CE004RA,Other Capital Expenditure,0,E1,Grants,"4,855.00",10/06/2013,C,ASCENDIT LIFTS LTD            
108,,,Disabled Facilities Grant DCLG          ,CE004RA,Other Capital Expenditure,0,E1,Grants,"5,250.00",04/06/2013,C,ASCENDIT LIFTS LTD            
109,,,Disabled Facilities Grant DCLG          ,CE004RA,Other Capital Expenditure,0,E1,Grants,"6,437.00",04/06/2013,C,TBS ADAPTATIONS LTD           
110,,,Disabled Facilities Grant DCLG          ,CE004RA,Other Capital Expenditure,0,E1,Grants,"6,662.00",21/06/2013,C,ASCENDIT LIFTS LTD            
111,,,Disabled Facilities Grant DCLG          ,CE004RA,Other Capital Expenditure,0,E1,Grants,"6,662.00",19/06/2013,C,TBS ADAPTATIONS LTD           
112,,,Disabled Facilities Grant DCLG          ,CE004RA,Other Capital Expenditure,0,E1,Grants,"6,684.00",27/06/2013,C,TBS ADAPTATIONS LTD           
113,,,Disabled Facilities Grant DCLG          ,CE004RA,Other Capital Expenditure,0,E1,Grants,"8,778.00",20/06/2013,C,ASCENDIT LIFTS LTD            
114,,,Disabled Facilities Grant DCLG          ,CE004RA,Other Capital Expenditure,0,E1,Grants,"11,130.00",14/06/2013,C,VISTA SCAPES                  
115,,,Disabled Facilities Grant DCLG          ,CE004RA,Other Capital Expenditure,0,E1,Grants,"23,707.50",04/06/2013,C,TBS ADAPTATIONS LTD           
116,,,Small Repairs Grant                     ,CE005RA,Other Capital Expenditure,0,E1,Grants,"1,100.00",10/06/2013,C,WIMBLEDON WINDOW CO.LTD.      
117,,,Small Repairs Grant                     ,CE005RA,Other Capital Expenditure,0,E1,Grants,"1,700.00",26/06/2013,C,WIMBLEDON WINDOW CO.LTD.      
118,,,Small Repairs Grant                     ,CE005RA,Other Capital Expenditure,0,E1,Grants,"3,960.00",10/06/2013,C,CHELSEA WINDOWS LTD           
119,,,Mitcham - Outer London Fund             ,CE006FC,New Construction Conversion and Renovation,0,B3,Design and Supervision - Other Expenses,"6,510.14",29/05/2013,C,STUDIO WEAVE LTD              
120,,,Mitcham - Outer London Fund             ,CE006FC,New Construction Conversion and Renovation,0,B3,Design and Supervision - Other Expenses,"10,500.00",02/05/2013,C,STUDIO WEAVE LTD              
121,,,Mitcham - Outer London Fund             ,CE006FC,New Construction Conversion and Renovation,0,B4,Site Works - Contractor,"2,500.00",19/06/2013,C,FOURTH WALL CREATIONS         
122,,,WCA investment                          ,CE007BA,Acquisition of Land and Existing Buildings,0,A1,Purchase,"740,759.84",28/06/2013,C,GREGSONS SOLICITORS           
123,,,B487 Landscape Ravensbury Park          ,CE009CA,New Construction Conversion and Renovation,0,B4,Site Works - Contractor,"8,200.00",12/04/2013,C,REDDINGTON & SONS             
124,,,Parks Investment                        ,CE013SA,New Construction Conversion and Renovation,0,B4,Site Works - Contractor,780,17/03/2013,C,REDACTED
125,,,Parks Investment                        ,CE013SA,New Construction Conversion and Renovation,0,B4,Site Works - Contractor,"1,450.00",17/06/2013,C,REDACTED
126,,,Parks Investment                        ,CE013SA,New Construction Conversion and Renovation,0,B4,Site Works - Contractor,"1,665.00",19/06/2013,C,REDDINGTON & SONS             
127,,,Parks Investment                        ,CE013SA,New Construction Conversion and Renovation,0,B4,Site Works - Contractor,"2,220.00",16/06/2013,C,REDACTED
128,,,Parks Investment                        ,CE013SA,New Construction Conversion and Renovation,0,B4,Site Works - Contractor,"2,793.35",10/04/2013,C,TRITON BUILDING CONSERVATION  
129,,,Parks Investment                        ,CE013SA,New Construction Conversion and Renovation,0,B4,Site Works - Contractor,"3,640.00",22/05/2013,C,TAYLOR BUILDING COMPANY LTD   
130,,,Parks Investment                        ,CE013SA,Vehicles Plant Equipment and Machinery,0,D5,Software,"1,394.00",25/03/2013,C,STIRLING MAYNARD TRANSPORTAT'N
131,,,Surface Water Drainage                  ,CE024FA,New Construction Conversion and Renovation,0,B4,Site Works - Contractor,"5,481.43",06/06/2013,C,FM CONWAY LTD                 
132,,,Borough Roads Maintenance               ,CE026FA,New Construction Conversion and Renovation,0,B4,Site Works - Contractor,"5,537.60",28/05/2013,C,FM CONWAY LTD                 
133,,,Repairs to Footways                     ,CE029FA,New Construction Conversion and Renovation,0,B4,Site Works - Contractor,"1,748.10",10/06/2013,C,FM CONWAY LTD                 
134,,,Repairs to Footways                     ,CE029FA,New Construction Conversion and Renovation,0,B4,Site Works - Contractor,"40,000.00",31/05/2013,C,FM CONWAY LTD                 
135,,,Repairs to Footways                     ,CE029FA,New Construction Conversion and Renovation,0,B4,Site Works - Contractor,"50,000.00",31/05/2013,C,FM CONWAY LTD                 
136,,,Garth Rd Workshop                       ,CE041AA,New Construction Conversion and Renovation,0,B4,Site Works - Contractor,"15,405.87",21/05/2013,C,FARNRISE CONSTRUCTION LTD     
137,,,Improve markings & road signs           ,CE066EA,New Construction Conversion and Renovation,0,B4,Site Works - Contractor,920.09,31/05/2013,C,MAY GURNEY LTD T/A CARTLEDGE  
138,,,Improve markings & road signs           ,CE066EA,New Construction Conversion and Renovation,0,B4,Site Works - Contractor,"1,272.80",31/05/2013,C,MAY GURNEY LTD T/A CARTLEDGE  
139,,,Street scene enhancements               ,CE066FE,New Construction Conversion and Renovation,0,B3,Design and Supervision - Other Expenses,"2,480.00",31/01/2013,C,NETWORK RAIL INFRASTRUCTURE LT
140,,,Street scene enhancements               ,CE066FE,New Construction Conversion and Renovation,0,B4,Site Works - Contractor,"6,375.00",21/05/2013,C,MORTON FAIRVIEW ELEC SERVICES 
141,,,Street scene enhancements               ,CE066FE,New Construction Conversion and Renovation,0,B4,Site Works - Contractor,"8,787.00",26/03/2013,C,TAYLOR BUILDING COMPANY LTD   
142,,,Street scene enhancements               ,CE066FE,New Construction Conversion and Renovation,0,B4,Site Works - Contractor,"17,900.00",31/03/2013,C,REDACTED
143,,,Street Lighting Replacement Pr          ,CE068FA,New Construction Conversion and Renovation,0,B4,Site Works - Contractor,606.58,18/06/2013,C,MAY GURNEY LTD T/A CARTLEDGE  
144,,,Street Lighting Replacement Pr          ,CE068FA,New Construction Conversion and Renovation,0,B4,Site Works - Contractor,767.53,31/05/2013,C,MAY GURNEY LTD T/A CARTLEDGE  
145,,,Street Lighting Replacement Pr          ,CE068FA,New Construction Conversion and Renovation,0,B4,Site Works - Contractor,"1,027.67",31/05/2013,C,MAY GURNEY LTD T/A CARTLEDGE  
146,,,Street Lighting Replacement Pr          ,CE068FA,New Construction Conversion and Renovation,0,B4,Site Works - Contractor,"2,195.64",31/05/2013,C,MAY GURNEY LTD T/A CARTLEDGE  
147,,,Street Lighting Replacement Pr          ,CE068FA,New Construction Conversion and Renovation,0,B4,Site Works - Contractor,"4,881.68",31/05/2013,C,MAY GURNEY LTD T/A CARTLEDGE  
148,,,Street Lighting Replacement Pr          ,CE068FA,New Construction Conversion and Renovation,0,B6,Site Works - Other Costs,642,18/06/2013,C,UK POWER NETWORKS (OPERATIONS)
149,,,Traffic surveys & Safety Measu          ,CE075FA,New Construction Conversion and Renovation,0,B2,Design and Supervision - Site Surveys,"1,300.00",18/06/2013,C,TRAFFICWATCH (UK) LTD.        
150,,,Alley Gating Scheme - Fly Tip           ,CE087FA,New Construction Conversion and Renovation,0,B4,Site Works - Contractor,"1,650.00",15/05/2013,C,THE CRESCENT FENCING CO       
151,,,Alley Gating Scheme - Fly Tip           ,CE087FA,Other Capital Expenditure,0,E1,Grants,656.1,29/05/2013,C,CHURSTON DRIVE ALLEYGATES     
152,,,Alley Gating Scheme - Fly Tip           ,CE087FA,Other Capital Expenditure,0,E1,Grants,821.88,29/05/2013,C,BYFIELD GATING ASSOCIATION    
153,,,Alley Gating Scheme - Fly Tip           ,CE087FA,Other Capital Expenditure,0,E1,Grants,"1,210.68",14/05/2013,C,RIVERSIDE DRIVE ALLEY GATE ASS
154,,,Alley Gating Scheme - Fly Tip           ,CE087FA,Other Capital Expenditure,0,E1,Grants,"2,001.78",18/06/2013,C,RIVERBROOK ALLEYGATE SCHEME   
155,,,Strategic corridor Mitcham              ,CE104FB,New Construction Conversion and Renovation,0,B1,Design and Supervision - Consultants Fee,"8,500.00",12/06/2013,C,PHILIP CAVE ASSOCIATES        
156,,,Strategic corridor Mitcham              ,CE104FB,New Construction Conversion and Renovation,0,B1,Design and Supervision - Consultants Fee,"11,924.00",31/05/2013,C,HYDER CONSULTING (UK) LTD     
157,,,Strategic corridor Mitcham              ,CE104FB,New Construction Conversion and Renovation,0,B1,Design and Supervision - Consultants Fee,"22,346.39",24/06/2013,C,HYDER CONSULTING (UK) LTD     
158,,,Accesibility Programme                  ,CE104FD,New Construction Conversion and Renovation,0,B4,Site Works - Contractor,966.8,31/05/2013,C,FM CONWAY LTD                 
159,,,Morden Town Centre                      ,CE104FK,New Construction Conversion and Renovation,0,B1,Design and Supervision - Consultants Fee,"9,372.00",24/06/2013,C,HYDER CONSULTING (UK) LTD     
160,,,School & Road Safety Campaigns          ,CE104RC,Other Capital Expenditure,0,E4,TFL Other,"1,250.00",07/06/2013,C,MOTOR CYCLE INDUSTRY ASSOC.LTD
161,,,Bikeability cycle training Pro          ,CE104RG,Other Capital Expenditure,0,E3,Miscellaneous Capital Expenditure,"1,100.00",19/06/2013,C,DYNAMIC INITIATIVES           
162,,,TFL Slippage - Corridors&Neigh          ,CE104RK,New Construction Conversion and Renovation,0,B4,Site Works - Contractor,"150,000.00",31/05/2013,C,FM CONWAY LTD                 
163,,,Improved parking- shop parades          ,CE132FA,New Construction Conversion and Renovation,0,B4,Site Works - Contractor,"2,000.00",10/06/2013,C,FM CONWAY LTD                 
164,,,Civic Centre refurbishment              ,CF001AB,Vehicles Plant Equipment and Machinery,0,D4,Specialist Furniture,"2,161.08",21/05/2013,C,UNIQUE OFFICE SOLUTIONS LTD   
165,,,Civic Centre refurbishment              ,CF001AB,Vehicles Plant Equipment and Machinery,0,D4,Specialist Furniture,"2,510.00",21/05/2013,C,UNIQUE OFFICE SOLUTIONS LTD   
166,,,Civic Centre refurbishment              ,CF001AB,Vehicles Plant Equipment and Machinery,0,D4,Specialist Furniture,"5,488.00",21/05/2013,C,UNIQUE OFFICE SOLUTIONS LTD   
167,,,Civic Centre Windows                    ,CF001AK,New Construction Conversion and Renovation,0,B4,Site Works - Contractor,"16,240.92",07/05/2013,C,BOWATER BUILDING PRODUCTS LTD 
168,,,Civic Centre Windows                    ,CF001AK,New Construction Conversion and Renovation,0,B4,Site Works - Contractor,"227,360.40",30/05/2013,C,HAZLEMERE WINDOW CO LIMITED   
169,,,Civic Centre Windows                    ,CF001AK,Vehicles Plant Equipment and Machinery,0,D4,Specialist Furniture,"8,000.00",24/05/2013,C,UNIQUE OFFICE SOLUTIONS LTD   
170,,,Energy Utility Invest to Save           ,CF002SA,New Construction Conversion and Renovation,0,B4,Site Works - Contractor,"32,472.28",10/05/2013,C,COFELY LIMITED                
171,,,St Ann's - Targeted Capital             ,CS001DA,New Construction Conversion and Renovation,0,B6,Site Works - Other Costs,"1,633.00",31/05/2013,C,PROTECFIRE DETECTION PLC      
172,,,Aragon expansion                        ,CS008AA,New Construction Conversion and Renovation,0,B1,Design and Supervision - Consultants Fee,"1,439.41",22/07/2013,C,EC HARRIS LLP                 
173,,,Aragon expansion                        ,CS008AA,New Construction Conversion and Renovation,0,B4,Site Works - Contractor,"65,824.13",31/05/2013,C,THOMAS SINDEN CONSTRUCTION LTD
174,,,St Mary's expansion                     ,CS008RA,New Construction Conversion and Renovation,0,B1,Design and Supervision - Consultants Fee,"13,943.00",04/06/2013,C,NPS PROPERTY CONSULTANTS LTD  
175,,,St Mary's expansion                     ,CS008RA,New Construction Conversion and Renovation,0,B2,Design and Supervision - Site Surveys,680,06/06/2013,C,RICHARD GRAVES ASSOCIATES     
176,,,St Mary's expansion                     ,CS008RA,New Construction Conversion and Renovation,0,B2,Design and Supervision - Site Surveys,700,06/06/2013,C,RICHARD GRAVES ASSOCIATES     
177,,,St Mary's expansion                     ,CS008RA,New Construction Conversion and Renovation,0,B4,Site Works - Contractor,"24,541.64",28/05/2013,C,R DURTNELL & SONS LTD         
178,,,St Mary's expansion                     ,CS008RA,New Construction Conversion and Renovation,0,B6,Site Works - Other Costs,"5,734.33",21/06/2013,C,UK POWER NETWORKS (OPERATIONS)
179,,,All Saints/ South Wim YCC exp           ,CS008SB,New Construction Conversion and Renovation,0,B5,Site Works - Suppliers,972.66,31/05/2013,C,MELRAY LIMITED                
180,,,Cranmer expansion                       ,CS010AA,New Construction Conversion and Renovation,0,B1,Design and Supervision - Consultants Fee,"18,105.00",31/05/2013,C,ATKINS LIMITED                
181,,,Cranmer expansion                       ,CS010AA,New Construction Conversion and Renovation,0,B4,Site Works - Contractor,"78,976.00",04/06/2013,C,WILLMOTT DIXON CONSTRUCT'N LTD
182,,,Hollymount Permanent Expansion          ,CS011AA,Vehicles Plant Equipment and Machinery,0,D3,Equipment,"2,852.00",29/05/2013,C,ATOMWIDE LTD                  
183,,,Joseph Hood Permanent Expansn           ,CS012AA,New Construction Conversion and Renovation,0,B4,Site Works - Contractor,"80,740.00",07/06/2013,C,GEE CONSTRUCTION LTD          
184,,,Garden PCP                              ,CS013AA,New Construction Conversion and Renovation,0,B4,Site Works - Contractor,"17,858.78",24/06/2013,C,GEE CONSTRUCTION LTD          
185,,,Garden PCP                              ,CS013AA,Vehicles Plant Equipment and Machinery,0,D3,Equipment,"3,928.00",12/06/2013,C,ATOMWIDE LTD                  
186,,,Gorringe Park expansion                 ,CS018AB,New Construction Conversion and Renovation,0,B4,Site Works - Contractor,"92,000.00",05/06/2013,C,GEE CONSTRUCTION LTD          
187,,,Hillcross School Expansion              ,CS020AC,New Construction Conversion and Renovation,0,B1,Design and Supervision - Consultants Fee,"4,540.00",31/05/2013,C,STACE LLP                     
188,,,Hillcross School Expansion              ,CS020AC,New Construction Conversion and Renovation,0,B1,Design and Supervision - Consultants Fee,"26,222.00",24/05/2013,C,CURL LA TOURELLE ARCHITECTS   
189,,,Merton Abbey Temp Accomodation          ,CS022AC,New Construction Conversion and Renovation,0,B2,Design and Supervision - Site Surveys,"1,547.38",31/05/2013,C,KEEGANS LIMITED               
190,,,Pelham School Expansion                 ,CS023AC,New Construction Conversion and Renovation,0,B1,Design and Supervision - Consultants Fee,"5,000.00",31/05/2013,C,STACE LLP                     
191,,,Pelham School Expansion                 ,CS023AC,New Construction Conversion and Renovation,0,B2,Design and Supervision - Site Surveys,"1,090.00",13/05/2013,C,DF CLARK BIONOMIQUE LTD       
192,,,Poplar Permanent Expansion              ,CS034AB,New Construction Conversion and Renovation,0,B2,Design and Supervision - Site Surveys,500.79,24/05/2013,C,JMP CONSULTANTS LTD           
193,,,Poplar Permanent Expansion              ,CS034AB,New Construction Conversion and Renovation,0,B2,Design and Supervision - Site Surveys,"1,036.71",11/06/2013,C,JMP CONSULTANTS LTD           
194,,,Poplar Permanent Expansion              ,CS034AB,New Construction Conversion and Renovation,0,B2,Design and Supervision - Site Surveys,"2,189.75",31/05/2013,C,KEEGANS LIMITED               
195,,,Holy Trinity Expansion                  ,CS044RA,New Construction Conversion and Renovation,0,B1,Design and Supervision - Consultants Fee,512.39,20/06/2013,C,CURL LA TOURELLE ARCHITECTS   
196,,,Singlegate expansion                    ,CS049AA,New Construction Conversion and Renovation,0,B1,Design and Supervision - Consultants Fee,"15,870.00",31/05/2013,C,ATKINS LIMITED                
197,,,Singlegate expansion                    ,CS049AA,New Construction Conversion and Renovation,0,B4,Site Works - Contractor,"10,000.00",28/05/2013,C,MOY CONSTRUCTION CO LTD       
198,,,Wimbledon Park expansion                ,CS050AA,New Construction Conversion and Renovation,0,B1,Design and Supervision - Consultants Fee,"1,062.00",31/05/2013,C,SYNERGY CPC LLP               
199,,,Wimbledon Park expansion                ,CS050AA,New Construction Conversion and Renovation,0,B4,Site Works - Contractor,"206,491.29",07/06/2013,C,GEE CONSTRUCTION LTD          
200,,,Disaster recovery                       ,CT003EA,Other Capital Expenditure,0,E3,Miscellaneous Capital Expenditure,"5,313.00",09/06/2013,C,BRITISH TELECOMMUNICATIONS PLC
201,,,IT Equipment                            ,CT006EA,Vehicles Plant Equipment and Machinery,0,D3,Equipment,"1,168.00",17/06/2013,C,COOLSPIRIT LIMITED            
202,,,IT Equipment                            ,CT006EA,Other Capital Expenditure,0,E3,Miscellaneous Capital Expenditure,"1,897.00",19/06/2013,C,VIGLEN LIMITED                
203,,,IT Equipment                            ,CT006EA,Other Capital Expenditure,0,E3,Miscellaneous Capital Expenditure,"2,397.00",19/06/2013,C,VIGLEN LIMITED                
204,,,IT Equipment                            ,CT006EA,Other Capital Expenditure,0,E3,Miscellaneous Capital Expenditure,"2,500.00",19/06/2013,C,VIGLEN LIMITED                
205,,,IT Equipment                            ,CT006EA,Other Capital Expenditure,0,E3,Miscellaneous Capital Expenditure,"3,160.00",19/06/2013,C,VIGLEN LIMITED                
206,,,Stability Networks                      ,CT012ED,Other Capital Expenditure,0,E3,Miscellaneous Capital Expenditure,"10,440.00",20/05/2013,C,TRUSTMARQUE SOLUTIONS         
207,,,Cloud Computing - Cap Ambition          ,CT013EA,Other Capital Expenditure,0,E3,Miscellaneous Capital Expenditure,"1,980.00",11/12/2012,C,EXFO EUROPE                   
208,Central Services,Council tax collection,Local Taxation Services,E02100,Supplies & Services           ,Services                      ,DF09,Miscellaneous Fees,"2,500.00",13/06/2013,R,LOVE WIMBLEDON BUS.IMP.DIST   
209,Central Services,Council tax collection,Local Taxation Services,E02100,Supplies & Services           ,Services                      ,DF11,Counsel's fees,705,24/06/2013,R,WELBECK LAW LLP               
210,Central Services,Council tax collection,Local Taxation Services,E02100,Third Party Payments          ,Private Contractors           ,EH01,Miscellaneous Contrct Services,621.57,01/03/2012,R,COMMERCIAL COLLECTION SERVICES
211,Central Services,Council tax collection,Local Taxation Services,E02100,Third Party Payments          ,Private Contractors           ,EH01,Miscellaneous Contrct Services,833.04,01/01/2013,R,COMMERCIAL COLLECTION SERVICES
212,Central Services,Council tax collection,Local Taxation Services,E02100,Third Party Payments          ,Private Contractors           ,EH01,Miscellaneous Contrct Services,892.13,01/02/2013,R,COMMERCIAL COLLECTION SERVICES
213,Central Services,Council tax collection,Local Taxation Services,E02100,Third Party Payments          ,Private Contractors           ,EH01,Miscellaneous Contrct Services,"1,424.32",01/05/2013,R,COMMERCIAL COLLECTION SERVICES
214,Housing Services,HB Administration,Benefits Administration,E02120,Supplies & Services           ,Comms and Computing           ,DG09,Computer Purchases - Misc,"4,462.94",10/06/2013,R,CIVICA UK LIMITED             
215,Central Services,SupS Payroll,Payroll,E02140,Supplies & Services           ,Services                      ,DF03,Consultants,"2,525.00",25/06/2013,R,MARKS AND SPENCER GIFT VOUCHER
216,Central Services,SupS Pensions,Pensions,E02160,Supplies & Services           ,Comms and Computing           ,DG02,Software Licences,"39,258.97",18/06/2013,R,HEYWOOD                       
217,Central Services,SupS DOF,AD Customer Services,E02180,Employees                     ,Indirect Employee Expenses    ,AB57,External Training Costs,"1,000.00",03/06/2013,R,HBINFO LTD                    
218,Central Services,SupS Facilities,Civic Centre,E02222,Premises Related Expenditure  ,RepairsAlterations&MtceOfBldgs,BA29,Build Maint Mgt Fees,"1,500.00",15/05/2013,R,COFELY LIMITED                
219,Central Services,SupS Facilities,Civic Centre,E02222,Premises Related Expenditure  ,Cleaning and Domestic Supplies,BH01,Cleaning Materials,504,09/05/2013,R,GREENHAM TRADING LTD          
220,Central Services,SupS Facilities,Civic Centre,E02222,Premises Related Expenditure  ,Cleaning and Domestic Supplies,BH01,Cleaning Materials,504,11/06/2013,R,GREENHAM                      
221,Central Services,SupS Facilities,Civic Centre,E02222,Premises Related Expenditure  ,Cleaning and Domestic Supplies,BH03,Cleaning Services,819.47,31/05/2013,R,BIRKIN CLEANING SERVICES LTD  
222,Central Services,SupS Facilities,Civic Centre,E02222,Premises Related Expenditure  ,Cleaning and Domestic Supplies,BH03,Cleaning Services,"1,199.41",31/05/2013,R,BIRKIN CLEANING SERVICES LTD  
223,Central Services,SupS Facilities,Civic Centre,E02222,Premises Related Expenditure  ,Cleaning and Domestic Supplies,BH03,Cleaning Services,"1,215.98",31/05/2013,R,BIRKIN CLEANING SERVICES LTD  
224,Central Services,SupS Facilities,Civic Centre,E02222,Premises Related Expenditure  ,Cleaning and Domestic Supplies,BH03,Cleaning Services,"1,395.29",31/05/2013,R,BIRKIN CLEANING SERVICES LTD  
225,Central Services,SupS Facilities,Civic Centre,E02222,Premises Related Expenditure  ,Cleaning and Domestic Supplies,BH03,Cleaning Services,"1,464.69",31/05/2013,R,BIRKIN CLEANING SERVICES LTD  
226,Central Services,SupS Facilities,Civic Centre,E02222,Premises Related Expenditure  ,Cleaning and Domestic Supplies,BH03,Cleaning Services,"1,511.31",31/05/2013,R,BIRKIN CLEANING SERVICES LTD  
227,Central Services,SupS Facilities,Civic Centre,E02222,Premises Related Expenditure  ,Cleaning and Domestic Supplies,BH03,Cleaning Services,"1,642.40",31/05/2013,R,BIRKIN CLEANING SERVICES LTD  
228,Central Services,SupS Facilities,Civic Centre,E02222,Premises Related Expenditure  ,Cleaning and Domestic Supplies,BH03,Cleaning Services,"3,035.93",31/05/2013,R,BIRKIN CLEANING SERVICES LTD  
229,Central Services,SupS Facilities,Civic Centre,E02222,Premises Related Expenditure  ,Cleaning and Domestic Supplies,BH03,Cleaning Services,"6,473.18",31/05/2013,R,BIRKIN CLEANING SERVICES LTD  
230,Central Services,SupS Facilities,Civic Centre,E02222,Supplies & Services           ,Equip Furniture/Materials     ,DA01,Equipment - R & M,"1,925.00",04/06/2013,R,UNIQUE OFFICE SOLUTIONS LTD   
231,Central Services,SupS Facilities,Civic Centre,E02222,Third Party Payments          ,Private Contractors           ,EH10,Contract Payments,"3,856.30",24/05/2013,R,ISS COLLECTIONS LTD           
232,Central Services,SupS Facilities,Gifford House,E02223,Premises Related Expenditure  ,Cleaning and Domestic Supplies,BH01,Cleaning Materials,504,28/05/2013,R,GREENHAM TRADING LTD          
233,Central Services,SupS Facilities,Facilities,E02231,Premises Related Expenditure  ,RepairsAlterations&MtceOfBldgs,BA90,Water Hygiene,"14,734.86",24/05/2013,R,COFELY LIMITED                
234,Central Services,SupS Facilities,Facilities,E02231,Premises Related Expenditure  ,RepairsAlterations&MtceOfBldgs,BA90,Water Hygiene,"20,490.40",24/05/2013,R,COFELY LIMITED                
235,Central Services,SupS Facilities,Facilities,E02231,Supplies & Services           ,Services                      ,DF09,Miscellaneous Fees,966,20/05/2013,R,STARK SOFTWARE INTERNATIONAL  
236,Central Services,SupS Facilities,Facilities,E02231,Supplies & Services           ,Services                      ,DF09,Miscellaneous Fees,"2,995.00",20/05/2013,R,STARK SOFTWARE INTERNATIONAL  
237,Central Services,SupS Facilities,Facilities,E02231,Supplies & Services           ,Services                      ,DF09,Miscellaneous Fees,"5,578.19",28/03/2013,R,STARK SOFTWARE INTERNATIONAL  
238,Central Services,SupS Facilities,Facilities,E02231,Supplies & Services           ,Services                      ,DF09,Miscellaneous Fees,"10,746.00",28/03/2013,R,STARK SOFTWARE INTERNATIONAL  
239,Central Services,SupS Facilities,Corporate Services Buildings,E02240,Premises Related Expenditure  ,RepairsAlterations&MtceOfBldgs,BA01,DDM - General Building,589.2,14/06/2013,R,SYMBIO -(REF 8500)            
240,Central Services,SupS Facilities,Corporate Services Buildings,E02240,Premises Related Expenditure  ,RepairsAlterations&MtceOfBldgs,BA01,DDM - General Building,"2,013.71",23/04/2013,R,NETWORK BLINDS LIMITED        
241,Central Services,SupS Facilities,Corporate Services Buildings,E02240,Premises Related Expenditure  ,RepairsAlterations&MtceOfBldgs,BA03,DDM - Mechanical,972,21/05/2013,R,COFELY LIMITED                
242,Central Services,SupS Facilities,Corporate Services Buildings,E02240,Premises Related Expenditure  ,RepairsAlterations&MtceOfBldgs,BA05,DDM - Electrical,"1,064.56",29/05/2013,R,DATA TECHNIQUES               
243,Central Services,SupS Facilities,Corporate Services Buildings,E02240,Premises Related Expenditure  ,RepairsAlterations&MtceOfBldgs,BA05,DDM - Electrical,"1,594.50",28/01/2013,R,FIRST CHOICE FACILITIES PLC   
244,Central Services,SupS Facilities,Corporate Services Buildings,E02240,Premises Related Expenditure  ,RepairsAlterations&MtceOfBldgs,BA05,DDM - Electrical,"5,368.05",31/05/2013,R,ADT FIRE & SECURITY PLC       
245,Central Services,SupS Facilities,Corporate Services Buildings,E02240,Premises Related Expenditure  ,Energy Costs                  ,BB02,Electricity,859.9,01/05/2013,R,EDF ENERGY 1 LIMITED          
246,Central Services,SupS Facilities,Corporate Services Buildings,E02240,Premises Related Expenditure  ,Energy Costs                  ,BB02,Electricity,"12,479.12",08/05/2013,R,SCOTTISHPOWER                 
247,Central Services,SupS Facilities,Corporate Services Buildings,E02240,Premises Related Expenditure  ,Energy Costs                  ,BB02,Electricity,"13,026.56",17/04/2013,R,KENT COUNTY COUNCIL           
248,Central Services,SupS Facilities,Corporate Services Buildings,E02240,Premises Related Expenditure  ,Energy Costs                  ,BB03,Gas (incl. Butane),"-1,787.87",01/02/2013,R,KENT COUNTY COUNCIL           
249,Central Services,SupS Facilities,Corporate Services Buildings,E02240,Premises Related Expenditure  ,Energy Costs                  ,BB03,Gas (incl. Butane),-541.97,28/05/2013,R,KENT COUNTY COUNCIL           
250,Central Services,SupS Facilities,Corporate Services Buildings,E02240,Premises Related Expenditure  ,Energy Costs                  ,BB03,Gas (incl. Butane),541.97,26/04/2013,R,KENT COUNTY COUNCIL           
251,Central Services,SupS Facilities,Corporate Services Buildings,E02240,Premises Related Expenditure  ,Energy Costs                  ,BB03,Gas (incl. Butane),672.19,28/05/2013,R,KENT COUNTY COUNCIL           
252,Central Services,SupS Facilities,Corporate Services Buildings,E02240,Premises Related Expenditure  ,Energy Costs                  ,BB03,Gas (incl. Butane),"1,822.38",01/02/2013,R,KENT COUNTY COUNCIL           
253,Central Services,SupS Facilities,Corporate Services Buildings,E02240,Premises Related Expenditure  ,Energy Costs                  ,BB03,Gas (incl. Butane),"11,498.51",25/05/2013,R,KENT COUNTY COUNCIL           
254,Central Services,SupS Facilities,Corporate Services Buildings,E02240,Premises Related Expenditure  ,Energy Costs                  ,BB03,Gas (incl. Butane),"13,050.66",25/05/2013,R,KENT COUNTY COUNCIL           
255,Central Services,SupS Facilities,Corporate Services Buildings,E02240,Premises Related Expenditure  ,Energy Costs                  ,BB03,Gas (incl. Butane),"13,072.82",25/05/2013,R,KENT COUNTY COUNCIL           
256,Central Services,SupS Facilities,Corporate Services Buildings,E02240,Premises Related Expenditure  ,Energy Costs                  ,BB03,Gas (incl. Butane),"14,895.60",01/02/2013,R,KENT COUNTY COUNCIL           
257,Central Services,SupS Facilities,Corporate Services Buildings,E02240,Premises Related Expenditure  ,Water Services                ,BE01,Use of Water (Metered),"1,133.21",31/05/2013,R,SUTTON AND EAST SURREY WATER  
258,Cultural Env Reg&Plan Services,Parks & Open Spaces,E & R Buildings,E02344,Premises Related Expenditure  ,RepairsAlterations&MtceOfBldgs,BA01,DDM - General Building,"1,310.00",10/06/2013,R,COBSEN-DAVIES ROOFING (LOND)LT
259,Adult Social Care,PS u65 Day Care,C & H Buildings,E02345,Premises Related Expenditure  ,RepairsAlterations&MtceOfBldgs,BA01,DDM - General Building,540.2,29/05/2013,R,COFELY LIMITED                
260,Cultural Env Reg&Plan Services,Parks & Open Spaces,Leisure Buildings,E02350,Premises Related Expenditure  ,RepairsAlterations&MtceOfBldgs,BA03,DDM - Mechanical,574,19/06/2013,R,BLOUNT SHUTTERS LIMITED       
261,Cultural Env Reg&Plan Services,Parks & Open Spaces,Leisure Buildings,E02350,Premises Related Expenditure  ,RepairsAlterations&MtceOfBldgs,BA05,DDM - Electrical,688,22/06/2013,R,CROWN SECURITY SYSTEMS LTD    
262,Cultural Env Reg&Plan Services,Parks & Open Spaces,Leisure Buildings,E02350,Premises Related Expenditure  ,RepairsAlterations&MtceOfBldgs,BA05,DDM - Electrical,"1,453.50",15/01/2013,R,COFELY LIMITED                
263,Central Services,SupS DOF,BUSINESS PARTNERS,E04059,Employees                     ,Direct Employee Expenses      ,AA17,Agency Staff & Casual Paymts,"3,875.00",01/06/2013,R,REDACTED
264,Central Services,SupS DOF,BUSINESS PARTNERS,E04059,Employees                     ,Direct Employee Expenses      ,AA17,Agency Staff & Casual Paymts,"3,925.00",01/06/2013,R,REDACTED
265,Central Services,SupS DOF,Director of Corporate Services,E04060,Supplies & Services           ,Services                      ,DF11,Counsel's fees,688,07/05/2013,R,REDACTED
266,Central Services,SupS DOF,Director of Corporate Services,E04060,Supplies & Services           ,Services                      ,DF11,Counsel's fees,790,31/05/2013,R,REDACTED
267,Central Services,SupS DOF,AD RESOURCES,E04061,Employees                     ,Direct Employee Expenses      ,AA17,Agency Staff & Casual Paymts,"5,250.00",30/05/2013,R,REDACTED
268,Central Services,SupS DOF,AD RESOURCES,E04061,Employees                     ,Direct Employee Expenses      ,AA17,Agency Staff & Casual Paymts,"6,000.00",30/05/2013,R,REDACTED
269,Central Services,SupS DOF,AD RESOURCES,E04061,Supplies & Services           ,Services                      ,DF03,Consultants,"6,900.00",04/06/2013,R,PUBLIC SECTOR CONSULTANTS     
270,Central Services,SupS DOF,AD RESOURCES,E04061,Supplies & Services           ,Services                      ,DF03,Consultants,"9,134.85",12/06/2013,R,UNISERVE CONSULTING LIMITED   
271,Central Services,SupS Audit and Fraud,Internal Audit&Service Review,E05101,Supplies & Services           ,Services                      ,DF58,Audit Fee,"4,620.00",08/04/2013,R,GRANT THORNTON UK LLP         
272,Housing Services,Fraud Investigation,Benefits Investigation Section,E05103,Supplies & Services           ,Services                      ,DF11,Counsel's fees,"1,000.00",09/05/2013,R,REDACTED
273,Central Services,SupS  Risk and Insurance,Insurance Premiums & Funding,E05161,Supplies & Services           ,Services                      ,DF74,Insurance Premiums,"1,949.46",12/06/2013,R,ZURICH INSURANCE COMPANY      
274,Central Services,SupS  Risk and Insurance,Insurance Premiums & Funding,E05161,Supplies & Services           ,Services                      ,DF74,Insurance Premiums,"13,402.97",30/04/2013,R,JLT SPECIALTY LIMITED         
275,Central Services,SupS  Risk and Insurance,Insurance Premiums & Funding,E05161,Supplies & Services           ,Services                      ,DF74,Insurance Premiums,"54,340.41",23/05/2013,R,JLT SPECIALTY LIMITED         
276,Central Services,SupS Corporate Finance,Corporate Accountancy,E06209,Supplies & Services           ,Services                      ,DF58,Audit Fee,"5,250.00",22/05/2013,R,ERNST & YOUNG LLP             
277,Central Services,SupS Corporate Finance,Corporate Accountancy,E06209,Supplies & Services           ,Services                      ,DF58,Audit Fee,"57,795.00",22/05/2013,R,ERNST & YOUNG LLP             
278,Central Services,SupS Strategic Finance,Business Planning,E06221,Supplies & Services           ,Comms and Computing           ,DG07,Computer Software,658.35,31/05/2013,R,SOFTCAT LTD                   
279,Central Services,SupS Strategic Finance,Treasury & Insurance,E06222,Employees                     ,Direct Employee Expenses      ,AA17,Agency Staff & Casual Paymts,"7,990.00",06/06/2013,R,REDACTED
280,Central Services,GENERATED ACCOUNT,Parking Cash Collect'n Contrct,E06225,Third Party Payments          ,Private Contractors           ,EH02,Miscellaneous Hired Services,"1,066.17",31/05/2013,R,BANKING AUTOMATION LTD        
281,Central Services,GENERATED ACCOUNT,Parking Cash Collect'n Contrct,E06225,Third Party Payments          ,Private Contractors           ,EH02,Miscellaneous Hired Services,"11,224.00",31/05/2013,R,BANKING AUTOMATION LTD        
282,Central Services,GENERATED ACCOUNT,Parking Cash Collect'n Contrct,E06225,Third Party Payments          ,Private Contractors           ,EH02,Miscellaneous Hired Services,"12,058.37",30/04/2013,R,BANKING AUTOMATION LTD        
283,Central Services,GENERATED ACCOUNT,Establishments' Cash Collect'n,E06226,Third Party Payments          ,Private Contractors           ,EH02,Miscellaneous Hired Services,583.7,31/05/2013,R,LOOMIS UK LTD                 
284,Central Services,SupS DOF,Service Accountancy,E06227,Employees                     ,Direct Employee Expenses      ,AA17,Agency Staff & Casual Paymts,"4,140.00",06/06/2013,R,REDACTED
285,Central Services,SupS DOF,Service Accountancy,E06227,Transfer Payments             ,Housing Benefits              ,FA50,Burial and Cremation,"1,053.50",27/06/2012,R,F.W. PAINE                    
286,Central Services,SupS DOF,Service Accountancy,E06227,Transfer Payments             ,Housing Benefits              ,FA50,Burial and Cremation,"1,145.50",28/05/2013,R,F.W. PAINE                    
287,Central Services,SupS DOF,Service Accountancy,E06227,Transfer Payments             ,Housing Benefits              ,FA50,Burial and Cremation,"1,145.50",30/05/2013,R,F.W. PAINE                    
288,Central Services,SupS DOF,Service Accountancy,E06227,Transfer Payments             ,Housing Benefits              ,FA50,Burial and Cremation,"1,145.50",21/05/2013,R,F.W. PAINE                    
289,Central Services,SupS Legal,AD CORPORATE GOVERNANCE,E10279,Employees                     ,Indirect Employee Expenses    ,AB57,External Training Costs,675,20/05/2013,R,LONDON AUDIT GROUP            
290,Central Services,SupS Legal,Legal Services,E10282,Supplies & Services           ,Services                      ,DF28,Court Fees,700,05/06/2013,R,REDACTED
291,Central Services,SupS Legal,Legal Services,E10282,Supplies & Services           ,Services                      ,DF28,Court Fees,745,27/06/2013,R,REDACTED
292,Central Services,SupS Legal,Legal Services,E10282,Supplies & Services           ,Services                      ,DF28,Court Fees,"1,407.73",27/06/2013,R,REDACTED
293,Central Services,SupS Legal,Legal Services,E10282,Supplies & Services           ,Services                      ,DF28,Court Fees,"1,900.00",27/06/2013,R,REDACTED
294,Central Services,SupS Legal,Legal Services,E10282,Supplies & Services           ,Services                      ,DF28,Court Fees,"2,225.00",05/06/2013,R,REDACTED
295,Central Services,SupS Legal,Legal Services,E10282,Supplies & Services           ,Services                      ,DF28,Court Fees,"2,225.00",05/06/2013,R,REDACTED
296,Central Services,Land Charges,Land Charges,E10283,Supplies & Services           ,Prntng Stnry Gen Off Exp      ,DE30,General Office Expense        ,650,29/04/2013,R,LIGHTSPEED BUSINESS SOLUTIONS 
297,Central Services,SupS Legal,Shared Legal Service,E10288,Employees                     ,Direct Employee Expenses      ,AA17,Agency Staff & Casual Paymts,"-7,500.00",06/06/2013,R,REDACTED
298,Central Services,SupS Legal,Shared Legal Service,E10288,Employees                     ,Direct Employee Expenses      ,AA17,Agency Staff & Casual Paymts,"7,500.00",06/06/2013,R,REDACTED
299,Central Services,SupS Legal,Shared Legal Service,E10288,Employees                     ,Indirect Employee Expenses    ,AB57,External Training Costs,650,03/04/2013,R,CENTRAL LAW TRAINING LTD      
300,Central Services,SupS Legal,Shared Legal Service,E10288,Supplies & Services           ,Services                      ,DF09,Miscellaneous Fees,878.83,31/05/2013,R,WINCANTON RECORDS MANAGEMENT  
301,Central Services,SupS Legal,Richmond Legal,E10289,Supplies & Services           ,Services                      ,DF11,Counsel's fees,500,10/05/2013,R,REDACTED
302,Central Services,SupS Legal,Richmond Legal,E10289,Supplies & Services           ,Services                      ,DF11,Counsel's fees,500,03/06/2013,R,REDACTED
303,Central Services,SupS Legal,Richmond Legal,E10289,Supplies & Services           ,Services                      ,DF11,Counsel's fees,600,13/05/2013,R,REDACTED
304,Central Services,SupS Legal,Richmond Legal,E10289,Supplies & Services           ,Services                      ,DF11,Counsel's fees,920,16/04/2013,R,REDACTED
305,Central Services,SupS Legal,Richmond Legal,E10289,Supplies & Services           ,Services                      ,DF11,Counsel's fees,"1,070.00",21/05/2013,R,REDACTED
306,Central Services,SupS Legal,Richmond Legal,E10289,Supplies & Services           ,Services                      ,DF11,Counsel's fees,"1,900.00",29/05/2013,R,REDACTED
307,Central Services,SupS Legal,Richmond Legal,E10289,Supplies & Services           ,Services                      ,DF11,Counsel's fees,"2,625.00",10/04/2013,R,REDACTED
308,Central Services,SupS Legal,Richmond Legal,E10289,Supplies & Services           ,Services                      ,DF11,Counsel's fees,"6,135.00",21/05/2013,R,REDACTED
309,Central Services,SupS Legal,Richmond Legal,E10289,Supplies & Services           ,Services                      ,DF11,Counsel's fees,"8,000.00",22/05/2013,R,REDACTED
310,Central Services,SupS Legal,Richmond Legal,E10289,Supplies & Services           ,Services                      ,DF14,Doctors and other fees,600,26/04/2013,R,SECECETRA EXPERT SERVICES     
311,Central Services,SupS Legal,Richmond Legal,E10289,Supplies & Services           ,Services                      ,DF95,Services from Provider,"3,494.00",31/05/2013,R,REDACTED
312,Central Services,SupS Legal,Richmond Legal,E10289,Supplies & Services           ,Services                      ,DF95,Services from Provider,"4,777.25",05/06/2013,R,REDACTED
313,Central Services,SupS Legal,Richmond Legal,E10289,Supplies & Services           ,Services                      ,DF95,Services from Provider,"5,437.50",26/04/2013,R,FEATHERSTONE LEIGH            
314,Central Services,SupS IT,AD Business Improvement,E14358,Employees                     ,Direct Employee Expenses      ,AA96,SALARY SACRIFICE (TEACHERS),833.33,03/06/2013,R,F.W.EVANS CYCLES (UK) LTD.    
315,Central Services,SupS IT,Corp Saving-Print Strategy,E14359,Supplies & Services           ,Equip Furniture/Materials     ,DA77,Photocopier Rental,"5,115.66",28/05/2013,R,ALTODIGITAL NETWORKS          
316,Central Services,SupS IT,Corp Saving-Print Strategy,E14359,Supplies & Services           ,Equip Furniture/Materials     ,DA77,Photocopier Rental,"29,750.00",28/05/2013,R,ALTODIGITAL NETWORKS          
317,Central Services,SupS IT,Corp Saving-Print Strategy,E14359,Supplies & Services           ,Prntng Stnry Gen Off Exp      ,DE06,Multi-Functional Printers     ,"37,698.87",28/05/2013,R,ALTODIGITAL NETWORKS          
318,Central Services,SupS IT,BI IT Projects,E14360,Employees                     ,Direct Employee Expenses      ,AA17,Agency Staff & Casual Paymts,975.03,07/06/2013,R,NUMBER 10 INTERIM LTD         
319,Central Services,SupS IT,BI IT Projects,E14360,Employees                     ,Direct Employee Expenses      ,AA17,Agency Staff & Casual Paymts,975.03,17/06/2013,R,NUMBER 10 INTERIM LTD         
320,Central Services,SupS IT,BI IT Projects,E14360,Employees                     ,Direct Employee Expenses      ,AA17,Agency Staff & Casual Paymts,"1,300.04",14/06/2013,R,NUMBER 10 INTERIM LTD         
321,Central Services,SupS IT,BI IT Projects,E14360,Employees                     ,Direct Employee Expenses      ,AA17,Agency Staff & Casual Paymts,"1,625.05",07/05/2013,R,NUMBER 10 INTERIM LTD         
322,Central Services,SupS IT,BI IT Projects,E14360,Employees                     ,Direct Employee Expenses      ,AA17,Agency Staff & Casual Paymts,"1,625.05",17/05/2013,R,NUMBER 10 INTERIM LTD         
323,Central Services,SupS IT,BI IT Projects,E14360,Employees                     ,Direct Employee Expenses      ,AA17,Agency Staff & Casual Paymts,"1,625.05",24/05/2013,R,NUMBER 10 INTERIM LTD         
324,Central Services,SupS IT,BI IT Projects,E14360,Employees                     ,Direct Employee Expenses      ,AA17,Agency Staff & Casual Paymts,"1,625.05",24/05/2013,R,NUMBER 10 INTERIM LTD         
325,Central Services,SupS IT,BI IT Projects,E14360,Employees                     ,Direct Employee Expenses      ,AA17,Agency Staff & Casual Paymts,"1,625.05",14/06/2013,R,NUMBER 10 INTERIM LTD         
326,Central Services,SupS IT,BI IT Projects,E14360,Employees                     ,Direct Employee Expenses      ,AA17,Agency Staff & Casual Paymts,"2,925.09",17/05/2013,R,NUMBER 10 INTERIM LTD         
327,Central Services,SupS IT,AD I&T,E14363,Employees                     ,Direct Employee Expenses      ,AA17,Agency Staff & Casual Paymts,"12,900.00",31/05/2013,R,GATENBY SANDERSON             
328,Central Services,SupS IT,Systems & Projects,E14366,Supplies & Services           ,Comms and Computing           ,DG50,Other IT Expenditure,"3,568.00",28/05/2013,R,OPEN OBJECTS SOFTWARE LTD     
329,Central Services,SupS IT,Systems & Projects,E14366,Supplies & Services           ,Comms and Computing           ,DG50,Other IT Expenditure,"7,208.20",01/03/2013,R,TEAMKNOWLEDGE LIMITED         
330,Central Services,SupS IT,Systems & Projects,E14366,Supplies & Services           ,Comms and Computing           ,DG63,Software Licences - Data,"-2,592.88",30/05/2013,R,PITNEY BOWES SOFTWARE LTD     
331,Central Services,SupS IT,Systems & Projects,E14366,Supplies & Services           ,Comms and Computing           ,DG63,Software Licences - Data,"77,573.76",30/05/2013,R,PITNEY BOWES SOFTWARE LTD     
332,Central Services,SupS IT,Operations & Telecomms,E14367,Supplies & Services           ,Comms and Computing           ,DG15,Network Maintenance,500,21/05/2013,R,LAN2LAN LIMITED               
333,Central Services,SupS IT,Operations & Telecomms,E14367,Supplies & Services           ,Comms and Computing           ,DG15,Network Maintenance,576,05/06/2013,R,AJP SOLUTIONS                 
334,Central Services,SupS IT,Operations & Telecomms,E14367,Supplies & Services           ,Comms and Computing           ,DG15,Network Maintenance,886,05/06/2013,R,AJP SOLUTIONS                 
335,Central Services,SupS IT,Operations & Telecomms,E14367,Supplies & Services           ,Comms and Computing           ,DG15,Network Maintenance,"1,092.00",21/05/2013,R,LAN2LAN LIMITED               
336,Central Services,SupS IT,Operations & Telecomms,E14367,Supplies & Services           ,Comms and Computing           ,DG15,Network Maintenance,"1,137.00",11/06/2013,R,NETCALL TELECOM LIMITED       
337,Central Services,SupS IT,Operations & Telecomms,E14367,Supplies & Services           ,Comms and Computing           ,DG15,Network Maintenance,"1,250.00",21/05/2013,R,LAN2LAN LIMITED               
338,Central Services,SupS IT,Operations & Telecomms,E14367,Supplies & Services           ,Comms and Computing           ,DG15,Network Maintenance,"2,320.00",21/05/2013,R,LAN2LAN LIMITED               
339,Central Services,SupS IT,Operations & Telecomms,E14367,Supplies & Services           ,Comms and Computing           ,DG15,Network Maintenance,"3,132.00",05/06/2013,R,AJP SOLUTIONS                 
340,Central Services,SupS IT,Operations & Telecomms,E14367,Supplies & Services           ,Comms and Computing           ,DG15,Network Maintenance,"13,326.00",21/05/2013,R,LAN2LAN LIMITED               
341,Central Services,SupS IT,Operations & Telecomms,E14367,Supplies & Services           ,Comms and Computing           ,DG54,Corporate Telephones,"1,066.68",29/05/2013,R,O2 (UK) LIMITED               
342,Central Services,SupS IT,Operations & Telecomms,E14367,Supplies & Services           ,Comms and Computing           ,DG54,Corporate Telephones,"1,066.68",29/04/2013,R,O2 (UK) LIMITED               
343,Central Services,SupS IT,Operations & Telecomms,E14367,Supplies & Services           ,Comms and Computing           ,DG54,Corporate Telephones,"2,743.02",02/06/2013,R,COLT TELECOMMUNICATIONS       
344,Central Services,SupS IT,Operations & Telecomms,E14367,Supplies & Services           ,Comms and Computing           ,DG54,Corporate Telephones,"2,787.73",09/06/2013,R,BRITISH TELECOMMUNICATIONS PLC
345,Central Services,SupS IT,Operations & Telecomms,E14367,Supplies & Services           ,Comms and Computing           ,DG54,Corporate Telephones,"4,793.06",02/06/2013,R,BRITISH TELECOMMUNICATIONS PLC
346,Central Services,SupS IT,Operations & Telecomms,E14367,Supplies & Services           ,Comms and Computing           ,DG54,Corporate Telephones,"9,813.55",04/06/2013,R,T MOBILE (UK)                 
347,Central Services,SupS IT,Operations & Telecomms,E14367,Supplies & Services           ,Comms and Computing           ,DG54,Corporate Telephones,"12,287.00",01/04/2013,R,VIRGIN MEDIA PAYMENTS LTD     
348,Central Services,SupS IT,Operations & Telecomms,E14367,Supplies & Services           ,Comms and Computing           ,DG54,Corporate Telephones,"26,617.36",29/05/2013,R,BRITISH TELECOMMUNICATIONS PLC
349,Central Services,SupS IT,Distributed Services,E14368,Supplies & Services           ,Comms and Computing           ,DG63,Software Licences - Data,"4,500.00",11/06/2013,R,FORDWAY LTD                   
350,Central Services,SupS IT,Distributed Services,E14368,Supplies & Services           ,Comms and Computing           ,DG63,Software Licences - Data,"13,153.54",20/05/2013,R,TRUSTMARQUE SOLUTIONS         
351,Central Services,SupS IT,Corp Saving-IT Consolidation,E14370,Premises Related Expenditure  ,RepairsAlterations&MtceOfBldgs,BA01,DDM - General Building,"1,222.77",31/05/2013,R,COFELY LIMITED                
352,Central Services,SupS IT,Corp Saving-IT Consolidation,E14370,Premises Related Expenditure  ,RepairsAlterations&MtceOfBldgs,BA01,DDM - General Building,"1,222.78",31/05/2013,R,COFELY LIMITED                
353,Central Services,SupS IT,Corp Saving-IT Consolidation,E14370,Premises Related Expenditure  ,RepairsAlterations&MtceOfBldgs,BA06,Repairs & Maintenance General,"1,381.60",24/05/2013,R,BIRKIN CLEANING SERVICES LTD  
354,Central Services,SupS IT,Corp Saving-IT Consolidation,E14370,Premises Related Expenditure  ,RepairsAlterations&MtceOfBldgs,BA29,Build Maint Mgt Fees,551,31/05/2013,R,EDE'S (U.K.) LTD              
355,Central Services,SupS IT,Corp Saving-IT Consolidation,E14370,Premises Related Expenditure  ,RepairsAlterations&MtceOfBldgs,BA29,Build Maint Mgt Fees,646,31/05/2013,R,EDE'S (U.K.) LTD              
356,Central Services,SupS IT,Corp Saving-IT Consolidation,E14370,Premises Related Expenditure  ,RepairsAlterations&MtceOfBldgs,BA29,Build Maint Mgt Fees,646,31/05/2013,R,EDE'S (U.K.) LTD              
357,Central Services,SupS IT,Corp Saving-IT Consolidation,E14370,Premises Related Expenditure  ,RepairsAlterations&MtceOfBldgs,BA29,Build Maint Mgt Fees,"1,149.50",31/05/2013,R,EDE'S (U.K.) LTD              
358,Central Services,SupS IT,No longer used,E14371,Supplies & Services           ,Services                      ,DF03,Consultants,"1,900.00",30/04/2013,R,REDQUADRANT LTD               
359,Central Services,SupS IT,No longer used,E14371,Supplies & Services           ,Services                      ,DF03,Consultants,"3,040.00",29/05/2013,R,REDQUADRANT LTD               
360,Central Services,SupS IT,No longer used,E14371,Supplies & Services           ,Services                      ,DF03,Consultants,"10,155.00",06/06/2013,R,V4 SERVICES LIMITED           
361,Central Services,SupS IT,Business Systems - Deptl Supt,E14377,Supplies & Services           ,Services                      ,DF03,Consultants,"1,976.00",10/06/2013,R,COMPUTER FORENSICS            
362,Cultural Env Reg&Plan Services,Mgt & Support (Env),ES Support & Development,G00070,Supplies & Services           ,Comms and Computing           ,DG50,Other IT Expenditure,"1,150.00",03/06/2013,R,KEEP BRITAIN TIDY             
363,Cultural Env Reg&Plan Services,Mgt & Support (Env),Senior Mgt. - E.S.C.,G00100,Supplies & Services           ,Services                      ,DF11,Counsel's fees,975,16/05/2013,R,REDACTED
364,Highways & Transport Services,Repair prin/oth rds not split,Walk Sheets,G00127,Third Party Payments          ,Private Contractors           ,EH56,Carriageway/Fway Maint,"7,834.25",31/05/2013,R,FM CONWAY LTD                 
365,Highways & Transport Services,Repair prin/oth rds not split,Walk Sheets,G00127,Third Party Payments          ,Private Contractors           ,EH56,Carriageway/Fway Maint,"7,872.50",18/06/2013,R,FM CONWAY LTD                 
366,Highways & Transport Services,Repair prin/oth rds not split,Walk Sheets,G00127,Third Party Payments          ,Private Contractors           ,EH56,Carriageway/Fway Maint,"8,984.31",18/06/2013,R,FM CONWAY LTD                 
367,Highways & Transport Services,Repair prin/oth rds not split,Walk Sheets,G00127,Third Party Payments          ,Private Contractors           ,EH56,Carriageway/Fway Maint,"11,967.90",18/06/2013,R,FM CONWAY LTD                 
368,Highways & Transport Services,Repair prin/oth rds not split,Walk Sheets,G00127,Third Party Payments          ,Private Contractors           ,EH56,Carriageway/Fway Maint,"17,848.74",10/06/2013,R,FM CONWAY LTD                 
369,Highways & Transport Services,Repair prin/oth rds not split,Walk Sheets,G00127,Third Party Payments          ,Private Contractors           ,EH56,Carriageway/Fway Maint,"47,855.16",06/06/2013,R,FM CONWAY LTD                 
370,Highways & Transport Services,Repair prin/oth rds not split,Walk Sheets,G00127,Third Party Payments          ,Private Contractors           ,EH56,Carriageway/Fway Maint,"100,000.00",31/05/2013,R,FM CONWAY LTD                 
371,Highways & Transport Services,Saf mtc prin/oth rds not split,Traffic Signs.,G00160,Third Party Payments          ,Private Contractors           ,EH01,Miscellaneous Contrct Services,563,18/06/2013,R,UK POWER NETWORKS (OPERATIONS)
372,Highways & Transport Services,Saf mtc prin/oth rds not split,Traffic Signs.,G00160,Third Party Payments          ,Private Contractors           ,EH01,Miscellaneous Contrct Services,563,23/05/2013,R,UK POWER NETWORKS (OPERATIONS)
373,Highways & Transport Services,Saf mtc prin/oth rds not split,Traffic Signs.,G00160,Third Party Payments          ,Private Contractors           ,EH01,Miscellaneous Contrct Services,715.7,10/06/2013,R,FM CONWAY LTD                 
374,Highways & Transport Services,Saf mtc prin/oth rds not split,Traffic Signs.,G00160,Third Party Payments          ,Private Contractors           ,EH01,Miscellaneous Contrct Services,849,18/06/2013,R,MAY GURNEY LTD T/A CARTLEDGE  
375,Highways & Transport Services,Saf mtc prin/oth rds not split,Traffic Signs.,G00160,Third Party Payments          ,Private Contractors           ,EH01,Miscellaneous Contrct Services,"1,053.42",06/06/2013,R,FM CONWAY LTD                 
376,Highways & Transport Services,Saf mtc prin/oth rds not split,Traffic Signs.,G00160,Third Party Payments          ,Private Contractors           ,EH01,Miscellaneous Contrct Services,"1,074.15",18/06/2013,R,FM CONWAY LTD                 
377,Highways & Transport Services,Saf mtc prin/oth rds not split,Traffic Signs.,G00160,Third Party Payments          ,Private Contractors           ,EH01,Miscellaneous Contrct Services,"1,917.50",31/05/2013,R,FM CONWAY LTD                 
378,Highways & Transport Services,Saf mtc prin/oth rds not split,Traffic Signs.,G00160,Third Party Payments          ,Private Contractors           ,EH01,Miscellaneous Contrct Services,"2,283.22",31/05/2013,R,MAY GURNEY LTD T/A CARTLEDGE  
379,Highways & Transport Services,Street Lighting.,Street Lighting .,G00260,Third Party Payments          ,Private Contractors           ,EH01,Miscellaneous Contrct Services,642,23/05/2013,R,UK POWER NETWORKS (OPERATIONS)
380,Highways & Transport Services,Street Lighting.,Street Lighting .,G00260,Third Party Payments          ,Private Contractors           ,EH01,Miscellaneous Contrct Services,642,18/06/2013,R,UK POWER NETWORKS (OPERATIONS)
381,Highways & Transport Services,Street Lighting.,Street Lighting .,G00260,Third Party Payments          ,Private Contractors           ,EH01,Miscellaneous Contrct Services,659,18/06/2013,R,UK POWER NETWORKS (OPERATIONS)
382,Highways & Transport Services,Street Lighting.,Street Lighting .,G00260,Third Party Payments          ,Private Contractors           ,EH01,Miscellaneous Contrct Services,"1,533.00",03/06/2013,R,UK POWER NETWORKS (OPERATIONS)
383,Highways & Transport Services,Street Lighting.,Street Lighting .,G00260,Third Party Payments          ,Private Contractors           ,EH01,Miscellaneous Contrct Services,"9,292.48",31/05/2013,R,MAY GURNEY LTD T/A CARTLEDGE  
384,Highways & Transport Services,Street Lighting.,Street Lighting .,G00260,Third Party Payments          ,Private Contractors           ,EH01,Miscellaneous Contrct Services,"13,947.98",23/05/2013,R,MAY GURNEY LTD T/A CARTLEDGE  
385,Highways & Transport Services,Off-street parking,Coombe Lane,G00292,Premises Related Expenditure  ,Rents                         ,BC01,Miscellaneous Rents,"9,562.50",21/05/2013,R,CAPITA SYMONDS LTD            
386,Highways & Transport Services,Off-street parking,Hartfield Road C P,G00294,Premises Related Expenditure  ,RepairsAlterations&MtceOfBldgs,BA06,Repairs & Maintenance General,576.9,28/05/2013,R,TEASDALE GROUP LTD            
387,Highways & Transport Services,Off-street parking,York Close CP,G00298,Premises Related Expenditure  ,Rents                         ,BC01,Miscellaneous Rents,"30,460.50",23/05/2013,R,TFL - PROPERTY                
388,Highways & Transport Services,Off-street parking,St. Georges Car Park EAST,G00300,Premises Related Expenditure  ,Rents                         ,BC01,Miscellaneous Rents,824.05,30/05/2013,R,LLOYDS BANK SF NOMINEES LTD   
389,Highways & Transport Services,Off-street parking,Morden Station,G00301,Premises Related Expenditure  ,RepairsAlterations&MtceOfBldgs,BA06,Repairs & Maintenance General,600,03/06/2013,R,TEASDALE GROUP LTD            
390,Highways & Transport Services,Off-street parking,St. Georges Car Park WEST M/S,G00302,Premises Related Expenditure  ,Energy Costs                  ,BB02,Electricity,"1,238.77",10/05/2013,R,SCOTTISHPOWER                 
391,Highways & Transport Services,Off-street parking,St. Georges Car Park WEST M/S,G00302,Premises Related Expenditure  ,Energy Costs                  ,BB02,Electricity,"1,243.30",03/06/2013,R,SCOTTISHPOWER                 
392,Highways & Transport Services,Off-street parking,St. Georges Car Park WEST M/S,G00302,Premises Related Expenditure  ,Rents                         ,BC01,Miscellaneous Rents,"2,118.86",20/05/2013,R,SACKVILLE SPF IV (GP) NO 1 LTD
393,Highways & Transport Services,Off-street parking,"St. Mks Rd, Multi Sty",G00308,Premises Related Expenditure  ,Rents                         ,BC01,Miscellaneous Rents,"1,343.15",16/04/2013,R,FISHER PROPERTY CONSULTANTS   
394,Highways & Transport Services,Off-street parking,"St. Mks Rd, Multi Sty",G00308,Premises Related Expenditure  ,Rents                         ,BC01,Miscellaneous Rents,"3,267.59",16/04/2013,R,FISHER PROPERTY CONSULTANTS   
395,Highways & Transport Services,On-street parking,On Street Parking.,G00311,Customer and client receipts  ,Fees                          ,RB55,Business Parking Permits X,"1,190.67",07/06/2013,R,FOXTONS LTD                   
396,Highways & Transport Services,Parking Enforcement not split,Civil Enforcement Officers,G00330,Premises Related Expenditure  ,Rents                         ,BC01,Miscellaneous Rents,"4,377.50",11/06/2013,R,WOODCOCK BROTHERS (WIMBLEDON) 
397,Highways & Transport Services,Parking Enforcement not split,Civil Enforcement Officers,G00330,Premises Related Expenditure  ,Rents                         ,BC01,Miscellaneous Rents,"4,377.50",11/06/2013,R,WOODCOCK BROTHERS (WIMBLEDON) 
398,Highways & Transport Services,Parking Enforcement not split,Civil Enforcement Officers,G00330,Supplies & Services           ,Equip Furniture/Materials     ,DA09,Equip-Purchases,877.5,03/06/2013,R,QUARTIX                       
399,Highways & Transport Services,Parking Enforcement not split,Civil Enforcement Officers,G00330,Supplies & Services           ,Comms and Computing           ,DG14,Telephones - Mobile,593.01,22/10/2011,R,VODAFONE CORPORATE LTD        
400,Highways & Transport Services,Parking Enforcement not split,Operational Running Costs,G00331,Supplies & Services           ,Prntng Stnry Gen Off Exp      ,DE01,External Printing,"2,889.60",07/06/2013,R,NAGELS UK LTD                 
401,Highways & Transport Services,Repair prin/oth rds not split,Flood Risk Management,G00350,Supplies & Services           ,Services                      ,DF03,Consultants,"6,369.25",05/06/2013,R,URS INFRASTRUCTURE & ENV UK LT
402,Highways & Transport Services,Transport Plg/Policy/Strategy,Trench Reinstatements Unlocate,G00389,Supplies & Services           ,Comms and Computing           ,DG61,Computer Servs Special,"-1,144.81",30/05/2013,R,PITNEY BOWES SOFTWARE LTD     
403,Highways & Transport Services,Hwys/Rds (struct) not split,Footpath Crossings.,G00390,Third Party Payments          ,Private Contractors           ,EH56,Carriageway/Fway Maint,"1,160.45",18/06/2013,R,FM CONWAY LTD                 
404,Highways & Transport Services,Hwys/Rds (struct) not split,Footpath Crossings.,G00390,Third Party Payments          ,Private Contractors           ,EH56,Carriageway/Fway Maint,"2,755.15",31/05/2013,R,FM CONWAY LTD                 
405,Highways & Transport Services,Hwys/Rds (struct) not split,Footpath Crossings.,G00390,Third Party Payments          ,Private Contractors           ,EH56,Carriageway/Fway Maint,"8,200.40",18/06/2013,R,FM CONWAY LTD                 
406,Cultural Env Reg&Plan Services,Street Clean - Not highways,Street Cleansing (Inc. Gully),G00492,Employees                     ,Indirect Employee Expenses    ,AB02,Recruitment Adverts,"1,230.00",25/06/2013,R,PENNA COMMUNICATIONS (NO 2 A/C
407,Cultural Env Reg&Plan Services,Street Clean - Not highways,Street Cleansing (Inc. Gully),G00492,Employees                     ,Indirect Employee Expenses    ,AB57,External Training Costs,"1,183.80",01/06/2013,R,EGBERT H TAYLOR & CO LTD      
408,Cultural Env Reg&Plan Services,Street Clean - Not highways,Street Cleansing (Inc. Gully),G00492,Premises Related Expenditure  ,Rents                         ,BC01,Miscellaneous Rents,955.24,23/05/2013,R,MERTON PRIORY HOMES (RENT)    
409,Cultural Env Reg&Plan Services,Street Clean - Not highways,Street Cleansing (Inc. Gully),G00492,Supplies & Services           ,Equip Furniture/Materials     ,DA08,Tools-Purchase,"1,936.70",31/05/2013,R,BELL BRUSH                    
410,Cultural Env Reg&Plan Services,Street Clean - Not highways,Street Cleansing (Inc. Gully),G00492,Supplies & Services           ,Equip Furniture/Materials     ,DA31,Waste Sacks & Bags,"1,852.20",20/05/2013,R,POLARIS PLASTICS LTD          
411,Cultural Env Reg&Plan Services,Street Clean - Not highways,Street Cleansing (Inc. Gully),G00492,Supplies & Services           ,Catering                      ,DB50,Refreshments,"2,291.25",23/05/2013,R,FACILITIES MANAGEMENT CATERING
412,Cultural Env Reg&Plan Services,Street Clean - Not highways,Street Cleansing (Inc. Gully),G00492,Supplies & Services           ,Clothing Unfrms Laundry       ,DC02,Clothing & Uniforms,644,23/05/2013,R,SAFETY MANAGEMENT             
413,Cultural Env Reg&Plan Services,Waste Disposal (not separated),Waste Disposal .,G00550,Third Party Payments          ,Private Contractors           ,EH66,Clinical Waste Disposal,864.05,31/05/2013,R,S.GRUNDON (WASTE) LTD.        
414,Cultural Env Reg&Plan Services,Waste Disposal (not separated),Waste Disposal .,G00550,Third Party Payments          ,Private Contractors           ,EH96,Gen Waste - Alt.  Contractor  ,"1,517.54",31/05/2013,R,CORY ENVIRONMENTAL LIMITED    
415,Cultural Env Reg&Plan Services,Waste Disposal (not separated),Waste Disposal .,G00550,Third Party Payments          ,Private Contractors           ,EH97,Detritus - Alt. Contractor,566.1,26/05/2013,R,777 ENVIRONMENTAL LTD         
416,Highways & Transport Services,Hwys/Rds (struct) not split,Grass Cut/Tr Mtce,G00600,Premises Related Expenditure  ,Ground Maintenance Costs      ,BL03,Maintenance of Grounds,-678.22,11/06/2013,R,VEOLIA ES (UK) LIMITED        
417,Highways & Transport Services,Hwys/Rds (struct) not split,Grass Cut/Tr Mtce,G00600,Premises Related Expenditure  ,Ground Maintenance Costs      ,BL03,Maintenance of Grounds,504.2,29/04/2013,R,VEOLIA ES (UK) LIMITED        
418,Highways & Transport Services,Hwys/Rds (struct) not split,Grass Cut/Tr Mtce,G00600,Premises Related Expenditure  ,Ground Maintenance Costs      ,BL03,Maintenance of Grounds,550,16/04/2013,R,VEOLIA ES (UK) LIMITED        
419,Highways & Transport Services,Hwys/Rds (struct) not split,Grass Cut/Tr Mtce,G00600,Premises Related Expenditure  ,Ground Maintenance Costs      ,BL03,Maintenance of Grounds,551.94,03/09/2012,R,VEOLIA ES (UK) LIMITED        
420,Highways & Transport Services,Hwys/Rds (struct) not split,Grass Cut/Tr Mtce,G00600,Premises Related Expenditure  ,Ground Maintenance Costs      ,BL03,Maintenance of Grounds,584.01,16/04/2013,R,VEOLIA ES (UK) LIMITED        
421,Highways & Transport Services,Hwys/Rds (struct) not split,Grass Cut/Tr Mtce,G00600,Premises Related Expenditure  ,Ground Maintenance Costs      ,BL03,Maintenance of Grounds,661.09,16/04/2013,R,VEOLIA ES (UK) LIMITED        
422,Highways & Transport Services,Hwys/Rds (struct) not split,Grass Cut/Tr Mtce,G00600,Premises Related Expenditure  ,Ground Maintenance Costs      ,BL03,Maintenance of Grounds,697.72,16/04/2013,R,VEOLIA ES (UK) LIMITED        
423,Highways & Transport Services,Hwys/Rds (struct) not split,Grass Cut/Tr Mtce,G00600,Premises Related Expenditure  ,Ground Maintenance Costs      ,BL03,Maintenance of Grounds,710.16,16/04/2013,R,VEOLIA ES (UK) LIMITED        
424,Highways & Transport Services,Hwys/Rds (struct) not split,Grass Cut/Tr Mtce,G00600,Premises Related Expenditure  ,Ground Maintenance Costs      ,BL03,Maintenance of Grounds,789.72,16/04/2013,R,VEOLIA ES (UK) LIMITED        
425,Highways & Transport Services,Hwys/Rds (struct) not split,Grass Cut/Tr Mtce,G00600,Premises Related Expenditure  ,Ground Maintenance Costs      ,BL03,Maintenance of Grounds,812.15,16/04/2013,R,VEOLIA ES (UK) LIMITED        
426,Highways & Transport Services,Hwys/Rds (struct) not split,Grass Cut/Tr Mtce,G00600,Premises Related Expenditure  ,Ground Maintenance Costs      ,BL03,Maintenance of Grounds,919.77,18/06/2013,R,FM CONWAY LTD                 
427,Highways & Transport Services,Hwys/Rds (struct) not split,Grass Cut/Tr Mtce,G00600,Premises Related Expenditure  ,Ground Maintenance Costs      ,BL03,Maintenance of Grounds,"1,080.00",25/03/2013,R,VEOLIA ES (UK) LIMITED        
428,Highways & Transport Services,Hwys/Rds (struct) not split,Grass Cut/Tr Mtce,G00600,Premises Related Expenditure  ,Ground Maintenance Costs      ,BL03,Maintenance of Grounds,"1,149.45",16/04/2013,R,VEOLIA ES (UK) LIMITED        
429,Highways & Transport Services,Hwys/Rds (struct) not split,Grass Cut/Tr Mtce,G00600,Premises Related Expenditure  ,Ground Maintenance Costs      ,BL03,Maintenance of Grounds,"1,205.91",29/05/2013,R,VEOLIA ES (UK) LIMITED        
430,Highways & Transport Services,Hwys/Rds (struct) not split,Grass Cut/Tr Mtce,G00600,Premises Related Expenditure  ,Ground Maintenance Costs      ,BL03,Maintenance of Grounds,"1,304.69",06/06/2013,R,FM CONWAY LTD                 
431,Highways & Transport Services,Hwys/Rds (struct) not split,Grass Cut/Tr Mtce,G00600,Premises Related Expenditure  ,Ground Maintenance Costs      ,BL03,Maintenance of Grounds,"1,315.72",16/04/2013,R,VEOLIA ES (UK) LIMITED        
432,Highways & Transport Services,Hwys/Rds (struct) not split,Grass Cut/Tr Mtce,G00600,Premises Related Expenditure  ,Ground Maintenance Costs      ,BL03,Maintenance of Grounds,"1,450.84",16/04/2013,R,VEOLIA ES (UK) LIMITED        
433,Highways & Transport Services,Hwys/Rds (struct) not split,Grass Cut/Tr Mtce,G00600,Premises Related Expenditure  ,Ground Maintenance Costs      ,BL03,Maintenance of Grounds,"1,507.15",16/04/2013,R,VEOLIA ES (UK) LIMITED        
434,Highways & Transport Services,Hwys/Rds (struct) not split,Grass Cut/Tr Mtce,G00600,Premises Related Expenditure  ,Ground Maintenance Costs      ,BL03,Maintenance of Grounds,"1,550.00",24/05/2013,R,VEOLIA ES (UK) LIMITED        
435,Highways & Transport Services,Hwys/Rds (struct) not split,Grass Cut/Tr Mtce,G00600,Premises Related Expenditure  ,Ground Maintenance Costs      ,BL03,Maintenance of Grounds,"1,564.85",10/06/2013,R,FM CONWAY LTD                 
436,Highways & Transport Services,Hwys/Rds (struct) not split,Grass Cut/Tr Mtce,G00600,Premises Related Expenditure  ,Ground Maintenance Costs      ,BL03,Maintenance of Grounds,"1,742.75",16/04/2013,R,VEOLIA ES (UK) LIMITED        
437,Highways & Transport Services,Hwys/Rds (struct) not split,Grass Cut/Tr Mtce,G00600,Premises Related Expenditure  ,Ground Maintenance Costs      ,BL03,Maintenance of Grounds,"1,923.94",24/05/2013,R,VEOLIA ES (UK) LIMITED        
438,Highways & Transport Services,Hwys/Rds (struct) not split,Grass Cut/Tr Mtce,G00600,Premises Related Expenditure  ,Ground Maintenance Costs      ,BL03,Maintenance of Grounds,"2,155.17",16/04/2013,R,VEOLIA ES (UK) LIMITED        
439,Highways & Transport Services,Hwys/Rds (struct) not split,Grass Cut/Tr Mtce,G00600,Premises Related Expenditure  ,Ground Maintenance Costs      ,BL03,Maintenance of Grounds,"2,160.97",24/05/2013,R,VEOLIA ES (UK) LIMITED        
440,Highways & Transport Services,Hwys/Rds (struct) not split,Grass Cut/Tr Mtce,G00600,Premises Related Expenditure  ,Ground Maintenance Costs      ,BL03,Maintenance of Grounds,"2,252.05",24/05/2013,R,VEOLIA ES (UK) LIMITED        
441,Highways & Transport Services,Hwys/Rds (struct) not split,Grass Cut/Tr Mtce,G00600,Premises Related Expenditure  ,Ground Maintenance Costs      ,BL03,Maintenance of Grounds,"2,400.00",24/05/2013,R,VEOLIA ES (UK) LIMITED        
442,Highways & Transport Services,Hwys/Rds (struct) not split,Grass Cut/Tr Mtce,G00600,Premises Related Expenditure  ,Ground Maintenance Costs      ,BL03,Maintenance of Grounds,"3,152.54",14/06/2013,R,VEOLIA ES (UK) LIMITED        
443,Highways & Transport Services,Hwys/Rds (struct) not split,Grass Cut/Tr Mtce,G00600,Premises Related Expenditure  ,Ground Maintenance Costs      ,BL03,Maintenance of Grounds,"6,222.14",16/04/2013,R,VEOLIA ES (UK) LIMITED        
444,Highways & Transport Services,Hwys/Rds (struct) not split,Grass Cut/Tr Mtce,G00600,Premises Related Expenditure  ,Ground Maintenance Costs      ,BL03,Maintenance of Grounds,"18,510.00",24/05/2013,R,VEOLIA ES (UK) LIMITED        
445,Highways & Transport Services,Hwys/Rds (struct) not split,Grass Cut/Tr Mtce,G00600,Premises Related Expenditure  ,Ground Maintenance Costs      ,BL03,Maintenance of Grounds,"23,337.41",24/06/2013,R,VEOLIA ES (UK) LIMITED        
446,Highways & Transport Services,Hwys/Rds (struct) not split,Grass Cut/Tr Mtce,G00600,Premises Related Expenditure  ,Ground Maintenance Costs      ,BL03,Maintenance of Grounds,"23,581.00",24/05/2013,R,VEOLIA ES (UK) LIMITED        
447,Highways & Transport Services,Hwys/Rds (struct) not split,Grass Cut/Tr Mtce,G00600,Premises Related Expenditure  ,Ground Maintenance Costs      ,BL03,Maintenance of Grounds,"27,441.86",14/06/2013,R,VEOLIA ES (UK) LIMITED        
448,Highways & Transport Services,Hwys/Rds (struct) not split,Grass Cut/Tr Mtce,G00600,Premises Related Expenditure  ,Ground Maintenance Costs      ,BL03,Maintenance of Grounds,"34,694.00",24/05/2013,R,VEOLIA ES (UK) LIMITED        
449,Highways & Transport Services,Hwys/Rds (struct) not split,Grass Cut/Tr Mtce,G00600,Third Party Payments          ,Private Contractors           ,EH56,Carriageway/Fway Maint,"8,152.45",16/04/2013,R,VEOLIA ES (UK) LIMITED        
450,Cultural Env Reg&Plan Services,Public Health,Dog Control.,G00620,Third Party Payments          ,Private Contractors           ,EH02,Miscellaneous Hired Services,"3,899.50",04/06/2013,R,NOAH'S ARK ENVIRONMENTAL SERV.
451,Cultural Env Reg&Plan Services,Recycling (Collection),Recycling Activities,G00640,Supplies & Services           ,Equip Furniture/Materials     ,DA04,Materials,"15,389.01",01/04/2013,R,LONDON LETTERBOX MARKETING    
452,Cultural Env Reg&Plan Services,Recycling (Collection),Recycling Activities,G00640,Supplies & Services           ,Equip Furniture/Materials     ,DA09,Equip-Purchases,"4,455.00",23/05/2013,R,R.J.H.WELDING                 
453,Cultural Env Reg&Plan Services,Recycling (Collection),Recycling Activities,G00640,Third Party Payments          ,Private Contractors           ,EH61,Green Waste Disposal,"20,438.03",31/05/2013,R,VIRIDOR WASTE KENT LTD        
454,Cultural Env Reg&Plan Services,Recycling (Collection),BARROW AND BINS REPLACEMENT,G00641,Supplies & Services           ,Equip Furniture/Materials     ,DA54,Recycling Containers,"6,048.00",20/06/2013,R,STRAIGHT PLC                  
455,Cultural Env Reg&Plan Services,Recycling (Collection),Recycling Collection,G00645,Supplies & Services           ,Equip Furniture/Materials     ,DA32,Wheeled Bins,717.5,20/05/2013,R,UK CONTAINER MAINTENANCE LTD  
456,Cultural Env Reg&Plan Services,Recycling (Collection),Recycling Collection,G00645,Supplies & Services           ,Equip Furniture/Materials     ,DA32,Wheeled Bins,"1,040.00",20/05/2013,R,UK CONTAINER MAINTENANCE LTD  
457,Cultural Env Reg&Plan Services,Recycling (Collection),Recycling Collection,G00645,Supplies & Services           ,Clothing Unfrms Laundry       ,DC02,Clothing & Uniforms,644,23/05/2013,R,SAFETY MANAGEMENT             
458,Cultural Env Reg&Plan Services,Household Waste Collection,Refuse Collection (Operations),G00661,Transport Related Expenditure ,Direct Transport Costs        ,CA52,Reps Vehicles Ins Claims,750,30/05/2013,R,S.E.T.S SERVICES              
459,Cultural Env Reg&Plan Services,Household Waste Collection,Refuse Collection (Operations),G00661,Supplies & Services           ,Equip Furniture/Materials     ,DA32,Wheeled Bins,717.5,20/05/2013,R,UK CONTAINER MAINTENANCE LTD  
460,Cultural Env Reg&Plan Services,Household Waste Collection,Refuse Collection (Operations),G00661,Supplies & Services           ,Equip Furniture/Materials     ,DA32,Wheeled Bins,"2,000.00",20/03/2013,R,UK CONTAINER MAINTENANCE LTD  
461,Cultural Env Reg&Plan Services,Household Waste Collection,Refuse Collection (Operations),G00661,Supplies & Services           ,Clothing Unfrms Laundry       ,DC02,Clothing & Uniforms,644.45,23/05/2013,R,SAFETY MANAGEMENT             
462,Cultural Env Reg&Plan Services,Household Waste Collection,Refuse Collection (Operations),G00661,Supplies & Services           ,Services                      ,DF09,Miscellaneous Fees,"1,054.00",20/03/2013,R,HEALTH & SAFETY EXECUTIVE     
463,Cultural Env Reg&Plan Services,Trade Waste Collection,Commercial Waste Collection,G00665,Supplies & Services           ,Equip Furniture/Materials     ,DA32,Wheeled Bins,800,20/05/2013,R,UK CONTAINER MAINTENANCE LTD  
464,Cultural Env Reg&Plan Services,Street Clean - Not highways,Waste Enforcement,G00680,Third Party Payments          ,Private Contractors           ,EH56,Carriageway/Fway Maint,662,29/05/2013,R,REDACTED
465,Cultural Env Reg&Plan Services,Street Clean - Not highways,Waste Enforcement,G00680,Third Party Payments          ,Private Contractors           ,EH56,Carriageway/Fway Maint,875,12/01/2013,R,REDACTED
466,Cultural Env Reg&Plan Services,Inspect/Enforce (Consumer P),Trading Standards,G00690,Supplies & Services           ,Services                      ,DF11,Counsel's fees,"8,333.33",23/05/2013,R,KINGSTON SMITH & PARTNERS     
467,Cultural Env Reg&Plan Services,Public Health,Merton Winter Warmer Programme,G00696,Supplies & Services           ,Equip Furniture/Materials     ,DA09,Equip-Purchases,"1,341.29",26/04/2013,R,OSBORNE ENERGY LTD            
468,Cultural Env Reg&Plan Services,Public Health,Merton Winter Warmer Programme,G00696,Supplies & Services           ,Equip Furniture/Materials     ,DA09,Equip-Purchases,"2,602.00",04/02/2013,R,CLIMATE ENERGY LTD            
469,Cultural Env Reg&Plan Services,Public Health,Merton Winter Warmer Programme,G00696,Supplies & Services           ,Equip Furniture/Materials     ,DA09,Equip-Purchases,"3,844.00",24/06/2013,R,TUNSTALL TELECOM LIMITED      
470,Cultural Env Reg&Plan Services,Public Health,Merton Winter Warmer Programme,G00696,Supplies & Services           ,Equip Furniture/Materials     ,DA09,Equip-Purchases,"3,860.00",04/02/2013,R,CLIMATE ENERGY LTD            
471,Cultural Env Reg&Plan Services,Public Health,Merton Winter Warmer Programme,G00696,Supplies & Services           ,Equip Furniture/Materials     ,DA09,Equip-Purchases,"9,610.00",07/06/2013,R,TUNSTALL TELECOM LIMITED      
472,Cultural Env Reg&Plan Services,Public Health,Merton Winter Warmer Programme,G00696,Supplies & Services           ,Equip Furniture/Materials     ,DA09,Equip-Purchases,"11,211.90",26/04/2013,R,OSBORNE ENERGY LTD            
473,Cultural Env Reg&Plan Services,Public Health,Merton Winter Warmer Programme,G00696,Supplies & Services           ,Equip Furniture/Materials     ,DA09,Equip-Purchases,"12,090.00",10/06/2013,R,TUNSTALL TELECOM LIMITED      
474,Cultural Env Reg&Plan Services,Public Health,Merton Winter Warmer Programme,G00696,Third Party Payments          ,Private Contractors           ,EH01,Miscellaneous Contrct Services,"26,793.75",18/06/2013,R,GROUNDWORK LONDON             
475,Cultural Env Reg&Plan Services,Housing Standards,AIR QUALITY GRANT (DEFRA) MB,G00732,Third Party Payments          ,Private Contractors           ,EH02,Miscellaneous Hired Services,"19,135.00",11/06/2013,R,CAMPBELL ASSOCIATES           
476,Central Services,Grants - Voluntary Groups,Vestry Hall,G19290,Employees                     ,Direct Employee Expenses      ,AA17,Agency Staff & Casual Paymts,"4,611.35",10/06/2013,R,REDACTED
477,Central Services,Grants - Voluntary Groups,Vestry Hall,G19290,Premises Related Expenditure  ,Energy Costs                  ,BB03,Gas (incl. Butane),624.62,06/06/2013,R,GAZPROM MARKETING&TRADING LTD 
478,Central Services,Grants - Voluntary Groups,Vestry Hall,G19290,Premises Related Expenditure  ,Energy Costs                  ,BB03,Gas (incl. Butane),"1,052.27",23/05/2013,R,KENT COUNTY COUNCIL           
479,Central Services,Grants - Voluntary Groups,Vestry Hall,G19290,Premises Related Expenditure  ,Cleaning and Domestic Supplies,BH03,Cleaning Services,"1,357.76",31/05/2013,R,BIRKIN CLEANING SERVICES LTD  
480,Highways & Transport Services,Transport Plg/Policy/Strategy,Transport Planning,H01070,Supplies & Services           ,Services                      ,DF03,Consultants,"1,750.00",29/05/2013,R,MVA CONSULTANCY
481,Highways & Transport Services,Transport Plg/Policy/Strategy,Transport Planning,H01070,Supplies & Services           ,Grants and Subscriptions      ,DJ04,Subscriptions,500,01/05/2013,R,HERITAGE OF LONDON TRUST LTD  
482,Cultural Env Reg&Plan Services,BC Regs & Other not split,Building Control,H01100,Supplies & Services           ,Services                      ,DF57,Consulting Engineers Fees,808,11/06/2013,R,BSI CUSTOMER SERVICES         
483,Cultural Env Reg&Plan Services,DC Advice Apps & Reg not split,Development Control,H01130,Supplies & Services           ,Services                      ,DF03,Consultants,"1,499.99",31/05/2013,R,VALUATION OFFICE AGENCY       
484,Cultural Env Reg&Plan Services,Planning Policy not split,Spatial Policy,H01173,Supplies & Services           ,Comms and Computing           ,DG65,Application Licences,750,31/05/2013,R,ARCHIPELAGO UK LTD            
485,Cultural Env Reg&Plan Services,Planning Policy not split,Spatial Policy,H01173,Third Party Payments          ,Private Contractors           ,EH10,Contract Payments,"2,195.00",12/06/2013,R,AXIOM TRAFFIC LTD             
486,Cultural Env Reg&Plan Services,Planning Policy not split,Collective Energy Switching,H01186,Supplies & Services           ,Services                      ,DF30,Activities Programme,620,10/06/2013,R,SUSTAINABLE MERTON            
487,CS -Oth Operating Inc & Expend,Extraordinary Items & PY Adj.,MILES RD GENERATOR,H01203,Premises Related Expenditure  ,Rents                         ,BC01,Miscellaneous Rents,"8,000.00",30/05/2013,R,W&R BUXTON LTD PENSION FUND   
488,Cultural Env Reg&Plan Services,Economic Dev (Not separated),(LABGI)-BUSINESS SUPPORT,H01210,Supplies & Services           ,Expenses                      ,DH14,Prizes and Awards,"1,000.00",10/06/2013,R,EVENTS AND PR LIMITED         
489,Cultural Env Reg&Plan Services,Economic Dev (Not separated),(LABGI)-BUSINESS SUPPORT,H01210,Supplies & Services           ,Expenses                      ,DH14,Prizes and Awards,"1,000.00",10/06/2013,R,EVENTS AND PR LIMITED         
490,Cultural Env Reg&Plan Services,Economic Dev (Not separated),LABGI-MERTON CHAMBER(CORE FUND,H01218,Supplies & Services           ,Services                      ,DF03,Consultants,"1,990.13",29/05/2013,R,STUDIO WEAVE LTD              
491,Cultural Env Reg&Plan Services,Economic Dev (Not separated),LABGI-MERTON CHAMBER(CORE FUND,H01218,Supplies & Services           ,Services                      ,DF03,Consultants,"2,996.49",29/05/2013,R,STUDIO WEAVE LTD              
492,CS -Oth Operating Inc & Expend,T/A Vehicle Maintenance etc,Transport-Contract Hire,J01374,Premises Related Expenditure  ,Energy Costs                  ,BB03,Gas (incl. Butane),567.36,14/05/2013,R,GAZPROM MARKETING&TRADING LTD 
493,CS -Oth Operating Inc & Expend,T/A Vehicle Maintenance etc,Transport-Contract Hire,J01374,Transport Related Expenditure ,Direct Transport Costs        ,CA01,Petrol Derv & Oil,"38,352.12",18/06/2013,R,EMO OILS LTD                  
494,CS -Oth Operating Inc & Expend,T/A Vehicle Maintenance etc,Transport-Contract Hire,J01374,Transport Related Expenditure ,Direct Transport Costs        ,CA01,Petrol Derv & Oil,"38,722.71",29/05/2013,R,EMO OILS LTD                  
495,CS -Oth Operating Inc & Expend,T/A Vehicle Maintenance etc,Transport-Contract Hire,J01374,Transport Related Expenditure ,Direct Transport Costs        ,CA02,Tyres,913,13/06/2013,R,MORDEN TYRE SERVICES LTD      
496,CS -Oth Operating Inc & Expend,T/A Vehicle Maintenance etc,Transport-Contract Hire,J01374,Transport Related Expenditure ,Direct Transport Costs        ,CA02,Tyres,"1,320.00",30/05/2013,R,MORDEN TYRE SERVICES LTD      
497,CS -Oth Operating Inc & Expend,T/A Vehicle Maintenance etc,Transport-Contract Hire,J01374,Transport Related Expenditure ,Direct Transport Costs        ,CA02,Tyres,"2,310.00",11/06/2013,R,MORDEN TYRE SERVICES LTD      
498,CS -Oth Operating Inc & Expend,T/A Vehicle Maintenance etc,Transport-Contract Hire,J01374,Transport Related Expenditure ,Direct Transport Costs        ,CA05,Vehicle MOTs,"2,000.00",21/06/2013,R,V.O.S.A                       
499,CS -Oth Operating Inc & Expend,T/A Vehicle Maintenance etc,Transport-Contract Hire,J01374,Transport Related Expenditure ,Direct Transport Costs        ,CA55,Specialist Maint. (Off Site),511.2,13/06/2013,R,DAWSON RENTALS BUS AND COACH  
500,CS -Oth Operating Inc & Expend,T/A Vehicle Maintenance etc,Transport-Contract Hire,J01374,Transport Related Expenditure ,Direct Transport Costs        ,CA55,Specialist Maint. (Off Site),537.68,17/06/2013,R,FLEETSPEED COACHWORKS LTD.    
501,CS -Oth Operating Inc & Expend,T/A Vehicle Maintenance etc,Transport-Contract Hire,J01374,Transport Related Expenditure ,Direct Transport Costs        ,CA56,Specialist Maint. (On Site),659.06,23/05/2013,R,GEESINK NORBA                 
502,CS -Oth Operating Inc & Expend,T/A Vehicle Maintenance etc,Transport-Contract Hire,J01374,Transport Related Expenditure ,Direct Transport Costs        ,CA56,Specialist Maint. (On Site),806.25,10/06/2013,R,R.J.H.WELDING                 
503,CS -Oth Operating Inc & Expend,T/A Vehicle Maintenance etc,Transport-Contract Hire,J01374,Transport Related Expenditure ,Direct Transport Costs        ,CA56,Specialist Maint. (On Site),831.33,16/04/2013,R,FITZ AIR                      
504,CS -Oth Operating Inc & Expend,T/A Vehicle Maintenance etc,Transport-Contract Hire,J01374,Transport Related Expenditure ,Direct Transport Costs        ,CA56,Specialist Maint. (On Site),"1,132.50",02/06/2013,R,R.J.H.WELDING                 
505,CS -Oth Operating Inc & Expend,T/A Vehicle Maintenance etc,Transport-Contract Hire,J01374,Transport Related Expenditure ,Direct Transport Costs        ,CA56,Specialist Maint. (On Site),"1,181.25",11/06/2013,R,R.J.H.WELDING                 
506,CS -Oth Operating Inc & Expend,T/A Vehicle Maintenance etc,Transport-Contract Hire,J01374,Transport Related Expenditure ,Direct Transport Costs        ,CA56,Specialist Maint. (On Site),"1,465.10",23/05/2013,R,GEESINK NORBA                 
507,CS -Oth Operating Inc & Expend,T/A Vehicle Maintenance etc,Transport-Contract Hire,J01374,Transport Related Expenditure ,Direct Transport Costs        ,CA56,Specialist Maint. (On Site),"1,665.05",30/05/2013,R,GEESINK NORBA                 
508,CS -Oth Operating Inc & Expend,T/A Vehicle Maintenance etc,Transport-Contract Hire,J01374,Transport Related Expenditure ,Direct Transport Costs        ,CA56,Specialist Maint. (On Site),"1,896.59",23/05/2013,R,GEESINK NORBA                 
509,CS -Oth Operating Inc & Expend,T/A Vehicle Maintenance etc,Transport-Contract Hire,J01374,Transport Related Expenditure ,Direct Transport Costs        ,CA56,Specialist Maint. (On Site),"2,109.89",29/05/2013,R,T H WHITE LTD                 
510,CS -Oth Operating Inc & Expend,T/A Vehicle Maintenance etc,Transport-Contract Hire,J01374,Transport Related Expenditure ,Direct Transport Costs        ,CA56,Specialist Maint. (On Site),"2,195.38",21/05/2013,R,T H WHITE LTD                 
511,CS -Oth Operating Inc & Expend,T/A Vehicle Maintenance etc,Transport-Contract Hire,J01374,Transport Related Expenditure ,Direct Transport Costs        ,CA72,Vehicle Parts,627.49,17/06/2013,R,COMMERCIAL & PLANT LTD        
512,CS -Oth Operating Inc & Expend,T/A Vehicle Maintenance etc,Transport-Contract Hire,J01374,Transport Related Expenditure ,Direct Transport Costs        ,CA72,Vehicle Parts,711.81,24/05/2013,R,JOHNSTON SWEEPERS LIMITED     
513,CS -Oth Operating Inc & Expend,T/A Vehicle Maintenance etc,Transport-Contract Hire,J01374,Transport Related Expenditure ,Direct Transport Costs        ,CA72,Vehicle Parts,"1,031.40",20/06/2013,R,REDACTED
514,CS -Oth Operating Inc & Expend,T/A Vehicle Maintenance etc,Transport-Contract Hire,J01374,Transport Related Expenditure ,Direct Transport Costs        ,CA72,Vehicle Parts,"1,112.54",28/05/2013,R,GRAYS TRUCK CENTRE LIMITED    
515,CS -Oth Operating Inc & Expend,T/A Vehicle Maintenance etc,Transport-Contract Hire,J01374,Transport Related Expenditure ,Contract Hire and Op Leasing  ,CC53,Plant Hire for MRCS,740,30/04/2013,R,B&T PLANT HIRE LTD            
516,CS -Oth Operating Inc & Expend,T/A Vehicle Maintenance etc,Transport-Contract Hire,J01374,Transport Related Expenditure ,Contract Hire and Op Leasing  ,CC53,Plant Hire for MRCS,"1,311.00",31/05/2013,R,GVS HIRE LTD                  
517,CS -Oth Operating Inc & Expend,T/A Vehicle Maintenance etc,Transport-Contract Hire,J01374,Transport Related Expenditure ,Contract Hire and Op Leasing  ,CC56,Plant Hire for Leisure,"1,755.00",31/05/2013,R,REDACTED
518,CS -Oth Operating Inc & Expend,T/A Vehicle Maintenance etc,Transport-Contract Hire,J01374,Transport Related Expenditure ,Contract Hire and Op Leasing  ,CC57,Plant Hire for Housing,667,25/04/2013,R,COMMERCIAL SERV'S TRADING LTD 
519,CS -Oth Operating Inc & Expend,T/A Vehicle Maintenance etc,Transport-Contract Hire,J01374,Transport Related Expenditure ,Contract Hire and Op Leasing  ,CC57,Plant Hire for Housing,759,31/05/2013,R,REDACTED
520,CS -Oth Operating Inc & Expend,T/A Vehicle Maintenance etc,Transport-Contract Hire,J01374,Transport Related Expenditure ,Contract Hire and Op Leasing  ,CC57,Plant Hire for Housing,940,31/05/2013,R,REDACTED
521,CS -Oth Operating Inc & Expend,T/A Vehicle Maintenance etc,Transport-Contract Hire,J01374,Transport Related Expenditure ,Contract Hire and Op Leasing  ,CC58,Plant Hire - Ad Hoc,622.5,17/06/2013,R,ARVAL UK LTD                  
522,CS -Oth Operating Inc & Expend,T/A Vehicle Maintenance etc,Transport-Contract Hire,J01374,Transport Related Expenditure ,Contract Hire and Op Leasing  ,CC59,Plant Hire - Non-Rechargeable ,"1,518.00",31/05/2013,R,BURNT TREE VEHICLE RENTAL     
523,CS -Oth Operating Inc & Expend,T/A Vehicle Maintenance etc,Transport-Contract Hire,J01374,Transport Related Expenditure ,Contract Hire and Op Leasing  ,CC59,Plant Hire - Non-Rechargeable ,"1,518.00",31/05/2013,R,BURNT TREE VEHICLE RENTAL     
524,CS -Oth Operating Inc & Expend,T/A Vehicle Maintenance etc,Transport-Contract Hire,J01374,Transport Related Expenditure ,Contract Hire and Op Leasing  ,CC59,Plant Hire - Non-Rechargeable ,"1,518.00",31/05/2013,R,BURNT TREE VEHICLE RENTAL     
525,CS -Oth Operating Inc & Expend,T/A Vehicle Maintenance etc,Transport-Contract Hire,J01374,Transport Related Expenditure ,Contract Hire and Op Leasing  ,CC59,Plant Hire - Non-Rechargeable ,"2,238.32",31/05/2013,R,REDACTED
526,CS -Oth Operating Inc & Expend,T/A Vehicle Maintenance etc,Transport-Contract Hire,J01374,Transport Related Expenditure ,Contract Hire and Op Leasing  ,CC64,Mini Cab Hire for Education,504,31/05/2013,R,NVCAR HIRE LTD                
527,CS -Oth Operating Inc & Expend,T/A Vehicle Maintenance etc,Transport-Contract Hire,J01374,Transport Related Expenditure ,Contract Hire and Op Leasing  ,CC64,Mini Cab Hire for Education,525,03/06/2013,R,AERIAL CAR SERVICES LTD       
528,CS -Oth Operating Inc & Expend,T/A Vehicle Maintenance etc,Transport-Contract Hire,J01374,Transport Related Expenditure ,Contract Hire and Op Leasing  ,CC64,Mini Cab Hire for Education,532,28/05/2013,R,SILVERBURN FINANCE (UK) LTD   
529,CS -Oth Operating Inc & Expend,T/A Vehicle Maintenance etc,Transport-Contract Hire,J01374,Transport Related Expenditure ,Contract Hire and Op Leasing  ,CC64,Mini Cab Hire for Education,560,03/06/2013,R,WALLINGTON CARS & COURIERS LTD
530,CS -Oth Operating Inc & Expend,T/A Vehicle Maintenance etc,Transport-Contract Hire,J01374,Transport Related Expenditure ,Contract Hire and Op Leasing  ,CC64,Mini Cab Hire for Education,576,31/05/2013,R,CHEAM STATION CARS            
531,CS -Oth Operating Inc & Expend,T/A Vehicle Maintenance etc,Transport-Contract Hire,J01374,Transport Related Expenditure ,Contract Hire and Op Leasing  ,CC64,Mini Cab Hire for Education,578,28/05/2013,R,SILVERBURN FINANCE (UK) LTD   
532,CS -Oth Operating Inc & Expend,T/A Vehicle Maintenance etc,Transport-Contract Hire,J01374,Transport Related Expenditure ,Contract Hire and Op Leasing  ,CC64,Mini Cab Hire for Education,580,31/05/2013,R,SHERWOOD TRANSPORT GROUP      
533,CS -Oth Operating Inc & Expend,T/A Vehicle Maintenance etc,Transport-Contract Hire,J01374,Transport Related Expenditure ,Contract Hire and Op Leasing  ,CC64,Mini Cab Hire for Education,583.2,31/05/2013,R,KINGSTON ACCESSIBILITY TRAN LT
534,CS -Oth Operating Inc & Expend,T/A Vehicle Maintenance etc,Transport-Contract Hire,J01374,Transport Related Expenditure ,Contract Hire and Op Leasing  ,CC64,Mini Cab Hire for Education,595,03/06/2013,R,AERIAL CAR SERVICES LTD       
535,CS -Oth Operating Inc & Expend,T/A Vehicle Maintenance etc,Transport-Contract Hire,J01374,Transport Related Expenditure ,Contract Hire and Op Leasing  ,CC64,Mini Cab Hire for Education,612,28/05/2013,R,SILVERBURN FINANCE (UK) LTD   
536,CS -Oth Operating Inc & Expend,T/A Vehicle Maintenance etc,Transport-Contract Hire,J01374,Transport Related Expenditure ,Contract Hire and Op Leasing  ,CC64,Mini Cab Hire for Education,613.5,28/05/2013,R,SILVERBURN FINANCE (UK) LTD   
537,CS -Oth Operating Inc & Expend,T/A Vehicle Maintenance etc,Transport-Contract Hire,J01374,Transport Related Expenditure ,Contract Hire and Op Leasing  ,CC64,Mini Cab Hire for Education,650,31/05/2013,R,GALPINS SERVICE               
538,CS -Oth Operating Inc & Expend,T/A Vehicle Maintenance etc,Transport-Contract Hire,J01374,Transport Related Expenditure ,Contract Hire and Op Leasing  ,CC64,Mini Cab Hire for Education,651,31/05/2013,R,BARCLAYS ASSET & SALES FINANCE
539,CS -Oth Operating Inc & Expend,T/A Vehicle Maintenance etc,Transport-Contract Hire,J01374,Transport Related Expenditure ,Contract Hire and Op Leasing  ,CC64,Mini Cab Hire for Education,672,31/05/2013,R,A STAR TRANSPORT LIMITED      
540,CS -Oth Operating Inc & Expend,T/A Vehicle Maintenance etc,Transport-Contract Hire,J01374,Transport Related Expenditure ,Contract Hire and Op Leasing  ,CC64,Mini Cab Hire for Education,680,31/05/2013,R,GALPINS SERVICE               
541,CS -Oth Operating Inc & Expend,T/A Vehicle Maintenance etc,Transport-Contract Hire,J01374,Transport Related Expenditure ,Contract Hire and Op Leasing  ,CC64,Mini Cab Hire for Education,680,31/05/2013,R,GALPINS SERVICE               
542,CS -Oth Operating Inc & Expend,T/A Vehicle Maintenance etc,Transport-Contract Hire,J01374,Transport Related Expenditure ,Contract Hire and Op Leasing  ,CC64,Mini Cab Hire for Education,686.67,31/05/2013,R,GALPINS SERVICE               
543,CS -Oth Operating Inc & Expend,T/A Vehicle Maintenance etc,Transport-Contract Hire,J01374,Transport Related Expenditure ,Contract Hire and Op Leasing  ,CC64,Mini Cab Hire for Education,700,31/05/2013,R,KINGSTON ACCESSIBILITY TRAN LT
544,CS -Oth Operating Inc & Expend,T/A Vehicle Maintenance etc,Transport-Contract Hire,J01374,Transport Related Expenditure ,Contract Hire and Op Leasing  ,CC64,Mini Cab Hire for Education,714,31/05/2013,R,NVCAR HIRE LTD                
545,CS -Oth Operating Inc & Expend,T/A Vehicle Maintenance etc,Transport-Contract Hire,J01374,Transport Related Expenditure ,Contract Hire and Op Leasing  ,CC64,Mini Cab Hire for Education,735,31/05/2013,R,CAPITAL CARS                  
546,CS -Oth Operating Inc & Expend,T/A Vehicle Maintenance etc,Transport-Contract Hire,J01374,Transport Related Expenditure ,Contract Hire and Op Leasing  ,CC64,Mini Cab Hire for Education,740.74,31/05/2013,R,KINGSTON ACCESSIBILITY TRAN LT
547,CS -Oth Operating Inc & Expend,T/A Vehicle Maintenance etc,Transport-Contract Hire,J01374,Transport Related Expenditure ,Contract Hire and Op Leasing  ,CC64,Mini Cab Hire for Education,748,03/06/2013,R,AERIAL CAR SERVICES LTD       
548,CS -Oth Operating Inc & Expend,T/A Vehicle Maintenance etc,Transport-Contract Hire,J01374,Transport Related Expenditure ,Contract Hire and Op Leasing  ,CC64,Mini Cab Hire for Education,756.67,31/05/2013,R,GALPINS SERVICE               
549,CS -Oth Operating Inc & Expend,T/A Vehicle Maintenance etc,Transport-Contract Hire,J01374,Transport Related Expenditure ,Contract Hire and Op Leasing  ,CC64,Mini Cab Hire for Education,770,31/05/2013,R,SHERWOOD TRANSPORT GROUP      
550,CS -Oth Operating Inc & Expend,T/A Vehicle Maintenance etc,Transport-Contract Hire,J01374,Transport Related Expenditure ,Contract Hire and Op Leasing  ,CC64,Mini Cab Hire for Education,770,31/05/2013,R,CAPITAL CARS                  
551,CS -Oth Operating Inc & Expend,T/A Vehicle Maintenance etc,Transport-Contract Hire,J01374,Transport Related Expenditure ,Contract Hire and Op Leasing  ,CC64,Mini Cab Hire for Education,770,31/05/2013,R,NVCAR HIRE LTD                
552,CS -Oth Operating Inc & Expend,T/A Vehicle Maintenance etc,Transport-Contract Hire,J01374,Transport Related Expenditure ,Contract Hire and Op Leasing  ,CC64,Mini Cab Hire for Education,816,28/05/2013,R,SILVERBURN FINANCE (UK) LTD   
553,CS -Oth Operating Inc & Expend,T/A Vehicle Maintenance etc,Transport-Contract Hire,J01374,Transport Related Expenditure ,Contract Hire and Op Leasing  ,CC64,Mini Cab Hire for Education,826,31/05/2013,R,KINGSTON ACCESSIBILITY TRAN LT
554,CS -Oth Operating Inc & Expend,T/A Vehicle Maintenance etc,Transport-Contract Hire,J01374,Transport Related Expenditure ,Contract Hire and Op Leasing  ,CC64,Mini Cab Hire for Education,840,31/05/2013,R,KENDALL CARS                  
555,CS -Oth Operating Inc & Expend,T/A Vehicle Maintenance etc,Transport-Contract Hire,J01374,Transport Related Expenditure ,Contract Hire and Op Leasing  ,CC64,Mini Cab Hire for Education,848.3,31/05/2013,R,KINGSTON ACCESSIBILITY TRAN LT
556,CS -Oth Operating Inc & Expend,T/A Vehicle Maintenance etc,Transport-Contract Hire,J01374,Transport Related Expenditure ,Contract Hire and Op Leasing  ,CC64,Mini Cab Hire for Education,850,31/05/2013,R,SHERWOOD TRANSPORT GROUP      
557,CS -Oth Operating Inc & Expend,T/A Vehicle Maintenance etc,Transport-Contract Hire,J01374,Transport Related Expenditure ,Contract Hire and Op Leasing  ,CC64,Mini Cab Hire for Education,850,31/05/2013,R,KINGSTON ACCESSIBILITY TRAN LT
558,CS -Oth Operating Inc & Expend,T/A Vehicle Maintenance etc,Transport-Contract Hire,J01374,Transport Related Expenditure ,Contract Hire and Op Leasing  ,CC64,Mini Cab Hire for Education,910,31/05/2013,R,SHERWOOD TRANSPORT GROUP      
559,CS -Oth Operating Inc & Expend,T/A Vehicle Maintenance etc,Transport-Contract Hire,J01374,Transport Related Expenditure ,Contract Hire and Op Leasing  ,CC64,Mini Cab Hire for Education,916.3,31/05/2013,R,SHERWOOD TRANSPORT GROUP      
560,CS -Oth Operating Inc & Expend,T/A Vehicle Maintenance etc,Transport-Contract Hire,J01374,Transport Related Expenditure ,Contract Hire and Op Leasing  ,CC64,Mini Cab Hire for Education,924,31/05/2013,R,BARCLAYS ASSET & SALES FINANCE
561,CS -Oth Operating Inc & Expend,T/A Vehicle Maintenance etc,Transport-Contract Hire,J01374,Transport Related Expenditure ,Contract Hire and Op Leasing  ,CC64,Mini Cab Hire for Education,952,28/05/2013,R,SILVERBURN FINANCE (UK) LTD   
562,CS -Oth Operating Inc & Expend,T/A Vehicle Maintenance etc,Transport-Contract Hire,J01374,Transport Related Expenditure ,Contract Hire and Op Leasing  ,CC64,Mini Cab Hire for Education,952,31/05/2013,R,GALPINS SERVICE               
563,CS -Oth Operating Inc & Expend,T/A Vehicle Maintenance etc,Transport-Contract Hire,J01374,Transport Related Expenditure ,Contract Hire and Op Leasing  ,CC64,Mini Cab Hire for Education,"1,011.50",31/05/2013,R,CAPITAL CARS                  
564,CS -Oth Operating Inc & Expend,T/A Vehicle Maintenance etc,Transport-Contract Hire,J01374,Transport Related Expenditure ,Contract Hire and Op Leasing  ,CC64,Mini Cab Hire for Education,"1,020.00",28/05/2013,R,SILVERBURN FINANCE (UK) LTD   
565,CS -Oth Operating Inc & Expend,T/A Vehicle Maintenance etc,Transport-Contract Hire,J01374,Transport Related Expenditure ,Contract Hire and Op Leasing  ,CC64,Mini Cab Hire for Education,"1,020.00",31/05/2013,R,CHEAM STATION CARS            
566,CS -Oth Operating Inc & Expend,T/A Vehicle Maintenance etc,Transport-Contract Hire,J01374,Transport Related Expenditure ,Contract Hire and Op Leasing  ,CC64,Mini Cab Hire for Education,"1,020.00",31/05/2013,R,GALPINS SERVICE               
567,CS -Oth Operating Inc & Expend,T/A Vehicle Maintenance etc,Transport-Contract Hire,J01374,Transport Related Expenditure ,Contract Hire and Op Leasing  ,CC64,Mini Cab Hire for Education,"1,054.00",31/05/2013,R,A STAR TRANSPORT LIMITED      
568,CS -Oth Operating Inc & Expend,T/A Vehicle Maintenance etc,Transport-Contract Hire,J01374,Transport Related Expenditure ,Contract Hire and Op Leasing  ,CC64,Mini Cab Hire for Education,"1,056.00",31/05/2013,R,CAPITAL CARS                  
569,CS -Oth Operating Inc & Expend,T/A Vehicle Maintenance etc,Transport-Contract Hire,J01374,Transport Related Expenditure ,Contract Hire and Op Leasing  ,CC64,Mini Cab Hire for Education,"1,064.00",31/05/2013,R,CAPITAL CARS                  
570,CS -Oth Operating Inc & Expend,T/A Vehicle Maintenance etc,Transport-Contract Hire,J01374,Transport Related Expenditure ,Contract Hire and Op Leasing  ,CC64,Mini Cab Hire for Education,"1,088.00",31/05/2013,R,KINGSTON ACCESSIBILITY TRAN LT
571,CS -Oth Operating Inc & Expend,T/A Vehicle Maintenance etc,Transport-Contract Hire,J01374,Transport Related Expenditure ,Contract Hire and Op Leasing  ,CC64,Mini Cab Hire for Education,"1,103.30",31/05/2013,R,SHERWOOD TRANSPORT GROUP      
572,CS -Oth Operating Inc & Expend,T/A Vehicle Maintenance etc,Transport-Contract Hire,J01374,Transport Related Expenditure ,Contract Hire and Op Leasing  ,CC64,Mini Cab Hire for Education,"1,122.00",28/05/2013,R,SILVERBURN FINANCE (UK) LTD   
573,CS -Oth Operating Inc & Expend,T/A Vehicle Maintenance etc,Transport-Contract Hire,J01374,Transport Related Expenditure ,Contract Hire and Op Leasing  ,CC64,Mini Cab Hire for Education,"1,148.00",31/05/2013,R,CAPITAL CARS                  
574,CS -Oth Operating Inc & Expend,T/A Vehicle Maintenance etc,Transport-Contract Hire,J01374,Transport Related Expenditure ,Contract Hire and Op Leasing  ,CC64,Mini Cab Hire for Education,"1,156.00",31/05/2013,R,BRUNSWICK CARS LTD            
575,CS -Oth Operating Inc & Expend,T/A Vehicle Maintenance etc,Transport-Contract Hire,J01374,Transport Related Expenditure ,Contract Hire and Op Leasing  ,CC64,Mini Cab Hire for Education,"1,169.70",31/05/2013,R,KINGSTON ACCESSIBILITY TRAN LT
576,CS -Oth Operating Inc & Expend,T/A Vehicle Maintenance etc,Transport-Contract Hire,J01374,Transport Related Expenditure ,Contract Hire and Op Leasing  ,CC64,Mini Cab Hire for Education,"1,190.00",31/05/2013,R,BARCLAYS ASSET & SALES FINANCE
577,CS -Oth Operating Inc & Expend,T/A Vehicle Maintenance etc,Transport-Contract Hire,J01374,Transport Related Expenditure ,Contract Hire and Op Leasing  ,CC64,Mini Cab Hire for Education,"1,190.00",31/05/2013,R,SHERWOOD TRANSPORT GROUP      
578,CS -Oth Operating Inc & Expend,T/A Vehicle Maintenance etc,Transport-Contract Hire,J01374,Transport Related Expenditure ,Contract Hire and Op Leasing  ,CC64,Mini Cab Hire for Education,"1,190.00",31/05/2013,R,CAPITAL CARS                  
579,CS -Oth Operating Inc & Expend,T/A Vehicle Maintenance etc,Transport-Contract Hire,J01374,Transport Related Expenditure ,Contract Hire and Op Leasing  ,CC64,Mini Cab Hire for Education,"1,215.50",28/05/2013,R,SILVERBURN FINANCE (UK) LTD   
580,CS -Oth Operating Inc & Expend,T/A Vehicle Maintenance etc,Transport-Contract Hire,J01374,Transport Related Expenditure ,Contract Hire and Op Leasing  ,CC64,Mini Cab Hire for Education,"1,222.00",31/05/2013,R,CAPITAL CARS                  
581,CS -Oth Operating Inc & Expend,T/A Vehicle Maintenance etc,Transport-Contract Hire,J01374,Transport Related Expenditure ,Contract Hire and Op Leasing  ,CC64,Mini Cab Hire for Education,"1,224.00",31/05/2013,R,NVCAR HIRE LTD                
582,CS -Oth Operating Inc & Expend,T/A Vehicle Maintenance etc,Transport-Contract Hire,J01374,Transport Related Expenditure ,Contract Hire and Op Leasing  ,CC64,Mini Cab Hire for Education,"1,258.00",31/05/2013,R,CAPITAL CARS                  
583,CS -Oth Operating Inc & Expend,T/A Vehicle Maintenance etc,Transport-Contract Hire,J01374,Transport Related Expenditure ,Contract Hire and Op Leasing  ,CC64,Mini Cab Hire for Education,"1,258.00",28/05/2013,R,SILVERBURN FINANCE (UK) LTD   
584,CS -Oth Operating Inc & Expend,T/A Vehicle Maintenance etc,Transport-Contract Hire,J01374,Transport Related Expenditure ,Contract Hire and Op Leasing  ,CC64,Mini Cab Hire for Education,"1,260.00",28/05/2013,R,SILVERBURN FINANCE (UK) LTD   
585,CS -Oth Operating Inc & Expend,T/A Vehicle Maintenance etc,Transport-Contract Hire,J01374,Transport Related Expenditure ,Contract Hire and Op Leasing  ,CC64,Mini Cab Hire for Education,"1,276.48",31/05/2013,R,KINGSTON ACCESSIBILITY TRAN LT
586,CS -Oth Operating Inc & Expend,T/A Vehicle Maintenance etc,Transport-Contract Hire,J01374,Transport Related Expenditure ,Contract Hire and Op Leasing  ,CC64,Mini Cab Hire for Education,"1,292.00",31/05/2013,R,NVCAR HIRE LTD                
587,CS -Oth Operating Inc & Expend,T/A Vehicle Maintenance etc,Transport-Contract Hire,J01374,Transport Related Expenditure ,Contract Hire and Op Leasing  ,CC64,Mini Cab Hire for Education,"1,326.00",31/05/2013,R,NVCAR HIRE LTD                
588,CS -Oth Operating Inc & Expend,T/A Vehicle Maintenance etc,Transport-Contract Hire,J01374,Transport Related Expenditure ,Contract Hire and Op Leasing  ,CC64,Mini Cab Hire for Education,"1,359.32",31/05/2013,R,KINGSTON ACCESSIBILITY TRAN LT
589,CS -Oth Operating Inc & Expend,T/A Vehicle Maintenance etc,Transport-Contract Hire,J01374,Transport Related Expenditure ,Contract Hire and Op Leasing  ,CC64,Mini Cab Hire for Education,"1,400.00",31/05/2013,R,BARCLAYS ASSET & SALES FINANCE
590,CS -Oth Operating Inc & Expend,T/A Vehicle Maintenance etc,Transport-Contract Hire,J01374,Transport Related Expenditure ,Contract Hire and Op Leasing  ,CC64,Mini Cab Hire for Education,"1,412.00",31/05/2013,R,BARCLAYS ASSET & SALES FINANCE
591,CS -Oth Operating Inc & Expend,T/A Vehicle Maintenance etc,Transport-Contract Hire,J01374,Transport Related Expenditure ,Contract Hire and Op Leasing  ,CC64,Mini Cab Hire for Education,"1,428.00",31/05/2013,R,CAPITAL CARS                  
592,CS -Oth Operating Inc & Expend,T/A Vehicle Maintenance etc,Transport-Contract Hire,J01374,Transport Related Expenditure ,Contract Hire and Op Leasing  ,CC64,Mini Cab Hire for Education,"1,428.00",31/05/2013,R,NVCAR HIRE LTD                
593,CS -Oth Operating Inc & Expend,T/A Vehicle Maintenance etc,Transport-Contract Hire,J01374,Transport Related Expenditure ,Contract Hire and Op Leasing  ,CC64,Mini Cab Hire for Education,"1,428.00",28/05/2013,R,SILVERBURN FINANCE (UK) LTD   
594,CS -Oth Operating Inc & Expend,T/A Vehicle Maintenance etc,Transport-Contract Hire,J01374,Transport Related Expenditure ,Contract Hire and Op Leasing  ,CC64,Mini Cab Hire for Education,"1,487.16",31/05/2013,R,KINGSTON ACCESSIBILITY TRAN LT
595,CS -Oth Operating Inc & Expend,T/A Vehicle Maintenance etc,Transport-Contract Hire,J01374,Transport Related Expenditure ,Contract Hire and Op Leasing  ,CC64,Mini Cab Hire for Education,"1,488.00",31/05/2013,R,BARCLAYS ASSET & SALES FINANCE
596,CS -Oth Operating Inc & Expend,T/A Vehicle Maintenance etc,Transport-Contract Hire,J01374,Transport Related Expenditure ,Contract Hire and Op Leasing  ,CC64,Mini Cab Hire for Education,"1,584.00",31/05/2013,R,BARCLAYS ASSET & SALES FINANCE
597,CS -Oth Operating Inc & Expend,T/A Vehicle Maintenance etc,Transport-Contract Hire,J01374,Transport Related Expenditure ,Contract Hire and Op Leasing  ,CC64,Mini Cab Hire for Education,"1,584.06",31/05/2013,R,KINGSTON ACCESSIBILITY TRAN LT
598,CS -Oth Operating Inc & Expend,T/A Vehicle Maintenance etc,Transport-Contract Hire,J01374,Transport Related Expenditure ,Contract Hire and Op Leasing  ,CC64,Mini Cab Hire for Education,"1,597.20",31/05/2013,R,SHERWOOD TRANSPORT GROUP      
599,CS -Oth Operating Inc & Expend,T/A Vehicle Maintenance etc,Transport-Contract Hire,J01374,Transport Related Expenditure ,Contract Hire and Op Leasing  ,CC64,Mini Cab Hire for Education,"1,598.00",31/05/2013,R,CAPITAL CARS                  
600,CS -Oth Operating Inc & Expend,T/A Vehicle Maintenance etc,Transport-Contract Hire,J01374,Transport Related Expenditure ,Contract Hire and Op Leasing  ,CC64,Mini Cab Hire for Education,"1,632.00",31/05/2013,R,KINGSTON ACCESSIBILITY TRAN LT
601,CS -Oth Operating Inc & Expend,T/A Vehicle Maintenance etc,Transport-Contract Hire,J01374,Transport Related Expenditure ,Contract Hire and Op Leasing  ,CC64,Mini Cab Hire for Education,"1,632.00",28/05/2013,R,SILVERBURN FINANCE (UK) LTD   
602,CS -Oth Operating Inc & Expend,T/A Vehicle Maintenance etc,Transport-Contract Hire,J01374,Transport Related Expenditure ,Contract Hire and Op Leasing  ,CC64,Mini Cab Hire for Education,"1,632.00",28/05/2013,R,SILVERBURN FINANCE (UK) LTD   
603,CS -Oth Operating Inc & Expend,T/A Vehicle Maintenance etc,Transport-Contract Hire,J01374,Transport Related Expenditure ,Contract Hire and Op Leasing  ,CC64,Mini Cab Hire for Education,"1,664.30",31/05/2013,R,KINGSTON ACCESSIBILITY TRAN LT
604,CS -Oth Operating Inc & Expend,T/A Vehicle Maintenance etc,Transport-Contract Hire,J01374,Transport Related Expenditure ,Contract Hire and Op Leasing  ,CC64,Mini Cab Hire for Education,"1,666.00",31/05/2013,R,BARCLAYS ASSET & SALES FINANCE
605,CS -Oth Operating Inc & Expend,T/A Vehicle Maintenance etc,Transport-Contract Hire,J01374,Transport Related Expenditure ,Contract Hire and Op Leasing  ,CC64,Mini Cab Hire for Education,"1,666.00",31/05/2013,R,KINGSTON ACCESSIBILITY TRAN LT
606,CS -Oth Operating Inc & Expend,T/A Vehicle Maintenance etc,Transport-Contract Hire,J01374,Transport Related Expenditure ,Contract Hire and Op Leasing  ,CC64,Mini Cab Hire for Education,"1,680.00",28/05/2013,R,SILVERBURN FINANCE (UK) LTD   
607,CS -Oth Operating Inc & Expend,T/A Vehicle Maintenance etc,Transport-Contract Hire,J01374,Transport Related Expenditure ,Contract Hire and Op Leasing  ,CC64,Mini Cab Hire for Education,"1,768.00",31/05/2013,R,BARCLAYS ASSET & SALES FINANCE
608,CS -Oth Operating Inc & Expend,T/A Vehicle Maintenance etc,Transport-Contract Hire,J01374,Transport Related Expenditure ,Contract Hire and Op Leasing  ,CC64,Mini Cab Hire for Education,"1,785.00",31/05/2013,R,SHERWOOD TRANSPORT GROUP      
609,CS -Oth Operating Inc & Expend,T/A Vehicle Maintenance etc,Transport-Contract Hire,J01374,Transport Related Expenditure ,Contract Hire and Op Leasing  ,CC64,Mini Cab Hire for Education,"1,802.00",31/05/2013,R,CAPITAL CARS                  
610,CS -Oth Operating Inc & Expend,T/A Vehicle Maintenance etc,Transport-Contract Hire,J01374,Transport Related Expenditure ,Contract Hire and Op Leasing  ,CC64,Mini Cab Hire for Education,"1,834.30",31/05/2013,R,KINGSTON ACCESSIBILITY TRAN LT
611,CS -Oth Operating Inc & Expend,T/A Vehicle Maintenance etc,Transport-Contract Hire,J01374,Transport Related Expenditure ,Contract Hire and Op Leasing  ,CC64,Mini Cab Hire for Education,"1,837.50",31/05/2013,R,KINGSTON ACCESSIBILITY TRAN LT
612,CS -Oth Operating Inc & Expend,T/A Vehicle Maintenance etc,Transport-Contract Hire,J01374,Transport Related Expenditure ,Contract Hire and Op Leasing  ,CC64,Mini Cab Hire for Education,"1,949.47",31/05/2013,R,KINGSTON ACCESSIBILITY TRAN LT
613,CS -Oth Operating Inc & Expend,T/A Vehicle Maintenance etc,Transport-Contract Hire,J01374,Transport Related Expenditure ,Contract Hire and Op Leasing  ,CC64,Mini Cab Hire for Education,"2,006.00",31/05/2013,R,SHERWOOD TRANSPORT GROUP      
614,CS -Oth Operating Inc & Expend,T/A Vehicle Maintenance etc,Transport-Contract Hire,J01374,Transport Related Expenditure ,Contract Hire and Op Leasing  ,CC64,Mini Cab Hire for Education,"2,023.00",31/05/2013,R,SHERWOOD TRANSPORT GROUP      
615,CS -Oth Operating Inc & Expend,T/A Vehicle Maintenance etc,Transport-Contract Hire,J01374,Transport Related Expenditure ,Contract Hire and Op Leasing  ,CC64,Mini Cab Hire for Education,"2,038.30",31/05/2013,R,KINGSTON ACCESSIBILITY TRAN LT
616,CS -Oth Operating Inc & Expend,T/A Vehicle Maintenance etc,Transport-Contract Hire,J01374,Transport Related Expenditure ,Contract Hire and Op Leasing  ,CC64,Mini Cab Hire for Education,"2,089.30",31/05/2013,R,KINGSTON ACCESSIBILITY TRAN LT
617,CS -Oth Operating Inc & Expend,T/A Vehicle Maintenance etc,Transport-Contract Hire,J01374,Transport Related Expenditure ,Contract Hire and Op Leasing  ,CC64,Mini Cab Hire for Education,"2,108.00",31/05/2013,R,KINGSTON ACCESSIBILITY TRAN LT
618,CS -Oth Operating Inc & Expend,T/A Vehicle Maintenance etc,Transport-Contract Hire,J01374,Transport Related Expenditure ,Contract Hire and Op Leasing  ,CC64,Mini Cab Hire for Education,"2,142.00",31/05/2013,R,CAPITAL CARS                  
619,CS -Oth Operating Inc & Expend,T/A Vehicle Maintenance etc,Transport-Contract Hire,J01374,Transport Related Expenditure ,Contract Hire and Op Leasing  ,CC64,Mini Cab Hire for Education,"2,210.00",31/05/2013,R,BARCLAYS ASSET & SALES FINANCE
620,CS -Oth Operating Inc & Expend,T/A Vehicle Maintenance etc,Transport-Contract Hire,J01374,Transport Related Expenditure ,Contract Hire and Op Leasing  ,CC64,Mini Cab Hire for Education,"2,240.00",31/05/2013,R,CAPITAL CARS                  
621,CS -Oth Operating Inc & Expend,T/A Vehicle Maintenance etc,Transport-Contract Hire,J01374,Transport Related Expenditure ,Contract Hire and Op Leasing  ,CC64,Mini Cab Hire for Education,"2,269.16",31/05/2013,R,KINGSTON ACCESSIBILITY TRAN LT
622,CS -Oth Operating Inc & Expend,T/A Vehicle Maintenance etc,Transport-Contract Hire,J01374,Transport Related Expenditure ,Contract Hire and Op Leasing  ,CC64,Mini Cab Hire for Education,"2,329.00",31/05/2013,R,NVCAR HIRE LTD                
623,CS -Oth Operating Inc & Expend,T/A Vehicle Maintenance etc,Transport-Contract Hire,J01374,Transport Related Expenditure ,Contract Hire and Op Leasing  ,CC64,Mini Cab Hire for Education,"2,346.00",31/05/2013,R,NVCAR HIRE LTD                
624,CS -Oth Operating Inc & Expend,T/A Vehicle Maintenance etc,Transport-Contract Hire,J01374,Transport Related Expenditure ,Contract Hire and Op Leasing  ,CC64,Mini Cab Hire for Education,"2,380.00",31/05/2013,R,KINGSTON ACCESSIBILITY TRAN LT
625,CS -Oth Operating Inc & Expend,T/A Vehicle Maintenance etc,Transport-Contract Hire,J01374,Transport Related Expenditure ,Contract Hire and Op Leasing  ,CC64,Mini Cab Hire for Education,"2,380.00",31/05/2013,R,KINGSTON ACCESSIBILITY TRAN LT
626,CS -Oth Operating Inc & Expend,T/A Vehicle Maintenance etc,Transport-Contract Hire,J01374,Transport Related Expenditure ,Contract Hire and Op Leasing  ,CC64,Mini Cab Hire for Education,"2,380.00",31/05/2013,R,BARCLAYS ASSET & SALES FINANCE
627,CS -Oth Operating Inc & Expend,T/A Vehicle Maintenance etc,Transport-Contract Hire,J01374,Transport Related Expenditure ,Contract Hire and Op Leasing  ,CC64,Mini Cab Hire for Education,"2,448.00",31/05/2013,R,CAPITAL CARS                  
628,CS -Oth Operating Inc & Expend,T/A Vehicle Maintenance etc,Transport-Contract Hire,J01374,Transport Related Expenditure ,Contract Hire and Op Leasing  ,CC64,Mini Cab Hire for Education,"2,465.00",31/05/2013,R,SHERWOOD TRANSPORT GROUP      
629,CS -Oth Operating Inc & Expend,T/A Vehicle Maintenance etc,Transport-Contract Hire,J01374,Transport Related Expenditure ,Contract Hire and Op Leasing  ,CC64,Mini Cab Hire for Education,"2,520.00",04/06/2013,R,WALLINGTON CARS & COURIERS LTD
630,CS -Oth Operating Inc & Expend,T/A Vehicle Maintenance etc,Transport-Contract Hire,J01374,Transport Related Expenditure ,Contract Hire and Op Leasing  ,CC64,Mini Cab Hire for Education,"2,700.00",25/05/2013,R,WALLINGTON CARS & COURIERS LTD
631,CS -Oth Operating Inc & Expend,T/A Vehicle Maintenance etc,Transport-Contract Hire,J01374,Transport Related Expenditure ,Contract Hire and Op Leasing  ,CC64,Mini Cab Hire for Education,"2,703.00",31/05/2013,R,BRUNSWICK CARS LTD            
632,CS -Oth Operating Inc & Expend,T/A Vehicle Maintenance etc,Transport-Contract Hire,J01374,Transport Related Expenditure ,Contract Hire and Op Leasing  ,CC64,Mini Cab Hire for Education,"2,703.00",31/05/2013,R,SHERWOOD TRANSPORT GROUP      
633,CS -Oth Operating Inc & Expend,T/A Vehicle Maintenance etc,Transport-Contract Hire,J01374,Transport Related Expenditure ,Contract Hire and Op Leasing  ,CC64,Mini Cab Hire for Education,"2,804.24",31/05/2013,R,BARCLAYS ASSET & SALES FINANCE
634,CS -Oth Operating Inc & Expend,T/A Vehicle Maintenance etc,Transport-Contract Hire,J01374,Transport Related Expenditure ,Contract Hire and Op Leasing  ,CC64,Mini Cab Hire for Education,"2,850.00",31/03/2013,R,WALLINGTON CARS & COURIERS LTD
635,CS -Oth Operating Inc & Expend,T/A Vehicle Maintenance etc,Transport-Contract Hire,J01374,Transport Related Expenditure ,Contract Hire and Op Leasing  ,CC64,Mini Cab Hire for Education,"2,890.00",31/05/2013,R,BARCLAYS ASSET & SALES FINANCE
636,CS -Oth Operating Inc & Expend,T/A Vehicle Maintenance etc,Transport-Contract Hire,J01374,Transport Related Expenditure ,Contract Hire and Op Leasing  ,CC64,Mini Cab Hire for Education,"2,890.00",28/05/2013,R,SILVERBURN FINANCE (UK) LTD   
637,CS -Oth Operating Inc & Expend,T/A Vehicle Maintenance etc,Transport-Contract Hire,J01374,Transport Related Expenditure ,Contract Hire and Op Leasing  ,CC64,Mini Cab Hire for Education,"3,325.00",31/05/2013,R,BARCLAYS ASSET & SALES FINANCE
638,CS -Oth Operating Inc & Expend,T/A Vehicle Maintenance etc,Transport-Contract Hire,J01374,Transport Related Expenditure ,Contract Hire and Op Leasing  ,CC66,Mini Cab Hire -Soc Serv -Child,506,31/05/2013,R,NVCAR HIRE LTD                
639,CS -Oth Operating Inc & Expend,T/A Vehicle Maintenance etc,Transport-Contract Hire,J01374,Transport Related Expenditure ,Contract Hire and Op Leasing  ,CC66,Mini Cab Hire -Soc Serv -Child,576,31/05/2013,R,BARCLAYS ASSET & SALES FINANCE
640,CS -Oth Operating Inc & Expend,T/A Vehicle Maintenance etc,Transport-Contract Hire,J01374,Transport Related Expenditure ,Contract Hire and Op Leasing  ,CC66,Mini Cab Hire -Soc Serv -Child,595,31/05/2013,R,BARCLAYS ASSET & SALES FINANCE
641,CS -Oth Operating Inc & Expend,T/A Vehicle Maintenance etc,Transport-Contract Hire,J01374,Transport Related Expenditure ,Contract Hire and Op Leasing  ,CC66,Mini Cab Hire -Soc Serv -Child,660,31/05/2013,R,GALPINS SERVICE               
642,CS -Oth Operating Inc & Expend,T/A Vehicle Maintenance etc,Transport-Contract Hire,J01374,Transport Related Expenditure ,Contract Hire and Op Leasing  ,CC66,Mini Cab Hire -Soc Serv -Child,722,28/05/2013,R,SILVERBURN FINANCE (UK) LTD   
643,CS -Oth Operating Inc & Expend,T/A Vehicle Maintenance etc,Transport-Contract Hire,J01374,Transport Related Expenditure ,Contract Hire and Op Leasing  ,CC66,Mini Cab Hire -Soc Serv -Child,"1,142.00",31/05/2013,R,CAPITAL CARS                  
644,CS -Oth Operating Inc & Expend,T/A Vehicle Maintenance etc,Transport-Contract Hire,J01374,Transport Related Expenditure ,Contract Hire and Op Leasing  ,CC66,Mini Cab Hire -Soc Serv -Child,"1,260.00",31/05/2013,R,CAPITAL CARS                  
645,CS -Oth Operating Inc & Expend,T/A Vehicle Maintenance etc,Transport-Contract Hire,J01374,Transport Related Expenditure ,Contract Hire and Op Leasing  ,CC66,Mini Cab Hire -Soc Serv -Child,"1,683.00",31/05/2013,R,KINGSTON ACCESSIBILITY TRAN LT
646,CS -Oth Operating Inc & Expend,T/A Vehicle Maintenance etc,Transport-Contract Hire,J01374,Transport Related Expenditure ,Contract Hire and Op Leasing  ,CC66,Mini Cab Hire -Soc Serv -Child,"2,101.20",31/05/2013,R,KINGSTON ACCESSIBILITY TRAN LT
647,CS -Oth Operating Inc & Expend,T/A Vehicle Maintenance etc,Transport-Contract Hire,J01374,Transport Related Expenditure ,Contract Hire and Op Leasing  ,CC66,Mini Cab Hire -Soc Serv -Child,"2,279.62",31/05/2013,R,KINGSTON ACCESSIBILITY TRAN LT
648,CS -Oth Operating Inc & Expend,T/A Vehicle Maintenance etc,Transport-Contract Hire,J01374,Transport Related Expenditure ,Contract Hire and Op Leasing  ,CC67,Mini Cab Hire -Soc Serv -Adult,512,31/05/2013,R,BARCLAYS ASSET & SALES FINANCE
649,CS -Oth Operating Inc & Expend,T/A Vehicle Maintenance etc,Transport-Contract Hire,J01374,Transport Related Expenditure ,Contract Hire and Op Leasing  ,CC67,Mini Cab Hire -Soc Serv -Adult,680,31/05/2013,R,NVCAR HIRE LTD                
650,CS -Oth Operating Inc & Expend,T/A Vehicle Maintenance etc,Transport-Contract Hire,J01374,Transport Related Expenditure ,Contract Hire and Op Leasing  ,CC67,Mini Cab Hire -Soc Serv -Adult,684,31/05/2013,R,NVCAR HIRE LTD                
651,CS -Oth Operating Inc & Expend,T/A Vehicle Maintenance etc,Transport-Contract Hire,J01374,Transport Related Expenditure ,Contract Hire and Op Leasing  ,CC67,Mini Cab Hire -Soc Serv -Adult,702,28/05/2013,R,SILVERBURN FINANCE (UK) LTD   
652,CS -Oth Operating Inc & Expend,T/A Vehicle Maintenance etc,Transport-Contract Hire,J01374,Transport Related Expenditure ,Contract Hire and Op Leasing  ,CC67,Mini Cab Hire -Soc Serv -Adult,770,31/05/2013,R,KINGSTON ACCESSIBILITY TRAN LT
653,CS -Oth Operating Inc & Expend,T/A Vehicle Maintenance etc,Transport-Contract Hire,J01374,Transport Related Expenditure ,Contract Hire and Op Leasing  ,CC67,Mini Cab Hire -Soc Serv -Adult,826,31/05/2013,R,CAPITAL CARS                  
654,CS -Oth Operating Inc & Expend,T/A Vehicle Maintenance etc,Transport-Contract Hire,J01374,Transport Related Expenditure ,Contract Hire and Op Leasing  ,CC67,Mini Cab Hire -Soc Serv -Adult,840,03/06/2013,R,AERIAL CAR SERVICES LTD       
655,CS -Oth Operating Inc & Expend,T/A Vehicle Maintenance etc,Transport-Contract Hire,J01374,Transport Related Expenditure ,Contract Hire and Op Leasing  ,CC67,Mini Cab Hire -Soc Serv -Adult,844,31/05/2013,R,BARCLAYS ASSET & SALES FINANCE
656,CS -Oth Operating Inc & Expend,T/A Vehicle Maintenance etc,Transport-Contract Hire,J01374,Transport Related Expenditure ,Contract Hire and Op Leasing  ,CC67,Mini Cab Hire -Soc Serv -Adult,888,03/06/2013,R,AERIAL CAR SERVICES LTD       
657,CS -Oth Operating Inc & Expend,T/A Vehicle Maintenance etc,Transport-Contract Hire,J01374,Transport Related Expenditure ,Contract Hire and Op Leasing  ,CC67,Mini Cab Hire -Soc Serv -Adult,896,31/05/2013,R,BARCLAYS ASSET & SALES FINANCE
658,CS -Oth Operating Inc & Expend,T/A Vehicle Maintenance etc,Transport-Contract Hire,J01374,Transport Related Expenditure ,Contract Hire and Op Leasing  ,CC67,Mini Cab Hire -Soc Serv -Adult,900,31/05/2013,R,KINGSTON ACCESSIBILITY TRAN LT
659,CS -Oth Operating Inc & Expend,T/A Vehicle Maintenance etc,Transport-Contract Hire,J01374,Transport Related Expenditure ,Contract Hire and Op Leasing  ,CC67,Mini Cab Hire -Soc Serv -Adult,924.6,31/05/2013,R,KINGSTON ACCESSIBILITY TRAN LT
660,CS -Oth Operating Inc & Expend,T/A Vehicle Maintenance etc,Transport-Contract Hire,J01374,Transport Related Expenditure ,Contract Hire and Op Leasing  ,CC67,Mini Cab Hire -Soc Serv -Adult,"1,034.00",31/05/2013,R,CAPITAL CARS                  
661,CS -Oth Operating Inc & Expend,T/A Vehicle Maintenance etc,Transport-Contract Hire,J01374,Transport Related Expenditure ,Contract Hire and Op Leasing  ,CC67,Mini Cab Hire -Soc Serv -Adult,"1,088.00",31/05/2013,R,BARCLAYS ASSET & SALES FINANCE
662,CS -Oth Operating Inc & Expend,T/A Vehicle Maintenance etc,Transport-Contract Hire,J01374,Transport Related Expenditure ,Contract Hire and Op Leasing  ,CC67,Mini Cab Hire -Soc Serv -Adult,"1,216.00",31/05/2013,R,A STAR TRANSPORT LIMITED      
663,CS -Oth Operating Inc & Expend,T/A Vehicle Maintenance etc,Transport-Contract Hire,J01374,Transport Related Expenditure ,Contract Hire and Op Leasing  ,CC67,Mini Cab Hire -Soc Serv -Adult,"1,322.00",31/05/2013,R,CAPITAL CARS                  
664,CS -Oth Operating Inc & Expend,T/A Vehicle Maintenance etc,Transport-Contract Hire,J01374,Transport Related Expenditure ,Contract Hire and Op Leasing  ,CC67,Mini Cab Hire -Soc Serv -Adult,"1,356.00",31/05/2013,R,NVCAR HIRE LTD                
665,CS -Oth Operating Inc & Expend,T/A Vehicle Maintenance etc,Transport-Contract Hire,J01374,Transport Related Expenditure ,Contract Hire and Op Leasing  ,CC67,Mini Cab Hire -Soc Serv -Adult,"1,456.00",31/05/2013,R,NVCAR HIRE LTD                
666,CS -Oth Operating Inc & Expend,T/A Vehicle Maintenance etc,Transport-Contract Hire,J01374,Transport Related Expenditure ,Contract Hire and Op Leasing  ,CC67,Mini Cab Hire -Soc Serv -Adult,"1,538.58",31/05/2013,R,KINGSTON ACCESSIBILITY TRAN LT
667,CS -Oth Operating Inc & Expend,T/A Vehicle Maintenance etc,Transport-Contract Hire,J01374,Transport Related Expenditure ,Contract Hire and Op Leasing  ,CC67,Mini Cab Hire -Soc Serv -Adult,"1,885.38",31/05/2013,R,KINGSTON ACCESSIBILITY TRAN LT
668,CS -Oth Operating Inc & Expend,T/A Vehicle Maintenance etc,Transport-Contract Hire,J01374,Transport Related Expenditure ,Contract Hire and Op Leasing  ,CC68,Vehicle Hire Special Projects,561,31/05/2013,R,GALPINS SERVICE               
669,CS -Oth Operating Inc & Expend,T/A Vehicle Maintenance etc,Transport-Contract Hire,J01374,Transport Related Expenditure ,Contract Hire and Op Leasing  ,CC68,Vehicle Hire Special Projects,650,31/05/2013,R,CAPITAL CARS                  
670,CS -Oth Operating Inc & Expend,T/A Vehicle Maintenance etc,Transport-Contract Hire,J01374,Transport Related Expenditure ,Contract Hire and Op Leasing  ,CC68,Vehicle Hire Special Projects,744.6,31/05/2013,R,KINGSTON ACCESSIBILITY TRAN LT
671,CS -Oth Operating Inc & Expend,T/A Vehicle Maintenance etc,Transport-Contract Hire,J01374,Transport Related Expenditure ,Contract Hire and Op Leasing  ,CC68,Vehicle Hire Special Projects,819,31/05/2013,R,BARCLAYS ASSET & SALES FINANCE
672,CS -Oth Operating Inc & Expend,T/A Vehicle Maintenance etc,Transport-Contract Hire,J01374,Transport Related Expenditure ,Contract Hire and Op Leasing  ,CC68,Vehicle Hire Special Projects,975,28/05/2013,R,SILVERBURN FINANCE (UK) LTD   
673,CS -Oth Operating Inc & Expend,T/A Vehicle Maintenance etc,Transport-Contract Hire,J01374,Transport Related Expenditure ,Contract Hire and Op Leasing  ,CC68,Vehicle Hire Special Projects,"1,156.00",28/05/2013,R,SILVERBURN FINANCE (UK) LTD   
674,CS -Oth Operating Inc & Expend,T/A Vehicle Maintenance etc,Transport-Contract Hire,J01374,Transport Related Expenditure ,Contract Hire and Op Leasing  ,CC68,Vehicle Hire Special Projects,"1,194.50",31/05/2013,R,BARCLAYS ASSET & SALES FINANCE
675,CS -Oth Operating Inc & Expend,T/A Vehicle Maintenance etc,Transport-Contract Hire,J01374,Transport Related Expenditure ,Contract Hire and Op Leasing  ,CC68,Vehicle Hire Special Projects,"1,526.26",31/05/2013,R,KINGSTON ACCESSIBILITY TRAN LT
676,CS -Oth Operating Inc & Expend,T/A Vehicle Maintenance etc,Transport-Contract Hire,J01374,Transport Related Expenditure ,Contract Hire and Op Leasing  ,CC68,Vehicle Hire Special Projects,"2,040.00",31/05/2013,R,SHERWOOD TRANSPORT GROUP      
677,CS -Oth Operating Inc & Expend,T/A Vehicle Maintenance etc,Transport-Contract Hire,J01374,Transport Related Expenditure ,Contract Hire and Op Leasing  ,CC68,Vehicle Hire Special Projects,"2,125.00",31/05/2013,R,KINGSTON ACCESSIBILITY TRAN LT
678,CS -Oth Operating Inc & Expend,T/A Vehicle Maintenance etc,Transport-Contract Hire,J01374,Transport Related Expenditure ,Contract Hire and Op Leasing  ,CC68,Vehicle Hire Special Projects,"2,131.32",31/05/2013,R,KINGSTON ACCESSIBILITY TRAN LT
679,CS -Oth Operating Inc & Expend,T/A Vehicle Maintenance etc,Transport-Contract Hire,J01374,Transport Related Expenditure ,Contract Hire and Op Leasing  ,CC68,Vehicle Hire Special Projects,"2,528.00",31/05/2013,R,BARCLAYS ASSET & SALES FINANCE
680,CS -Oth Operating Inc & Expend,T/A Vehicle Maintenance etc,Transport-Workshop,J01376,Premises Related Expenditure  ,Energy Costs                  ,BB03,Gas (incl. Butane),567.37,14/05/2013,R,GAZPROM MARKETING&TRADING LTD 
681,CS -Oth Operating Inc & Expend,T/A Vehicle Maintenance etc,Transport-Workshop,J01376,Transport Related Expenditure ,Direct Transport Costs        ,CA01,Petrol Derv & Oil,"1,250.00",23/05/2013,R,REDACTED
682,CS -Oth Operating Inc & Expend,T/A Vehicle Maintenance etc,Transport-Workshop,J01376,Transport Related Expenditure ,Contract Hire and Op Leasing  ,CC60,Vehicle Hire for LB Sutton,552.5,31/05/2013,R,KINGSTON ACCESSIBILITY TRAN LT
683,CS -Oth Operating Inc & Expend,T/A Vehicle Maintenance etc,Transport-Workshop,J01376,Transport Related Expenditure ,Contract Hire and Op Leasing  ,CC60,Vehicle Hire for LB Sutton,629,31/05/2013,R,CAPITAL CARS                  
684,CS -Oth Operating Inc & Expend,T/A Vehicle Maintenance etc,Transport-Workshop,J01376,Transport Related Expenditure ,Contract Hire and Op Leasing  ,CC60,Vehicle Hire for LB Sutton,649.83,31/05/2013,R,KINGSTON ACCESSIBILITY TRAN LT
685,CS -Oth Operating Inc & Expend,T/A Vehicle Maintenance etc,Transport-Workshop,J01376,Transport Related Expenditure ,Contract Hire and Op Leasing  ,CC60,Vehicle Hire for LB Sutton,840,25/05/2013,R,CALVERTON FACTORS LTD         
686,CS -Oth Operating Inc & Expend,T/A Vehicle Maintenance etc,Transport-Workshop,J01376,Transport Related Expenditure ,Contract Hire and Op Leasing  ,CC60,Vehicle Hire for LB Sutton,"1,020.00",31/05/2013,R,BARCLAYS ASSET & SALES FINANCE
687,CS -Oth Operating Inc & Expend,T/A Vehicle Maintenance etc,Transport-Workshop,J01376,Transport Related Expenditure ,Contract Hire and Op Leasing  ,CC60,Vehicle Hire for LB Sutton,"1,036.00",25/05/2013,R,CALVERTON FACTORS LTD         
688,CS -Oth Operating Inc & Expend,T/A Vehicle Maintenance etc,Transport-Workshop,J01376,Transport Related Expenditure ,Contract Hire and Op Leasing  ,CC60,Vehicle Hire for LB Sutton,"1,530.00",25/05/2013,R,CALVERTON FACTORS LTD         
689,CS -Oth Operating Inc & Expend,T/A Vehicle Maintenance etc,Transport-Workshop,J01376,Transport Related Expenditure ,Contract Hire and Op Leasing  ,CC60,Vehicle Hire for LB Sutton,"1,666.00",31/05/2013,R,BARCLAYS ASSET & SALES FINANCE
690,CS -Oth Operating Inc & Expend,T/A Vehicle Maintenance etc,Transport-Workshop,J01376,Transport Related Expenditure ,Contract Hire and Op Leasing  ,CC60,Vehicle Hire for LB Sutton,"1,695.00",25/05/2013,R,CALVERTON FACTORS LTD         
691,CS -Oth Operating Inc & Expend,T/A Vehicle Maintenance etc,Transport-Workshop,J01376,Transport Related Expenditure ,Contract Hire and Op Leasing  ,CC60,Vehicle Hire for LB Sutton,"1,751.00",31/05/2013,R,BRUNSWICK CARS LTD            
692,CS -Oth Operating Inc & Expend,T/A Vehicle Maintenance etc,Transport-Workshop,J01376,Transport Related Expenditure ,Contract Hire and Op Leasing  ,CC60,Vehicle Hire for LB Sutton,"1,806.00",31/05/2013,R,BARCLAYS ASSET & SALES FINANCE
693,CS -Oth Operating Inc & Expend,T/A Vehicle Maintenance etc,Transport-Workshop,J01376,Transport Related Expenditure ,Contract Hire and Op Leasing  ,CC60,Vehicle Hire for LB Sutton,"1,904.00",31/05/2013,R,BRUNSWICK CARS LTD            
694,CS -Oth Operating Inc & Expend,T/A Vehicle Maintenance etc,Transport-Workshop,J01376,Transport Related Expenditure ,Contract Hire and Op Leasing  ,CC60,Vehicle Hire for LB Sutton,"2,380.00",31/05/2013,R,BRUNSWICK CARS LTD            
695,CS -Oth Operating Inc & Expend,T/A Vehicle Maintenance etc,Transport-Workshop,J01376,Transport Related Expenditure ,Contract Hire and Op Leasing  ,CC60,Vehicle Hire for LB Sutton,"5,208.00",31/05/2013,R,BARCLAYS ASSET & SALES FINANCE
696,CS -Oth Operating Inc & Expend,T/A Vehicle Maintenance etc,Transport-Workshop,J01376,Supplies & Services           ,Equip Furniture/Materials     ,DA01,Equipment - R & M,565.44,22/05/2013,R,THE COMPRESSED AIR CENTRE LTD 
697,CS -Oth Operating Inc & Expend,T/A Vehicle Maintenance etc,Transport-Workshop,J01376,Supplies & Services           ,Equip Furniture/Materials     ,DA01,Equipment - R & M,576.64,25/05/2013,R,SUNLIGHT SERVICE GROUP LTD    
698,CS -Oth Operating Inc & Expend,T/A Vehicle Maintenance etc,Transport-Workshop,J01376,Supplies & Services           ,Equip Furniture/Materials     ,DA01,Equipment - R & M,720.8,27/04/2013,R,SUNLIGHT SERVICE GROUP LTD    
699,CS -Oth Operating Inc & Expend,T/A Vehicle Maintenance etc,Transport-Workshop,J01376,Supplies & Services           ,Services                      ,DF03,Consultants,500,25/06/2013,R,MARKS AND SPENCER GIFT VOUCHER
700,CS -Oth Operating Inc & Expend,Extraordinary Items & PY Adj.,Gdn r.o. 44 S'down Rd,J01451,Supplies & Services           ,Services                      ,DF09,Miscellaneous Fees,584.4,20/02/2013,R,JORDANS LTD                   
701,CS -Oth Operating Inc & Expend,Extraordinary Items & PY Adj.,Housing Shops,J01533,Premises Related Expenditure  ,RepairsAlterations&MtceOfBldgs,BA79,Security of Premises,"6,650.80",01/06/2013,R,SIGHT & SOUND                 
702,Childrens & Education Services,Statutory & Regulatory Duties,Senior Mngt & Support Services,K01005,Supplies & Services           ,Services                      ,DF11,Counsel's fees,500,10/05/2013,R,REDACTED
703,Childrens & Education Services,Statutory & Regulatory Duties,Senior Mngt & Support Services,K01005,Supplies & Services           ,Services                      ,DF11,Counsel's fees,600,21/05/2013,R,REDACTED
704,Childrens & Education Services,Statutory & Regulatory Duties,Senior Mngt & Support Services,K01005,Supplies & Services           ,Services                      ,DF11,Counsel's fees,"1,095.00",21/05/2013,R,REDACTED
705,Childrens & Education Services,Statutory & Regulatory Duties,Senior Mngt & Support Services,K01005,Supplies & Services           ,Services                      ,DF11,Counsel's fees,"2,280.00",12/04/2013,R,REDACTED
706,Childrens & Education Services,Statutory & Regulatory Duties,Central Administration,K01008,Supplies & Services           ,Comms and Computing           ,DG04,Postage - General,510,03/06/2013,R,TRAVELCARE                    
707,Childrens & Education Services,Statutory & Regulatory Duties,Schools IT Support,K02008,Supplies & Services           ,Comms and Computing           ,DG50,Other IT Expenditure,530.76,12/06/2013,R,ATOMWIDE LTD                  
708,Childrens & Education Services,Statutory & Regulatory Duties,Schools IT Support,K02008,Supplies & Services           ,Comms and Computing           ,DG50,Other IT Expenditure,600,22/05/2013,R,ATOMWIDE LTD                  
709,Childrens & Education Services,Statutory & Regulatory Duties,Schools IT Support,K02008,Supplies & Services           ,Comms and Computing           ,DG50,Other IT Expenditure,600,04/06/2013,R,ATOMWIDE LTD                  
710,Childrens & Education Services,Statutory & Regulatory Duties,Schools IT Support,K02008,Supplies & Services           ,Comms and Computing           ,DG50,Other IT Expenditure,600,01/05/2013,R,ATOMWIDE LTD                  
711,Childrens & Education Services,Statutory & Regulatory Duties,Schools IT Support,K02008,Supplies & Services           ,Comms and Computing           ,DG50,Other IT Expenditure,840,15/04/2013,R,EASY IT CARE LTD              
712,Childrens & Education Services,Statutory & Regulatory Duties,Schools IT Support,K02008,Supplies & Services           ,Comms and Computing           ,DG50,Other IT Expenditure,900,22/05/2013,R,ATOMWIDE LTD                  
713,Childrens & Education Services,Statutory & Regulatory Duties,Schools IT Support,K02008,Supplies & Services           ,Comms and Computing           ,DG50,Other IT Expenditure,"2,300.00",15/04/2013,R,EASY IT CARE LTD              
714,Childrens & Education Services,Statutory & Regulatory Duties,Schools IT Support,K02008,Supplies & Services           ,Comms and Computing           ,DG50,Other IT Expenditure,"2,500.00",12/06/2013,R,ATOMWIDE LTD                  
715,Childrens & Education Services,Asset Management,PFI Unitary Charges,K03023,Supplies & Services           ,Services                      ,DF11,Counsel's fees,"6,062.06",31/05/2013,R,NEWSCHOOLS (MERTON) LIMITED   
716,Childrens & Education Services,Asset Management,PFI Unitary Charges,K03023,Third Party Payments          ,Private Contractors           ,EH01,Miscellaneous Contrct Services,"1,213.63",04/04/2013,R,CHUBB ELECTRONIC SEC. SYSTEMS 
717,Childrens & Education Services,Asset Management,PFI Unitary Charges,K03023,Third Party Payments          ,Private Contractors           ,EH02,Miscellaneous Hired Services,742.72,31/05/2013,R,NEWSCHOOLS (MERTON) LIMITED   
718,Childrens & Education Services,Asset Management,PFI Unitary Charges,K03023,Third Party Payments          ,Private Contractors           ,EH02,Miscellaneous Hired Services,"2,956.67",31/05/2013,R,NEWSCHOOLS (MERTON) LIMITED   
719,Childrens & Education Services,Asset Management,PFI Unitary Charges,K03023,Third Party Payments          ,Private Contractors           ,EH02,Miscellaneous Hired Services,"6,566.13",31/05/2013,R,NEWSCHOOLS (MERTON) LIMITED   
720,Childrens & Education Services,Asset Management,PFI Unitary Charges,K03023,Third Party Payments          ,Private Contractors           ,EH10,Contract Payments,"-2,352,423.58",07/06/2013,R,NEWSCHOOLS (MERTON) LIMITED   
721,Childrens & Education Services,Asset Management,PFI Unitary Charges,K03023,Third Party Payments          ,Private Contractors           ,EH10,Contract Payments,"3,295,770.02",05/06/2013,R,NEWSCHOOLS (MERTON) LIMITED   
722,Childrens & Education Services,GENERATED ACCOUNT,SEN Connexions,K04016,Employees                     ,Direct Employee Expenses      ,AA17,Agency Staff & Casual Paymts,"3,200.00",25/05/2013,R,REDACTED
723,Childrens & Education Services,Statutory & Regulatory Duties,Head of Special Educatn Needs,K04017,Employees                     ,Indirect Employee Expenses    ,AB02,Recruitment Adverts,"1,520.00",18/06/2013,R,PENNA COMMUNICATIONS (NO 2 A/C
724,Childrens & Education Services,Support for SEN Pupils,Statementing-Transport,K04023,Transport Related Expenditure ,Public Transport              ,CD50,Home Sch/Coll Trans(Trav Exps),729,17/05/2013,R,ST MARY'S WRESTWOOD CHILDRENS 
725,Childrens & Education Services,Support for SEN Pupils,Statementing-Transport,K04023,Transport Related Expenditure ,Public Transport              ,CD50,Home Sch/Coll Trans(Trav Exps),"1,040.00",28/05/2013,R,REDACTED
726,Childrens & Education Services,Behavioural Support,Statement Support Team,K04034,Employees                     ,Direct Employee Expenses      ,AA17,Agency Staff & Casual Paymts,"13,685.00",15/05/2013,R,REDACTED
727,Childrens & Education Services,Oth U5s Provn Not Prim or Spec,GSSG Workforce Development,K05111,Employees                     ,Indirect Employee Expenses    ,AB56,Internal Training Costs,500,16/06/2013,R,REDACTED
728,Childrens & Education Services,Oth U5s Provn Not Prim or Spec,GSSG Workforce Development,K05111,Supplies & Services           ,Services                      ,DF03,Consultants,"1,600.00",01/05/2013,R,REDACTED
729,Childrens & Education Services,Oth U5s Provn Not Prim or Spec,GSSG Workforce Development,K05111,Supplies & Services           ,Services                      ,DF03,Consultants,"2,000.00",01/06/2013,R,REDACTED
730,Childrens & Education Services,Nursery schools,EY-Support Childminding Fundin,K05409,Supplies & Services           ,Catering                      ,DB50,Refreshments,510,29/05/2013,R,ELIM PENTECOSTAL CHURCH       
731,Childrens & Education Services,GENERATED ACCOUNT,Lavender Children's Centre,K05410,Premises Related Expenditure  ,Energy Costs                  ,BB03,Gas (incl. Butane),-533.2,28/05/2013,R,KENT COUNTY COUNCIL           
732,Childrens & Education Services,GENERATED ACCOUNT,Lavender Children's Centre,K05410,Premises Related Expenditure  ,Energy Costs                  ,BB03,Gas (incl. Butane),514.31,28/05/2013,R,KENT COUNTY COUNCIL           
733,Childrens & Education Services,GENERATED ACCOUNT,Mitcham MAT (Premises),K05412,Premises Related Expenditure  ,RepairsAlterations&MtceOfBldgs,BA79,Security of Premises,999.78,09/05/2013,R,CHUBB ELECTRONIC SEC. SYSTEMS 
734,Childrens & Education Services,GENERATED ACCOUNT,Mitcham MAT (Premises),K05412,Premises Related Expenditure  ,Energy Costs                  ,BB02,Electricity,"1,207.94",25/04/2013,R,EDF ENERGY 1 LIMITED          
735,Childrens & Education Services,GENERATED ACCOUNT,Mitcham MAT (Premises),K05412,Premises Related Expenditure  ,Energy Costs                  ,BB02,Electricity,"2,331.45",25/04/2013,R,EDF ENERGY 1 LIMITED          
736,Childrens & Education Services,Nursery schools,Lavender CC Non Childcare,K05415,Premises Related Expenditure  ,Cleaning and Domestic Supplies,BH03,Cleaning Services,"1,012.09",31/05/2013,R,RE MCS CLEANING SERVICES LTD  
737,Childrens & Education Services,Nursery schools,E.Years-Intergenerational Cntr,K05416,Employees                     ,Indirect Employee Expenses    ,AB56,Internal Training Costs,600,12/06/2013,R,ACTUAL FIRST AID LTD          
738,Childrens & Education Services,Nursery schools,E.Years-Intergenerational Cntr,K05416,Premises Related Expenditure  ,RepairsAlterations&MtceOfBldgs,BA06,Repairs & Maintenance General,"2,910.00",11/06/2013,R,ICAX LTD                      
739,Childrens & Education Services,Nursery schools,E.Years-Intergenerational Cntr,K05416,Premises Related Expenditure  ,Energy Costs                  ,BB02,Electricity,947.63,07/06/2013,R,SCOTTISHPOWER                 
740,Childrens & Education Services,Nursery schools,E.Years-Intergenerational Cntr,K05416,Premises Related Expenditure  ,Energy Costs                  ,BB02,Electricity,975.47,08/05/2013,R,SCOTTISHPOWER                 
741,Childrens & Education Services,Nursery schools,E.Years-Intergenerational Cntr,K05416,Premises Related Expenditure  ,Energy Costs                  ,BB02,Electricity,"1,028.20",02/05/2013,R,KENT COUNTY COUNCIL           
742,Childrens & Education Services,Nursery schools,E.Years-Intergenerational Cntr,K05416,Premises Related Expenditure  ,Energy Costs                  ,BB02,Electricity,"1,068.47",02/05/2013,R,KENT COUNTY COUNCIL           
743,Childrens & Education Services,Nursery schools,E.Years-Intergenerational Cntr,K05416,Premises Related Expenditure  ,Energy Costs                  ,BB02,Electricity,"1,081.45",02/05/2013,R,KENT COUNTY COUNCIL           
744,Childrens & Education Services,Nursery schools,E.Years-Intergenerational Cntr,K05416,Premises Related Expenditure  ,Energy Costs                  ,BB02,Electricity,"1,159.29",02/05/2013,R,KENT COUNTY COUNCIL           
745,Childrens & Education Services,Nursery schools,E.Years-Intergenerational Cntr,K05416,Premises Related Expenditure  ,Energy Costs                  ,BB02,Electricity,"1,185.15",02/05/2013,R,KENT COUNTY COUNCIL           
746,Childrens & Education Services,Nursery schools,E.Years-Intergenerational Cntr,K05416,Premises Related Expenditure  ,Cleaning and Domestic Supplies,BH03,Cleaning Services,796.82,31/05/2013,R,BIRKIN CLEANING SERVICES LTD  
747,Childrens & Education Services,Nursery schools,E.Years-Intergenerational Cntr,K05416,Supplies & Services           ,Services                      ,DF03,Consultants,"2,298.24",03/05/2013,R,REDACTED
748,Childrens & Education Services,Nursery schools,E.Years-Intergenerational Cntr,K05416,Supplies & Services           ,Services                      ,DF03,Consultants,"2,521.68",01/06/2013,R,REDACTED
749,Childrens & Education Services,Nursery schools,E.Years-Intergenerational Cntr,K05416,Supplies & Services           ,Services                      ,DF30,Activities Programme,"1,200.00",11/06/2013,R,PRE-SCHOOL LEARNING ALLIANCE  
750,Childrens & Education Services,Vocational - Adult Education,AE-additional learner SF,K06046,Supplies & Services           ,Services                      ,DF07,Bought in Teaching Services,600,31/05/2013,R,REDACTED
751,Childrens & Education Services,Vocational - Adult Education,AE-Adult Education Main,K06049,Premises Related Expenditure  ,Energy Costs                  ,BB03,Gas (incl. Butane),"-2,154.46",24/05/2013,R,KENT COUNTY COUNCIL           
752,Childrens & Education Services,Vocational - Adult Education,AE-Adult Education Main,K06049,Premises Related Expenditure  ,Energy Costs                  ,BB03,Gas (incl. Butane),"1,003.28",06/06/2013,R,GAZPROM MARKETING&TRADING LTD 
753,Childrens & Education Services,Vocational - Adult Education,AE-Adult Education Main,K06049,Premises Related Expenditure  ,Energy Costs                  ,BB03,Gas (incl. Butane),"2,133.15",24/05/2013,R,KENT COUNTY COUNCIL           
754,Childrens & Education Services,Vocational - Adult Education,AE-Adult Education Main,K06049,Premises Related Expenditure  ,Cleaning and Domestic Supplies,BH03,Cleaning Services,"3,255.10",25/05/2013,R,JULIUS RUTHERFOORD & CO LTD   
755,Childrens & Education Services,Vocational - Adult Education,AE-Adult Education Main,K06049,Supplies & Services           ,Equip Furniture/Materials     ,DA09,Equip-Purchases,520.94,20/05/2013,R,NISBETS                       
756,Childrens & Education Services,Vocational - Adult Education,AE-Adult Education Main,K06049,Supplies & Services           ,Services                      ,DF02,Misc Advertising/Publicity,"1,104.00",18/05/2013,R,NEWSQUEST (LONDON)LTD         
757,Childrens & Education Services,Vocational - Adult Education,AE-Adult Education Main,K06049,Supplies & Services           ,Services                      ,DF02,Misc Advertising/Publicity,"2,011.00",12/06/2013,R,STUDIO ELEVEN LTD             
758,Childrens & Education Services,Vocational - Adult Education,AE-Adult Education Main,K06049,Supplies & Services           ,Services                      ,DF02,Misc Advertising/Publicity,"6,575.00",15/04/2013,R,HOTCOURSES                    
759,Childrens & Education Services,Vocational - Adult Education,AE-Adult Education Main,K06049,Supplies & Services           ,Services                      ,DF27,Examination Fees,"1,038.40",22/05/2013,R,EDEXCEL                       
760,Childrens & Education Services,Vocational - Adult Education,AE-Adult Education Main,K06049,Supplies & Services           ,Services                      ,DF27,Examination Fees,"1,524.00",08/02/2013,R,UCLES                         
761,Childrens & Education Services,Vocational - Adult Education,AE-Adult Education Main,K06049,Supplies & Services           ,Services                      ,DF27,Examination Fees,"2,242.75",13/06/2013,R,UCLES                         
762,Childrens & Education Services,Vocational - Adult Education,AE-Adult Education Main,K06049,Supplies & Services           ,Services                      ,DF27,Examination Fees,"6,062.25",06/06/2013,R,UCLES                         
763,Childrens & Education Services,Vocational - Adult Education,AE-Adult Education Main,K06049,Supplies & Services           ,Comms and Computing           ,DG05,Telephones - Gen-Creditors,795,31/05/2013,R,NETWORK SOLUTIONS INC         
764,Childrens & Education Services,Youth Centres (Residential),Youth Service,K06053,Premises Related Expenditure  ,Energy Costs                  ,BB02,Electricity,"1,321.41",29/05/2013,R,SOUTHERN ELECTRIC             
765,Childrens & Education Services,Youth Centres (Residential),Youth Service,K06053,Supplies & Services           ,Expenses                      ,DH02,Conferences,"1,670.00",20/06/2013,R,FED FOR DETACHED YOUTH WORK   
766,Childrens & Education Services,Youth Centres (Residential),Youth Service,K06053,Supplies & Services           ,Expenses                      ,DH12,Young Peoples Expenses,500,21/05/2013,R,REDACTED
767,Childrens & Education Services,Youth Centres (Residential),Youth Office Premises Cost,K06073,Premises Related Expenditure  ,RepairsAlterations&MtceOfBldgs,BA03,DDM - Mechanical,"1,305.30",13/02/2012,R,COFELY LIMITED                
768,Childrens & Education Services,Youth Centres (Residential),PAYP Moving Forward in Life,K06092,Employees                     ,Indirect Employee Expenses    ,AB57,External Training Costs,525,30/05/2013,R,HELPLINES PARTNERSHIP         
769,Childrens & Education Services,Youth Centres (Residential),PAYP Moving Forward in Life,K06092,Employees                     ,Indirect Employee Expenses    ,AB57,External Training Costs,578.18,03/06/2013,R,HELPLINES PARTNERSHIP         
770,Childrens & Education Services,Vocational - Adult Education,AE-Twds-Independence,K06101,Supplies & Services           ,Equip Furniture/Materials     ,DA04,Materials,500,07/06/2013,R,THE MAKATON CHARITY           
771,Childrens & Education Services,Pupil Support,Young Person Substance Misuse,K06114,Third Party Payments          ,Private Contractors           ,EH01,Miscellaneous Contrct Services,"51,198.00",14/05/2013,R,CATCH 22                      
772,Childrens & Education Services,Asset Management,S106 Bid,K08077,Premises Related Expenditure  ,RepairsAlterations&MtceOfBldgs,BA79,Security of Premises,"8,334.00",01/06/2013,R,SIGHT & SOUND                 
773,Childrens & Education Services,Asset Management,S106 Bid,K08077,Premises Related Expenditure  ,Rents                         ,BC03,Room/venue rental hire,680.34,01/06/2013,R,PORTAKABIN LIMITED            
774,Childrens & Education Services,Asset Management,Centre Commissioned Servs,K08078,Supplies & Services           ,Grants and Subscriptions      ,DJ01,Grants,"1,375.00",01/04/2013,R,SOUTH LONDON REFUGEE ASSOC.   
775,Childrens & Education Services,Asset Management,Centre Commissioned Servs,K08078,Supplies & Services           ,Grants and Subscriptions      ,DJ01,Grants,"2,687.50",21/05/2013,R,CARERS SUPPORT MERTON         
776,Childrens & Education Services,Asset Management,Centre Commissioned Servs,K08078,Supplies & Services           ,Grants and Subscriptions      ,DJ01,Grants,"2,812.50",26/04/2013,R,HERCULES WIMBLEDON ATHELETICS 
777,Childrens & Education Services,Asset Management,Centre Commissioned Servs,K08078,Supplies & Services           ,Grants and Subscriptions      ,DJ01,Grants,"4,880.00",05/06/2013,R,ASSOC. FOR THE POLISH FAMILY  
778,Childrens & Education Services,Asset Management,Centre Commissioned Servs,K08078,Supplies & Services           ,Grants and Subscriptions      ,DJ01,Grants,"6,187.50",10/06/2013,R,HERCULES WIMBLEDON ATHELETICS 
779,Childrens & Education Services,Asset Management,Centre Commissioned Servs,K08078,Supplies & Services           ,Grants and Subscriptions      ,DJ01,Grants,"6,250.00",19/06/2013,R,THE SQUAD CLUB                
780,Childrens & Education Services,Asset Management,Centre Commissioned Servs,K08078,Supplies & Services           ,Grants and Subscriptions      ,DJ01,Grants,"6,250.00",05/06/2013,R,COMMONSIDE COMMUNITY DEV TRUST
781,Childrens & Education Services,Asset Management,Centre Commissioned Servs,K08078,Supplies & Services           ,Grants and Subscriptions      ,DJ01,Grants,"6,250.00",01/05/2013,R,JIGSAW4U                      
782,Childrens & Education Services,Asset Management,Centre Commissioned Servs,K08078,Supplies & Services           ,Grants and Subscriptions      ,DJ01,Grants,"7,500.00",24/04/2013,R,COMMONSIDE COMMUNITY DEV TRUST
783,Childrens & Education Services,Asset Management,Centre Commissioned Servs,K08078,Supplies & Services           ,Grants and Subscriptions      ,DJ01,Grants,"7,500.00",01/06/2013,R,JIGSAW4U                      
784,Childrens & Education Services,Asset Management,Centre Commissioned Servs,K08078,Supplies & Services           ,Grants and Subscriptions      ,DJ01,Grants,"7,500.00",25/04/2013,R,ENDEAVOUR CLUB                
785,Childrens & Education Services,Asset Management,Centre Commissioned Servs,K08078,Supplies & Services           ,Grants and Subscriptions      ,DJ01,Grants,"8,000.00",17/06/2013,R,SOUTH LONDON REFUGEE ASSOC.   
786,Childrens & Education Services,Asset Management,Centre Commissioned Servs,K08078,Supplies & Services           ,Grants and Subscriptions      ,DJ01,Grants,"9,000.00",06/06/2013,R,BARNARDOS                     
787,Childrens & Education Services,Asset Management,Centre Commissioned Servs,K08078,Supplies & Services           ,Grants and Subscriptions      ,DJ01,Grants,"9,500.00",22/04/2013,R,YMCA LONDON SOUTH WEST        
788,Childrens & Education Services,Asset Management,Centre Commissioned Servs,K08078,Supplies & Services           ,Grants and Subscriptions      ,DJ01,Grants,"10,000.00",17/04/2013,R,MERTON VOLUNTARY SERV COUNCIL 
789,Childrens & Education Services,Asset Management,Centre Commissioned Servs,K08078,Supplies & Services           ,Grants and Subscriptions      ,DJ01,Grants,"12,927.75",20/04/2013,R,UPTOWN UK                     
790,Childrens & Education Services,Asset Management,Centre Commissioned Servs,K08078,Supplies & Services           ,Grants and Subscriptions      ,DJ01,Grants,"18,750.00",21/05/2013,R,CARERS SUPPORT MERTON         
791,Childrens & Education Services,Facilitating School Improvemnt,SSQ,K09077,Employees                     ,Indirect Employee Expenses    ,AB02,Recruitment Adverts,"2,865.60",31/05/2013,R,PENNA COMMUNICATIONS (NO 2 A/C
792,Childrens & Education Services,Facilitating School Improvemnt,SSQ,K09077,Supplies & Services           ,Equip Furniture/Materials     ,DA58,Education Materials,718.84,30/04/2013,R,STORMFRONT RETAIL LTD         
793,Childrens & Education Services,Facilitating School Improvemnt,SSQ,K09077,Supplies & Services           ,Equip Furniture/Materials     ,DA58,Education Materials,840,11/06/2013,R,STORMFRONT RETAIL LTD         
794,Childrens & Education Services,Facilitating School Improvemnt,SSQ,K09077,Supplies & Services           ,Expenses                      ,DH03,Hospitality,633.25,10/06/2013,R,ISS COLLECTIONS LTD           
795,Childrens & Education Services,Statutory & Regulatory Duties,Profess Develop Cntre,K09084,Premises Related Expenditure  ,Energy Costs                  ,BB03,Gas (incl. Butane),"1,155.47",13/05/2013,R,KENT COUNTY COUNCIL           
796,Childrens & Education Services,Statutory & Regulatory Duties,Profess Develop Cntre,K09084,Premises Related Expenditure  ,Energy Costs                  ,BB03,Gas (incl. Butane),"1,536.04",13/05/2013,R,KENT COUNTY COUNCIL           
797,Childrens & Education Services,Statutory & Regulatory Duties,Profess Develop Cntre,K09084,Premises Related Expenditure  ,Energy Costs                  ,BB03,Gas (incl. Butane),"1,717.22",13/05/2013,R,KENT COUNTY COUNCIL           
798,Childrens & Education Services,Statutory & Regulatory Duties,Profess Develop Cntre,K09084,Premises Related Expenditure  ,Energy Costs                  ,BB03,Gas (incl. Butane),"1,939.56",13/05/2013,R,KENT COUNTY COUNCIL           
799,Childrens & Education Services,Statutory & Regulatory Duties,Profess Develop Cntre,K09084,Premises Related Expenditure  ,Energy Costs                  ,BB03,Gas (incl. Butane),"2,011.37",13/05/2013,R,KENT COUNTY COUNCIL           
800,Childrens & Education Services,Statutory & Regulatory Duties,Profess Develop Cntre,K09084,Premises Related Expenditure  ,Cleaning and Domestic Supplies,BH03,Cleaning Services,"2,718.68",25/05/2013,R,JULIUS RUTHERFOORD & CO LTD   
801,Childrens & Education Services,Sch Meals & Milk-Not Delegated,Free School Meals,K90002,Premises Related Expenditure  ,RepairsAlterations&MtceOfBldgs,BA01,DDM - General Building,"1,435.00",04/06/2013,R,FIRST IN SERVICE              
802,Childrens & Education Services,Sch Meals & Milk-Not Delegated,Free School Meals,K90002,Supplies & Services           ,Equip Furniture/Materials     ,DA70,Milk and Meals,"6,779.73",14/06/2013,R,ISS COLLECTIONS LTD           
803,Childrens & Education Services,Sch Meals & Milk-Not Delegated,Free School Meals,K90002,Supplies & Services           ,Equip Furniture/Materials     ,DA70,Milk and Meals,"17,935.52",17/05/2013,R,ISS COLLECTIONS LTD           
804,Childrens & Education Services,Sch Meals & Milk-Not Delegated,Free School Meals,K90002,Supplies & Services           ,Services                      ,DF57,Consulting Engineers Fees,"1,190.00",14/05/2013,R,RWS CONSULTING                
805,Childrens & Education Services,Sch Meals & Milk-Not Delegated,Free School Meals,K90002,Supplies & Services           ,Grants and Subscriptions      ,DJ80,Free School Meals,"7,660.00",30/05/2013,R,PARENTPAY LTD                 
806,Childrens & Education Services,Sch Meals & Milk-Not Delegated,Free School Meals,K90002,Supplies & Services           ,Grants and Subscriptions      ,DJ80,Free School Meals,"130,350.35",14/06/2013,R,ISS COLLECTIONS LTD           
807,Childrens & Education Services,Sch Meals & Milk-Not Delegated,Free School Meals,K90002,Supplies & Services           ,Grants and Subscriptions      ,DJ80,Free School Meals,"331,416.40",17/05/2013,R,ISS COLLECTIONS LTD           
808,Childrens & Education Services,Pupil Referral Units,Hospital Tuition,K90008,Third Party Payments          ,Other Local Authorities       ,EB54,Hospital Tuition,"14,440.00",19/04/2013,R,SURREY COUNTY COUNCIL         
809,Childrens & Education Services,Facilitating School Improvemnt,Virtual Schools - Home Tutors,K90015,Employees                     ,Direct Employee Expenses      ,AA17,Agency Staff & Casual Paymts,532,30/04/2013,R,REDACTED
810,Childrens & Education Services,Facilitating School Improvemnt,Virtual Schools - Home Tutors,K90015,Employees                     ,Direct Employee Expenses      ,AA17,Agency Staff & Casual Paymts,592,31/05/2013,R,REDACTED
811,Childrens & Education Services,Facilitating School Improvemnt,Virtual Schools - Home Tutors,K90015,Employees                     ,Direct Employee Expenses      ,AA17,Agency Staff & Casual Paymts,900.5,01/06/2013,R,REDACTED
812,Childrens & Education Services,Facilitating School Improvemnt,Virtual Schools - PEA's,K90016,Supplies & Services           ,Expenses                      ,DH12,Young Peoples Expenses,550,16/05/2013,R,ST DOMINIC'S SCHOOL           
813,Childrens & Education Services,Facilitating School Improvemnt,Virtual Schools - PEA's,K90016,Supplies & Services           ,Grants and Subscriptions      ,DJ01,Grants,600,13/06/2013,R,PERSEID SCHOOL                
814,Childrens & Education Services,Facilitating School Improvemnt,Virtual Schools - PEA's,K90016,Supplies & Services           ,Grants and Subscriptions      ,DJ01,Grants,600,13/06/2013,R,LIBERTY PRIMARY SCHOOL        
815,Childrens & Education Services,Facilitating School Improvemnt,Virtual Schools - PEA's,K90016,Supplies & Services           ,Grants and Subscriptions      ,DJ01,Grants,900,13/06/2013,R,ST MARK'S C OF E ACADEMY      
816,Childrens & Education Services,Facilitating School Improvemnt,Virtual Schools - PEA's,K90016,Supplies & Services           ,Grants and Subscriptions      ,DJ01,Grants,900,13/06/2013,R,SMART CENTRE                  
817,Childrens & Education Services,Facilitating School Improvemnt,Virtual Schools - PEA's,K90016,Supplies & Services           ,Grants and Subscriptions      ,DJ01,Grants,900,13/06/2013,R,HARRIS ACADEMY MORDEN         
818,Childrens & Education Services,Facilitating School Improvemnt,Virtual Schools - PEA's,K90016,Supplies & Services           ,Grants and Subscriptions      ,DJ01,Grants,900,14/06/2013,R,RICARDS LODGE SECONDARY SCHOOL
819,Childrens & Education Services,Facilitating School Improvemnt,Virtual Schools - PEA's,K90016,Supplies & Services           ,Grants and Subscriptions      ,DJ01,Grants,900,13/06/2013,R,MALMESBURY PRIMARY SCHOOL     
820,Childrens & Education Services,Facilitating School Improvemnt,Virtual Schools - PEA's,K90016,Supplies & Services           ,Grants and Subscriptions      ,DJ01,Grants,"1,200.00",13/06/2013,R,ABBOTSBURY PRIMARY SCHOOL     
821,Childrens & Education Services,Facilitating School Improvemnt,Virtual Schools - PEA's,K90016,Supplies & Services           ,Grants and Subscriptions      ,DJ01,Grants,"1,200.00",13/06/2013,R,CRICKET GREEN SCHOOL          
822,Childrens & Education Services,Support for SEN Pupils,Non-Delegated Statements,K90024,Employees                     ,Direct Employee Expenses      ,AA17,Agency Staff & Casual Paymts,862.5,29/05/2013,R,REDACTED
823,Childrens & Education Services,Support for SEN Pupils,Non-Delegated Statements,K90024,Employees                     ,Direct Employee Expenses      ,AA17,Agency Staff & Casual Paymts,"1,470.00",31/05/2013,R,REDACTED
824,Childrens & Education Services,Support for SEN Pupils,Non-Delegated Statements,K90024,Employees                     ,Direct Employee Expenses      ,AA17,Agency Staff & Casual Paymts,"1,691.52",31/05/2013,R,REDACTED
825,Childrens & Education Services,Support for SEN Pupils,Non-Delegated Statements,K90024,Employees                     ,Direct Employee Expenses      ,AA17,Agency Staff & Casual Paymts,"2,400.00",04/06/2013,R,REDACTED
826,Childrens & Education Services,Support for SEN Pupils,Non-Delegated Statements,K90024,Third Party Payments          ,Other Local Authorities       ,EB50,OLA-Payments - Day Schools,"1,250.00",30/04/2013,R,WANDLE VALLEY SCHOOL          
827,Childrens & Education Services,Support for SEN Pupils,Non-Delegated Statements,K90024,Third Party Payments          ,Other Establishments          ,EG01,Alternative SEN Provision,"2,000.00",04/03/2013,R,IMMANUEL HOUSE-COMM TRAINING  
828,Childrens & Education Services,Support for SEN Pupils,Non-Delegated Statements,K90024,Third Party Payments          ,Other Establishments          ,EG01,Alternative SEN Provision,"2,000.00",03/06/2013,R,IMMANUEL HOUSE-COMM TRAINING  
829,Childrens & Education Services,Support for SEN Pupils,Non-Delegated Statements,K90024,Third Party Payments          ,Other Establishments          ,EG01,Alternative SEN Provision,"2,926.00",27/05/2013,R,HA TUTORS LTD                 
830,Childrens & Education Services,Support for SEN Pupils,Non-Delegated Statements,K90024,Third Party Payments          ,Other Establishments          ,EG50,Ind Day Schs Payments,"-13,333.00",02/04/2013,R,ST DOMINIC'S SCHOOL           
831,Childrens & Education Services,Support for SEN Pupils,Non-Delegated Statements,K90024,Third Party Payments          ,Other Establishments          ,EG50,Ind Day Schs Payments,"-9,186.00",19/04/2013,R,ST JOSEPHS SCHOOL             
832,Childrens & Education Services,Support for SEN Pupils,Non-Delegated Statements,K90024,Third Party Payments          ,Other Establishments          ,EG50,Ind Day Schs Payments,"6,754.00",04/06/2013,R,THE LINK SECONDARY SCHOOL     
833,Childrens & Education Services,Support for SEN Pupils,Non-Delegated Statements,K90024,Third Party Payments          ,Other Establishments          ,EG50,Ind Day Schs Payments,"7,088.00",04/06/2013,R,THE LINK SECONDARY SCHOOL     
834,Childrens & Education Services,Support for SEN Pupils,Non-Delegated Statements,K90024,Third Party Payments          ,Other Establishments          ,EG50,Ind Day Schs Payments,"7,208.00",02/04/2013,R,ST DOMINIC'S SCHOOL           
835,Childrens & Education Services,Support for SEN Pupils,Non-Delegated Statements,K90024,Third Party Payments          ,Other Establishments          ,EG50,Ind Day Schs Payments,"16,092.00",04/06/2013,R,THE LINK SECONDARY SCHOOL     
836,Childrens & Education Services,Support for SEN Pupils,Non-Delegated Statements,K90024,Third Party Payments          ,Other Establishments          ,EG50,Ind Day Schs Payments,"18,372.00",29/05/2013,R,PHILPOTS MANOR SCHOOL         
837,Childrens & Education Services,Support for SEN Pupils,Non-Delegated Statements,K90024,Third Party Payments          ,Other Establishments          ,EG50,Ind Day Schs Payments,"18,584.00",03/04/2013,R,ST JOSEPHS SCHOOL             
838,Childrens & Education Services,Support for SEN Pupils,Non-Delegated Statements,K90024,Third Party Payments          ,Other Establishments          ,EG50,Ind Day Schs Payments,"29,084.25",02/05/2013,R,KISIMUL SCHOOL                
839,Childrens & Education Services,Support for SEN Pupils,Non-Delegated Statements,K90024,Third Party Payments          ,Other Establishments          ,EG50,Ind Day Schs Payments,"33,713.32",02/04/2013,R,UNSTED PARK                   
840,Childrens & Education Services,Support for SEN Pupils,Non-Delegated Statements,K90024,Third Party Payments          ,Other Establishments          ,EG50,Ind Day Schs Payments,"36,866.00",03/04/2013,R,ST JOSEPHS SCHOOL             
841,Childrens & Education Services,Support for SEN Pupils,Non-Delegated Statements,K90024,Third Party Payments          ,Other Establishments          ,EG50,Ind Day Schs Payments,"39,608.00",02/04/2013,R,ST DOMINIC'S SCHOOL           
842,Childrens & Education Services,Admissions & Planning Sch Prov,Retained Schools Budgets,K90030,Supplies & Services           ,Prntng Stnry Gen Off Exp      ,DE22,Marketing,"6,550.00",31/05/2013,R,GREBOT DONNELLY  ASSOCIAT. LTD
843,Childrens & Education Services,Admissions & Planning Sch Prov,Retained Schools Budgets,K90030,Supplies & Services           ,Services                      ,DF03,Consultants,"6,000.00",31/05/2013,R,END USER LTD                  
844,Childrens & Education Services,Admissions & Planning Sch Prov,Retained Schools Budgets,K90030,Supplies & Services           ,Expenses                      ,DH17,Advances,"2,500.00",15/04/2013,R,SCHOOLS FUNDING NETWORK       
845,Childrens & Education Services,Ensuring Attendance At School,AWUP -PERMANENTLY EXC PUPILS,K90037,Third Party Payments          ,Other Local Authorities       ,EB01,Payments to OLAs,"1,250.53",18/03/2013,R,CROYDON COUNCIL               
846,Childrens & Education Services,Facilitating School Improvemnt,SSQ CORE OFFER (DSG),K90040,Supplies & Services           ,Services                      ,DF03,Consultants,"3,250.00",31/05/2013,R,REDACTED
847,Childrens & Education Services,Facilitating School Improvemnt,SSQ CORE OFFER (DSG),K90040,Supplies & Services           ,Grants and Subscriptions      ,DJ04,Subscriptions,"3,000.00",24/06/2013,R,STONEWALL EQUALITY LTD        
848,Childrens & Education Services,Nursery schools,EARLY YEARS NURSERY GRANTS,K90042,Supplies & Services           ,Grants and Subscriptions      ,DJ57,Nursery Grant Payment-4yr olds,554.4,26/06/2013,R,ST OLAVES NURSERY             
849,Childrens & Education Services,Nursery schools,EARLY YEARS NURSERY GRANTS,K90042,Supplies & Services           ,Grants and Subscriptions      ,DJ57,Nursery Grant Payment-4yr olds,554.4,26/06/2013,R,NUTURE DAY NURSERIES          
850,Childrens & Education Services,Nursery schools,EARLY YEARS NURSERY GRANTS,K90042,Supplies & Services           ,Grants and Subscriptions      ,DJ57,Nursery Grant Payment-4yr olds,554.4,26/06/2013,R,LOVE LANE DAY NURSERY         
851,Childrens & Education Services,Nursery schools,EARLY YEARS NURSERY GRANTS,K90042,Supplies & Services           ,Grants and Subscriptions      ,DJ57,Nursery Grant Payment-4yr olds,571.03,26/06/2013,R,REDACTED
852,Childrens & Education Services,Nursery schools,EARLY YEARS NURSERY GRANTS,K90042,Supplies & Services           ,Grants and Subscriptions      ,DJ57,Nursery Grant Payment-4yr olds,645,26/06/2013,R,PLAYDAYS DAY NURSERY          
853,Childrens & Education Services,Nursery schools,EARLY YEARS NURSERY GRANTS,K90042,Supplies & Services           ,Grants and Subscriptions      ,DJ57,Nursery Grant Payment-4yr olds,710.09,28/06/2013,R,BLOSSOM HOUSE SCHOOL          
854,Childrens & Education Services,Nursery schools,EARLY YEARS NURSERY GRANTS,K90042,Supplies & Services           ,Grants and Subscriptions      ,DJ57,Nursery Grant Payment-4yr olds,970.2,26/06/2013,R,DICKY BIRDS DAY NURSERIES     
855,Childrens & Education Services,Nursery schools,EARLY YEARS NURSERY GRANTS,K90042,Supplies & Services           ,Grants and Subscriptions      ,DJ57,Nursery Grant Payment-4yr olds,"1,108.80",26/06/2013,R,JIGSAW DAY NURSERY            
856,Childrens & Education Services,Nursery schools,EARLY YEARS NURSERY GRANTS,K90042,Supplies & Services           ,Grants and Subscriptions      ,DJ57,Nursery Grant Payment-4yr olds,"1,124.50",26/06/2013,R,HOLY CROSS PLAYGROUP          
857,Childrens & Education Services,Nursery schools,EARLY YEARS NURSERY GRANTS,K90042,Supplies & Services           ,Grants and Subscriptions      ,DJ57,Nursery Grant Payment-4yr olds,"1,219.68",26/06/2013,R,COLLIERS WOOD VILLAGE DAY NUR.
858,Childrens & Education Services,Nursery schools,EARLY YEARS NURSERY GRANTS,K90042,Supplies & Services           ,Grants and Subscriptions      ,DJ57,Nursery Grant Payment-4yr olds,"1,339.80",26/06/2013,R,KINGSWOOD DAYCARE NURSERY     
859,Childrens & Education Services,Nursery schools,EARLY YEARS NURSERY GRANTS,K90042,Supplies & Services           ,Grants and Subscriptions      ,DJ57,Nursery Grant Payment-4yr olds,"1,422.54",26/06/2013,R,ST MARK'S MONTESSORI          
860,Childrens & Education Services,Nursery schools,EARLY YEARS NURSERY GRANTS,K90042,Supplies & Services           ,Grants and Subscriptions      ,DJ57,Nursery Grant Payment-4yr olds,"1,446.90",27/06/2013,R,WILLINGTON SCH.FOUNDATION LTD 
861,Childrens & Education Services,Nursery schools,EARLY YEARS NURSERY GRANTS,K90042,Supplies & Services           ,Grants and Subscriptions      ,DJ57,Nursery Grant Payment-4yr olds,"1,663.20",26/06/2013,R,LA PETITE FLEUR PRE-SCHOOL    
862,Childrens & Education Services,Nursery schools,EARLY YEARS NURSERY GRANTS,K90042,Supplies & Services           ,Grants and Subscriptions      ,DJ57,Nursery Grant Payment-4yr olds,"1,940.40",26/06/2013,R,HASLEMERE HOUSE DAY NURSERY   
863,Childrens & Education Services,Nursery schools,EARLY YEARS NURSERY GRANTS,K90042,Supplies & Services           ,Grants and Subscriptions      ,DJ57,Nursery Grant Payment-4yr olds,"2,034.65",26/06/2013,R,EVELINE DAY NURSERY SCHOOLS   
864,Childrens & Education Services,Nursery schools,EARLY YEARS NURSERY GRANTS,K90042,Supplies & Services           ,Grants and Subscriptions      ,DJ57,Nursery Grant Payment-4yr olds,"2,079.00",26/06/2013,R,WILLOWS PRE-SCHOOL            
865,Childrens & Education Services,Nursery schools,EARLY YEARS NURSERY GRANTS,K90042,Supplies & Services           ,Grants and Subscriptions      ,DJ57,Nursery Grant Payment-4yr olds,"2,079.00",27/06/2013,R,NURSERY ON THE GREEN          
866,Childrens & Education Services,Nursery schools,EARLY YEARS NURSERY GRANTS,K90042,Supplies & Services           ,Grants and Subscriptions      ,DJ57,Nursery Grant Payment-4yr olds,"2,123.35",26/06/2013,R,DEE'S DAYS NURSERY            
867,Childrens & Education Services,Nursery schools,EARLY YEARS NURSERY GRANTS,K90042,Supplies & Services           ,Grants and Subscriptions      ,DJ57,Nursery Grant Payment-4yr olds,"2,217.60",26/06/2013,R,LITTLE GATES                  
868,Childrens & Education Services,Nursery schools,EARLY YEARS NURSERY GRANTS,K90042,Supplies & Services           ,Grants and Subscriptions      ,DJ57,Nursery Grant Payment-4yr olds,"2,422.73",26/06/2013,R,BRIGHT CHOICE DAY NURSERY     
869,Childrens & Education Services,Nursery schools,EARLY YEARS NURSERY GRANTS,K90042,Supplies & Services           ,Grants and Subscriptions      ,DJ57,Nursery Grant Payment-4yr olds,"2,727.65",26/06/2013,R,COOPERATIVE CHILDCARE         
870,Childrens & Education Services,Nursery schools,EARLY YEARS NURSERY GRANTS,K90042,Supplies & Services           ,Grants and Subscriptions      ,DJ57,Nursery Grant Payment-4yr olds,"2,783.55",26/06/2013,R,LITTLE LEARNERS               
871,Childrens & Education Services,Nursery schools,EARLY YEARS NURSERY GRANTS,K90042,Supplies & Services           ,Grants and Subscriptions      ,DJ57,Nursery Grant Payment-4yr olds,"2,910.60",26/06/2013,R,CROWN KINDERGARTEN            
872,Childrens & Education Services,Nursery schools,EARLY YEARS NURSERY GRANTS,K90042,Supplies & Services           ,Grants and Subscriptions      ,DJ57,Nursery Grant Payment-4yr olds,"3,319.00",26/06/2013,R,THE GARDENS CHILDCARE LTD     
873,Childrens & Education Services,Nursery schools,EARLY YEARS NURSERY GRANTS,K90042,Supplies & Services           ,Grants and Subscriptions      ,DJ57,Nursery Grant Payment-4yr olds,"3,343.03",26/06/2013,R,BUTTERFLIES CHILDCARE LIMITED 
874,Childrens & Education Services,Nursery schools,EARLY YEARS NURSERY GRANTS,K90042,Supplies & Services           ,Grants and Subscriptions      ,DJ57,Nursery Grant Payment-4yr olds,"3,483.48",26/06/2013,R,TEDDIES NURSERIES LTD         
875,Childrens & Education Services,Nursery schools,EARLY YEARS NURSERY GRANTS,K90042,Supplies & Services           ,Grants and Subscriptions      ,DJ57,Nursery Grant Payment-4yr olds,"3,550.47",27/06/2013,R,THE STUDY(WIMBLEDON)LTD       
876,Childrens & Education Services,Nursery schools,EARLY YEARS NURSERY GRANTS,K90042,Supplies & Services           ,Grants and Subscriptions      ,DJ57,Nursery Grant Payment-4yr olds,"3,642.41",26/06/2013,R,CHERUBS @ ST THOMAS           
877,Childrens & Education Services,Nursery schools,EARLY YEARS NURSERY GRANTS,K90042,Supplies & Services           ,Grants and Subscriptions      ,DJ57,Nursery Grant Payment-4yr olds,"3,880.80",10/06/2013,R,FIRST LITTLE STEPS            
878,Childrens & Education Services,Nursery schools,EARLY YEARS NURSERY GRANTS,K90042,Supplies & Services           ,Grants and Subscriptions      ,DJ57,Nursery Grant Payment-4yr olds,"4,019.40",26/06/2013,R,FIRST LITTLE STEPS            
879,Childrens & Education Services,Nursery schools,EARLY YEARS NURSERY GRANTS,K90042,Supplies & Services           ,Grants and Subscriptions      ,DJ57,Nursery Grant Payment-4yr olds,"4,050.35",26/06/2013,R,THE GARDEN ROOM               
880,Childrens & Education Services,Nursery schools,EARLY YEARS NURSERY GRANTS,K90042,Supplies & Services           ,Grants and Subscriptions      ,DJ57,Nursery Grant Payment-4yr olds,"4,160.77",26/06/2013,R,OAKTREE PRE-SCHOOL NURSERY    
881,Childrens & Education Services,Nursery schools,EARLY YEARS NURSERY GRANTS,K90042,Supplies & Services           ,Grants and Subscriptions      ,DJ57,Nursery Grant Payment-4yr olds,"4,423.65",26/06/2013,R,DONHEAD SCHOOL                
882,Childrens & Education Services,Nursery schools,EARLY YEARS NURSERY GRANTS,K90042,Supplies & Services           ,Grants and Subscriptions      ,DJ57,Nursery Grant Payment-4yr olds,"4,435.20",26/06/2013,R,LITTLE CATERPILLARS           
883,Childrens & Education Services,Nursery schools,EARLY YEARS NURSERY GRANTS,K90042,Supplies & Services           ,Grants and Subscriptions      ,DJ57,Nursery Grant Payment-4yr olds,"4,469.62",26/06/2013,R,MARIA MONTESSORI CHILD'S HOUSE
884,Childrens & Education Services,Nursery schools,EARLY YEARS NURSERY GRANTS,K90042,Supplies & Services           ,Grants and Subscriptions      ,DJ57,Nursery Grant Payment-4yr olds,"4,483.25",26/06/2013,R,RAYNES PARK DAY NURSERY       
885,Childrens & Education Services,Nursery schools,EARLY YEARS NURSERY GRANTS,K90042,Supplies & Services           ,Grants and Subscriptions      ,DJ57,Nursery Grant Payment-4yr olds,"4,618.15",26/06/2013,R,MONTIS DAY NURSERY            
886,Childrens & Education Services,Nursery schools,EARLY YEARS NURSERY GRANTS,K90042,Supplies & Services           ,Grants and Subscriptions      ,DJ57,Nursery Grant Payment-4yr olds,"4,677.29",26/06/2013,R,DICKY BIRDS PRE-SCH NURSERIES 
887,Childrens & Education Services,Nursery schools,EARLY YEARS NURSERY GRANTS,K90042,Supplies & Services           ,Grants and Subscriptions      ,DJ57,Nursery Grant Payment-4yr olds,"4,878.72",27/06/2013,R,WILLOW PRE SCHOOL             
888,Childrens & Education Services,Nursery schools,EARLY YEARS NURSERY GRANTS,K90042,Supplies & Services           ,Grants and Subscriptions      ,DJ57,Nursery Grant Payment-4yr olds,"4,910.06",26/06/2013,R,MARIA MONTESSORI CHILDREN'S   
889,Childrens & Education Services,Nursery schools,EARLY YEARS NURSERY GRANTS,K90042,Supplies & Services           ,Grants and Subscriptions      ,DJ57,Nursery Grant Payment-4yr olds,"5,017.32",26/06/2013,R,LITTLE HANDS MONTESSORI       
890,Childrens & Education Services,Nursery schools,EARLY YEARS NURSERY GRANTS,K90042,Supplies & Services           ,Grants and Subscriptions      ,DJ57,Nursery Grant Payment-4yr olds,"5,266.80",27/06/2013,R,WIMBLEDON DAY NURSERY         
891,Childrens & Education Services,Nursery schools,EARLY YEARS NURSERY GRANTS,K90042,Supplies & Services           ,Grants and Subscriptions      ,DJ57,Nursery Grant Payment-4yr olds,"5,405.40",26/06/2013,R,BUMBLE BEES'S DAY NURSERY-COCC
892,Childrens & Education Services,Nursery schools,EARLY YEARS NURSERY GRANTS,K90042,Supplies & Services           ,Grants and Subscriptions      ,DJ57,Nursery Grant Payment-4yr olds,"5,499.65",26/06/2013,R,CAROUSEL DAY NURSERY          
893,Childrens & Education Services,Nursery schools,EARLY YEARS NURSERY GRANTS,K90042,Supplies & Services           ,Grants and Subscriptions      ,DJ57,Nursery Grant Payment-4yr olds,"6,006.00",27/06/2013,R,WIMBLEDON DAY NURSERY 2       
894,Childrens & Education Services,Nursery schools,EARLY YEARS NURSERY GRANTS,K90042,Supplies & Services           ,Grants and Subscriptions      ,DJ57,Nursery Grant Payment-4yr olds,"6,733.65",26/06/2013,R,CASTLE KINDERGARTEN           
895,Childrens & Education Services,Nursery schools,EARLY YEARS NURSERY GRANTS,K90042,Supplies & Services           ,Grants and Subscriptions      ,DJ57,Nursery Grant Payment-4yr olds,"6,747.05",26/06/2013,R,THE GRANGE DAY NURSERY        
896,Childrens & Education Services,Nursery schools,EARLY YEARS NURSERY GRANTS,K90042,Supplies & Services           ,Grants and Subscriptions      ,DJ57,Nursery Grant Payment-4yr olds,"6,819.12",26/06/2013,R,BUILDING BLOCKS NURSERY       
897,Childrens & Education Services,Nursery schools,EARLY YEARS NURSERY GRANTS,K90042,Supplies & Services           ,Grants and Subscriptions      ,DJ57,Nursery Grant Payment-4yr olds,"8,482.32",26/06/2013,R,DICKY BIRDS PRE SCHOOL NURSERY
898,Childrens & Education Services,Nursery schools,EARLY YEARS NURSERY GRANTS,K90042,Supplies & Services           ,Grants and Subscriptions      ,DJ57,Nursery Grant Payment-4yr olds,"9,009.00",26/06/2013,R,MINI TREASURES DAY NURSERY    
899,Childrens & Education Services,Nursery schools,EARLY YEARS NURSERY GRANTS,K90042,Supplies & Services           ,Grants and Subscriptions      ,DJ57,Nursery Grant Payment-4yr olds,"9,424.80",26/06/2013,R,LEAPFROG DAY NURSERIES        
900,Childrens & Education Services,Nursery schools,EARLY YEARS NURSERY GRANTS,K90042,Supplies & Services           ,Grants and Subscriptions      ,DJ57,Nursery Grant Payment-4yr olds,"13,075.52",28/06/2013,R,URSULINE PREPARATORY SCHOOL   
901,Childrens & Education Services,Nursery schools,EARLY YEARS FUNDING,K90046,Premises Related Expenditure  ,RepairsAlterations&MtceOfBldgs,BA79,Security of Premises,"2,200.00",16/05/2013,R,ACE CONSULT UK LTD            
902,Childrens & Education Services,Nursery schools,EARLY YEARS FUNDING,K90046,Premises Related Expenditure  ,RepairsAlterations&MtceOfBldgs,BA79,Security of Premises,"2,400.00",12/06/2013,R,ACE CONSULT UK LTD            
903,Childrens & Education Services,Support for SEN Pupils,ART SEN Residential (DSG),K90050,Third Party Payments          ,Other Establishments          ,EG51,Ind Resid Schs Payments,"12,990.50",17/04/2013,R,ST MARY'S WRESTWOOD CHILDRENS 
904,Childrens & Education Services,Support for SEN Pupils,ART SEN Residential (DSG),K90050,Third Party Payments          ,Other Establishments          ,EG51,Ind Resid Schs Payments,"14,305.66",03/04/2013,R,ST JOSEPHS SCHOOL             
905,Childrens & Education Services,Support for SEN Pupils,ART SEN Residential (DSG),K90050,Third Party Payments          ,Other Establishments          ,EG51,Ind Resid Schs Payments,"15,810.00",18/04/2013,R,ST MARY'S WRESTWOOD CHILDRENS 
906,Childrens & Education Services,Support for SEN Pupils,ART SEN Residential (DSG),K90050,Third Party Payments          ,Other Establishments          ,EG51,Ind Resid Schs Payments,"15,851.66",03/04/2013,R,ST JOSEPHS SCHOOL             
907,Childrens & Education Services,Support for SEN Pupils,ART SEN Residential (DSG),K90050,Third Party Payments          ,Other Establishments          ,EG51,Ind Resid Schs Payments,"16,150.50",17/04/2013,R,ST MARY'S WRESTWOOD CHILDRENS 
908,Childrens & Education Services,Support for SEN Pupils,ART SEN Residential (DSG),K90050,Third Party Payments          ,Other Establishments          ,EG51,Ind Resid Schs Payments,"20,488.66",03/04/2013,R,ST JOSEPHS SCHOOL             
909,Childrens & Education Services,Support for SEN Pupils,ART SEN Residential (DSG),K90050,Third Party Payments          ,Other Establishments          ,EG51,Ind Resid Schs Payments,"22,035.66",03/04/2013,R,ST JOSEPHS SCHOOL             
910,Childrens & Education Services,Support for SEN Pupils,ART SEN Residential (DSG),K90050,Third Party Payments          ,Other Establishments          ,EG51,Ind Resid Schs Payments,"22,445.83",16/04/2013,R,PRIORS COURT FOUNDATION       
911,Childrens & Education Services,Support for SEN Pupils,ART SEN Residential (DSG),K90050,Third Party Payments          ,Other Establishments          ,EG51,Ind Resid Schs Payments,"24,517.00",03/04/2013,R,ST JOSEPHS SCHOOL             
912,Childrens & Education Services,Support for SEN Pupils,ART SEN Residential (DSG),K90050,Third Party Payments          ,Other Establishments          ,EG51,Ind Resid Schs Payments,"30,552.00",03/04/2013,R,ST JOSEPHS SCHOOL             
913,Childrens & Education Services,Support for SEN Pupils,ART SEN Residential (DSG),K90050,Third Party Payments          ,Other Establishments          ,EG51,Ind Resid Schs Payments,"36,111.66",03/04/2013,R,ST JOSEPHS SCHOOL             
914,Childrens & Education Services,Support for SEN Pupils,ART SEN Residential (DSG),K90050,Third Party Payments          ,Other Establishments          ,EG51,Ind Resid Schs Payments,"37,356.00",03/04/2013,R,ST JOSEPHS SCHOOL             
915,Childrens & Education Services,Support for SEN Pupils,ART SEN Residential (DSG),K90050,Third Party Payments          ,Other Establishments          ,EG51,Ind Resid Schs Payments,"41,961.66",03/04/2013,R,ST JOSEPHS SCHOOL             
916,Childrens & Education Services,Nursery schools,2Year Old Offer                         ,K90051,Supplies & Services           ,Grants and Subscriptions      ,DJ01,Grants,"1,080.00",10/06/2013,R,GUY'S & ST.THOMAS NHS TRUST   
917,Cultural Env Reg&Plan Services,Library DoS not split,Libraries Service-Civic Centre,L50001,Premises Related Expenditure  ,RepairsAlterations&MtceOfBldgs,BA79,Security of Premises,"2,559.94",28/05/2013,R,MOSSER LTD                    
918,Cultural Env Reg&Plan Services,Library DoS not split,Libraries Service-Civic Centre,L50001,Premises Related Expenditure  ,RepairsAlterations&MtceOfBldgs,BA79,Security of Premises,"7,126.46",01/05/2013,R,SIGHT & SOUND                 
919,Cultural Env Reg&Plan Services,Library DoS not split,Libraries Service-Civic Centre,L50001,Premises Related Expenditure  ,RepairsAlterations&MtceOfBldgs,BA79,Security of Premises,"7,126.46",01/06/2013,R,SIGHT & SOUND                 
920,Cultural Env Reg&Plan Services,Library DoS not split,Libraries Service-Civic Centre,L50001,Supplies & Services           ,Comms and Computing           ,DG52,DS Maintenance,"1,500.00",12/06/2013,R,AXIELL                        
921,Cultural Env Reg&Plan Services,Library DoS not split,Libraries Service-Civic Centre,L50001,Supplies & Services           ,Comms and Computing           ,DG52,DS Maintenance,"2,350.00",12/06/2013,R,AXIELL                        
922,Cultural Env Reg&Plan Services,Heritage,Merton Memories                         ,L83067,Third Party Payments          ,Private Contractors           ,EH01,Miscellaneous Contrct Services,"15,542.00",21/11/2012,R,TOWNSWEB ARCHIVING LTD        
923,Cultural Env Reg&Plan Services,Library DoS not split,MITCHAM LIBRARY,L83071,Premises Related Expenditure  ,Energy Costs                  ,BB02,Electricity,"2,766.93",01/05/2013,R,EDF ENERGY 1 LIMITED          
924,Cultural Env Reg&Plan Services,Library DoS not split,MITCHAM LIBRARY,L83071,Premises Related Expenditure  ,Energy Costs                  ,BB03,Gas (incl. Butane),609.87,23/05/2013,R,KENT COUNTY COUNCIL           
925,Cultural Env Reg&Plan Services,Library DoS not split,MITCHAM LIBRARY,L83071,Premises Related Expenditure  ,Energy Costs                  ,BB03,Gas (incl. Butane),630.48,23/05/2013,R,KENT COUNTY COUNCIL           
926,Cultural Env Reg&Plan Services,Library DoS not split,MITCHAM LIBRARY,L83071,Premises Related Expenditure  ,Energy Costs                  ,BB03,Gas (incl. Butane),817.97,23/05/2013,R,KENT COUNTY COUNCIL           
927,Cultural Env Reg&Plan Services,Library DoS not split,MITCHAM LIBRARY,L83071,Premises Related Expenditure  ,Energy Costs                  ,BB03,Gas (incl. Butane),845.49,23/05/2013,R,KENT COUNTY COUNCIL           
928,Cultural Env Reg&Plan Services,Library DoS not split,MITCHAM LIBRARY,L83071,Premises Related Expenditure  ,Energy Costs                  ,BB03,Gas (incl. Butane),961.01,23/05/2013,R,KENT COUNTY COUNCIL           
929,Cultural Env Reg&Plan Services,Library DoS not split,MITCHAM LIBRARY,L83071,Premises Related Expenditure  ,Cleaning and Domestic Supplies,BH03,Cleaning Services,973.81,31/05/2013,R,BIRKIN CLEANING SERVICES LTD  
930,Cultural Env Reg&Plan Services,Library DoS not split,Donald Hope Library,L83072,Premises Related Expenditure  ,Energy Costs                  ,BB03,Gas (incl. Butane),547.53,23/05/2013,R,KENT COUNTY COUNCIL           
931,Cultural Env Reg&Plan Services,Library DoS not split,Pollards Hill Library,L83073,Premises Related Expenditure  ,Energy Costs                  ,BB02,Electricity,904.74,03/06/2013,R,EDF ENERGY 1 LIMITED          
932,Cultural Env Reg&Plan Services,Library DoS not split,Pollards Hill Library,L83073,Premises Related Expenditure  ,Cleaning and Domestic Supplies,BH03,Cleaning Services,943.91,31/05/2013,R,BIRKIN CLEANING SERVICES LTD  
933,Cultural Env Reg&Plan Services,Library DoS not split,Media Fund,L83081,Supplies & Services           ,Equip Furniture/Materials     ,DA60,Lending,"2,230.37",10/05/2013,R,BOOKPOINT LIMITED             
934,Cultural Env Reg&Plan Services,Library DoS not split,Media Fund,L83081,Supplies & Services           ,Comms and Computing           ,DG04,Postage - General,"1,227.20",31/05/2013,R,EXCEL GROUP SERVICES          
935,Cultural Env Reg&Plan Services,Library DoS not split,Morden Library,L84081,Premises Related Expenditure  ,Cleaning and Domestic Supplies,BH03,Cleaning Services,964.35,31/05/2013,R,BIRKIN CLEANING SERVICES LTD  
